Workbook

Sheet Kobiety
A1: Liczba urodzeń | B1: Liczba zgonów | C1: Wskaźnik płodności | D1: Wskaźnik umieralności | E1: Wiek populacji | F1: Liczba osób
A2: K+M | B2: K | F2: 2016 | G2: 2017 | H2: 2018 | I2: 2019 | J2: 2020 | K2: 2021 | L2: 2022 | M2: 2023 | N2: 2024 | O2: 2025 | P2: 2026 | Q2: 2027 | R2: 2028 | S2: 2029 | T2: 2030 | U2: 2031 | V2: 2032 | W2: 2033 | X2: 2034 | Y2: 2035 | Z2: 2036 | AA2: 2037 | AB2: 2038 | AC2: 2039 | AD2: 2040 | AE2: 2041 | AF2: 2042 | AG2: 2043 | AH2: 2044 | AI2: 2045 | AJ2: 2046 | AK2: 2047 | AL2: 2048 | AM2: 2049 | AN2: 2050 | AO2: 2051 | AP2: 2052 | AQ2: 2053 | AR2: 2054 | AS2: 2055 | AT2: 2056 | AU2: 2057 | AV2: 2058 | AW2: 2059 | AX2: 2060
B3: 654 | D3: =B3/F3*1000 -> 3.71 | E3: 0 | F3: 176,219 | G3: =SUMPRODUCT($C18:$C52,G18:G52)/1000*0.485 -> 181996 | H3: =SUMPRODUCT($C18:$C52,H18:H52)/1000*0.485 -> 178168 | I3: 173997 | J3: 169549 | K3: 164884 | L3: 160111 | M3: 155326 | N3: 150661 | O3: 146238 | P3: 142129 | Q3: 138418 | R3: 135128 | S3: 132245 | T3: 129793 | U3: 127790 | V3: 126256 | W3: 125190 | X3: 124560 | Y3: 124248 | Z3: 124122 | AA3: 124034 | AB3: 123879 | AC3: 123566 | AD3: 123049 | AE3: 122330 | AF3: 121401 | AG3: 120283 | AH3: 118932 | AI3: 117403 | AJ3: 115692 | AK3: 113806 | AL3: 111774 | AM3: 109618 | AN3: 107391 | AO3: 105110 | AP3: 102820 | AQ3: 100563 | AR3: 98374 | AS3: 96276 | AT3: 94297 | AU3: 92452 | AV3: 90755 | AW3: 89214 | AX3: 87830
B4: 42 | D4: =B4/F4*1000 -> 0.23 | E4: 1 | F4: 182,024 | G4: =F3*(1-$D4/1000) -> 176,178 | H4: =G3*(1-$D4/1000) -> 181,954 | I4: 178,127 | J4: 173,957 | K4: 169,510 | L4: 164,846 | M4: 160,074 | N4: 155,290 | O4: 150,626 | P4: 146,205 | Q4: 142,096 | R4: 138,386 | S4: 135,096 | T4: 132,214 | U4: 129,763 | V4: 127,761 | W4: 126,227 | X4: 125,161 | Y4: 124,531 | Z4: 124,220 | AA4: 124,093 | AB4: 124,005 | AC4: 123,850 | AD4: 123,537 | AE4: 123,021 | AF4: 122,301 | AG4: 121,373 | AH4: 120,255 | AI4: 118,904 | AJ4: 117,376 | AK4: 115,665 | AL4: 113,779 | AM4: 111,749 | AN4: 109,593 | AO4: 107,366 | AP4: 105,086 | AQ4: 102,797 | AR4: 100,539 | AS4: 98,351 | AT4: 96,254 | AU4: 94,275 | AV4: 92,431 | AW4: 90,734 | AX4: 89,193
B5: 29 | D5: 0.16 | E5: 2 | F5: 179,742 | G5: =F4*(1-$D5/1000) -> 181,995 | H5: 176,150 | I5: 181,925 | J5: 178,098 | K5: 173,929 | L5: 169,483 | M5: 164,820 | N5: 160,048 | O5: 155,265 | P5: 150,602 | Q5: 146,181 | R5: 142,073 | S5: 138,364 | T5: 135,075 | U5: 132,193 | V5: 129,742 | W5: 127,740 | X5: 126,207 | Y5: 125,140 | Z5: 124,511 | AA5: 124,200 | AB5: 124,073 | AC5: 123,985 | AD5: 123,830 | AE5: 123,517 | AF5: 123,001 | AG5: 122,282 | AH5: 121,354 | AI5: 120,235 | AJ5: 118,885 | AK5: 117,357 | AL5: 115,646 | AM5: 113,761 | AN5: 111,731 | AO5: 109,575 | AP5: 107,349 | AQ5: 105,069 | AR5: 102,780 | AS5: 100,523 | AT5: 98,335 | AU5: 96,238 | AV5: 94,260 | AW5: 92,416 | AX5: 90,720
B6: 16 | D6: 0.08 | E6: 3 | F6: 188,750 | G6: =F5*(1-$D6/1000) -> 179,727 | H6: 181,979 | I6: 176,135 | J6: 181,910 | K6: 178,083 | L6: 173,914 | M6: 169,468 | N6: 164,806 | O6: 160,035 | P6: 155,252 | Q6: 150,589 | R6: 146,169 | S6: 142,061 | T6: 138,352 | U6: 135,063 | V6: 132,182 | W6: 129,731 | X6: 127,729 | Y6: 126,196 | Z6: 125,130 | AA6: 124,501 | AB6: 124,189 | AC6: 124,063 | AD6: 123,975 | AE6: 123,819 | AF6: 123,507 | AG6: 122,991 | AH6: 122,271 | AI6: 121,343 | AJ6: 120,225 | AK6: 118,875 | AL6: 117,347 | AM6: 115,636 | AN6: 113,751 | AO6: 111,721 | AP6: 109,566 | AQ6: 107,340 | AR6: 105,060 | AS6: 102,771 | AT6: 100,515 | AU6: 98,327 | AV6: 96,230 | AW6: 94,252 | AX6: 92,408
B7: 12 | D7: 0.06 | E7: 4 | F7: 188,691 | G7: 188,738 | H7: 179,715 | I7: 181,968 | J7: 176,124 | K7: 181,898 | L7: 178,071 | M7: 173,903 | N7: 169,457 | O7: 164,795 | P7: 160,024 | Q7: 155,242 | R7: 150,579 | S7: 146,159 | T7: 142,052 | U7: 138,343 | V7: 135,055 | W7: 132,174 | X7: 129,723 | Y7: 127,721 | Z7: 126,188 | AA7: 125,122 | AB7: 124,493 | AC7: 124,181 | AD7: 124,055 | AE7: 123,967 | AF7: 123,812 | AG7: 123,499 | AH7: 122,983 | AI7: 122,263 | AJ7: 121,336 | AK7: 120,218 | AL7: 118,868 | AM7: 117,340 | AN7: 115,629 | AO7: 113,744 | AP7: 111,714 | AQ7: 109,559 | AR7: 107,333 | AS7: 105,053 | AT7: 102,765 | AU7: 100,508 | AV7: 98,321 | AW7: 96,224 | AX7: 94,246
B8: 20 | D8: 0.10 | E8: 5 | F8: 200,516 | G8: 188,672 | H8: 188,719 | I8: 179,697 | J8: 181,949 | K8: 176,106 | L8: 181,880 | M8: 178,054 | N8: 173,886 | O8: 169,440 | P8: 164,779 | Q8: 160,008 | R8: 155,227 | S8: 150,564 | T8: 146,145 | U8: 142,038 | V8: 138,329 | W8: 135,041 | X8: 132,160 | Y8: 129,710 | Z8: 127,709 | AA8: 126,176 | AB8: 125,109 | AC8: 124,480 | AD8: 124,169 | AE8: 124,043 | AF8: 123,954 | AG8: 123,799 | AH8: 123,487 | AI8: 122,971 | AJ8: 122,251 | AK8: 121,323 | AL8: 120,206 | AM8: 118,856 | AN8: 117,328 | AO8: 115,618 | AP8: 113,733 | AQ8: 111,703 | AR8: 109,548 | AS8: 107,322 | AT8: 105,043 | AU8: 102,755 | AV8: 100,498 | AW8: 98,311 | AX8: 96,214
B9: 17 | D9: 0.08 | E9: 6 | F9: 208,964 | G9: 200,500 | H9: 188,657 | I9: 188,704 | J9: 179,683 | K9: 181,935 | L9: 176,092 | M9: 181,865 | N9: 178,039 | O9: 173,872 | P9: 169,427 | Q9: 164,765 | R9: 159,995 | S9: 155,214 | T9: 150,552 | U9: 146,133 | V9: 142,027 | W9: 138,318 | X9: 135,030 | Y9: 132,150 | Z9: 129,699 | AA9: 127,698 | AB9: 126,165 | AC9: 125,099 | AD9: 124,470 | AE9: 124,159 | AF9: 124,032 | AG9: 123,944 | AH9: 123,789 | AI9: 123,477 | AJ9: 122,961 | AK9: 122,241 | AL9: 121,314 | AM9: 120,196 | AN9: 118,846 | AO9: 117,318 | AP9: 115,608 | AQ9: 113,724 | AR9: 111,694 | AS9: 109,539 | AT9: 107,313 | AU9: 105,034 | AV9: =AU8*(1-$D9/1000) -> 102,746 | AW9: 100,490 | AX9: =AW8*(1-$D9/1000) -> 98,303
B10: 22 | D10: 0.11 | E10: 7 | F10: 207,924 | G10: 208,942 | H10: 200,478 | I10: 188,637 | J10: 188,684 | K10: 179,664 | L10: 181,915 | M10: 176,073 | N10: 181,846 | O10: 178,020 | P10: 173,853 | Q10: 169,409 | R10: 164,748 | S10: 159,979 | T10: 155,198 | U10: 150,536 | V10: 146,118 | W10: =V9*(1-$D10/1000) -> 142,012 | X10: 138,303 | Y10: 135,016 | Z10: 132,136 | AA10: 129,686 | AB10: 127,685 | AC10: 126,152 | AD10: 125,086 | AE10: 124,457 | AF10: 124,146 | AG10: 124,019 | AH10: 123,931 | AI10: 123,776 | AJ10: 123,464 | AK10: 122,948 | AL10: 122,228 | AM10: =AL9*(1-$D10/1000) -> 121,301 | AN10: 120,183 | AO10: 118,833 | AP10: 117,306 | AQ10: 115,596 | AR10: 113,712 | AS10: 111,682 | AT10: 109,527 | AU10: 107,302 | AV10: 105,023 | AW10: 102,735 | AX10: 100,480
B11: 16 | D11: 0.08 | E11: 8 | F11: 194,362 | G11: 207,907 | H11: 208,925 | I11: 200,462 | J11: 188,621 | K11: 188,668 | L11: 179,649 | M11: 181,900 | N11: 176,059 | O11: 181,831 | P11: 178,006 | Q11: 173,839 | R11: 169,395 | S11: 164,734 | T11: 159,965 | U11: 155,185 | V11: 150,524 | W11: 146,106 | X11: 142,000 | Y11: 138,292 | Z11: 135,005 | AA11: 132,125 | AB11: 129,675 | AC11: 127,674 | AD11: 126,142 | AE11: 125,076 | AF11: 124,447 | AG11: 124,135 | AH11: 124,009 | AI11: 123,921 | AJ11: 123,766 | AK11: 123,454 | AL11: 122,938 | AM11: 122,218 | AN11: 121,291 | AO11: 120,173 | AP11: 118,824 | AQ11: 117,296 | AR11: 115,586 | AS11: 113,702 | AT11: 111,673 | AU11: 109,518 | AV11: 107,293 | AW11: 105,015 | AX11: 102,727
B12: 7 | D12: 0.04 | E12: 9 | F12: 184,598 | G12: 194,355 | H12: 207,899 | I12: 208,917 | J12: 200,454 | K12: 188,614 | L12: 188,661 | M12: 179,642 | N12: 181,894 | O12: 176,052 | P12: 181,824 | Q12: 177,999 | R12: 173,832 | S12: 169,388 | T12: 164,728 | U12: 159,959 | V12: 155,179 | W12: 150,518 | X12: 146,100 | Y12: 141,995 | Z12: 138,287 | AA12: 135,000 | AB12: 132,120 | AC12: 129,670 | AD12: 127,669 | AE12: 126,137 | AF12: 125,071 | AG12: 124,442 | AH12: 124,131 | AI12: 124,004 | AJ12: 123,916 | AK12: 123,761 | AL12: 123,449 | AM12: 122,933 | AN12: 122,214 | AO12: 121,286 | AP12: 120,169 | AQ12: 118,819 | AR12: 117,292 | AS12: 115,582 | AT12: 113,698 | AU12: 111,669 | AV12: 109,514 | AW12: 107,289 | AX12: 105,011
B13: 8 | D13: 0.04 | E13: 10 | F13: 177,939 | G13: 184,590 | H13: 194,346 | I13: 207,890 | J13: 208,907 | K13: 200,445 | L13: 188,606 | M13: 188,653 | N13: 179,634 | O13: 181,885 | P13: 176,044 | Q13: 181,816 | R13: 177,991 | S13: 173,825 | T13: 169,381 | U13: 164,721 | V13: 159,952 | W13: 155,172 | X13: 150,511 | Y13: 146,093 | Z13: 141,988 | AA13: 138,281 | AB13: 134,994 | AC13: 132,114 | AD13: 129,664 | AE13: 127,664 | AF13: 126,131 | AG13: 125,065 | AH13: 124,437 | AI13: 124,125 | AJ13: 123,999 | AK13: 123,911 | AL13: 123,756 | AM13: 123,443 | AN13: 122,927 | AO13: 122,208 | AP13: 121,281 | AQ13: 120,163 | AR13: 118,814 | AS13: 117,287 | AT13: 115,577 | AU13: 113,693 | AV13: 111,664 | AW13: 109,509 | AX13: 107,284
B14: 17 | D14: 0.10 | E14: 11 | F14: 171,781 | G14: 177,921 | H14: 184,571 | I14: 194,327 | J14: 207,869 | K14: 208,887 | L14: 200,426 | M14: 188,587 | N14: 188,634 | O14: 179,616 | P14: 181,867 | Q14: 176,027 | R14: 181,798 | S14: 177,973 | T14: 173,807 | U14: 169,364 | V14: 164,704 | W14: 159,936 | X14: 155,157 | Y14: 150,496 | Z14: 146,079 | AA14: 141,974 | AB14: 138,267 | AC14: 134,980 | AD14: 132,101 | AE14: 129,651 | AF14: 127,651 | AG14: 126,119 | AH14: 125,053 | AI14: 124,424 | AJ14: 124,113 | AK14: 123,987 | AL14: 123,898 | AM14: 123,743 | AN14: 123,431 | AO14: 122,915 | AP14: 122,196 | AQ14: 121,269 | AR14: 120,151 | AS14: 118,802 | AT14: 117,275 | AU14: 115,565 | AV14: 113,682 | AW14: 111,652 | AX14: 109,498
B15: 12 | D15: 0.07 | E15: 12 | F15: 169,270 | G15: 171,769 | H15: 177,909 | I15: 184,558 | J15: 194,313 | K15: 207,854 | L15: 208,872 | M15: 200,411 | N15: 188,574 | O15: 188,621 | P15: 179,604 | Q15: 181,854 | R15: 176,014 | S15: 181,785 | T15: 177,961 | U15: 173,795 | V15: 169,352 | W15: 164,693 | X15: 159,925 | Y15: 155,146 | Z15: 150,486 | AA15: 146,069 | AB15: 141,964 | AC15: 138,257 | AD15: 134,971 | AE15: 132,091 | AF15: 129,642 | AG15: 127,642 | AH15: 126,110 | AI15: 125,044 | AJ15: 124,415 | AK15: 124,104 | AL15: 123,978 | AM15: 123,890 | AN15: 123,735 | AO15: 123,422 | AP15: 122,906 | AQ15: 122,187 | AR15: 121,260 | AS15: 120,143 | AT15: 118,794 | AU15: 117,267 | AV15: 115,557 | AW15: 113,674 | AX15: 111,645
B16: 18 | D16: 0.11 | E16: 13 | F16: 170,741 | G16: 169,252 | H16: 171,751 | I16: 177,890 | J16: 184,539 | K16: 194,292 | L16: 207,832 | M16: 208,850 | N16: 200,390 | O16: 188,554 | P16: 188,601 | Q16: 179,585 | R16: 181,835 | S16: 175,996 | T16: 181,766 | U16: 177,942 | V16: 173,777 | W16: 169,334 | X16: 164,675 | Y16: 159,908 | Z16: 155,129 | AA16: 150,470 | AB16: 146,053 | AC16: 141,949 | AD16: 138,243 | AE16: 134,956 | AF16: 132,077 | AG16: 129,628 | AH16: 127,628 | AI16: 126,096 | AJ16: 125,031 | AK16: 124,402 | AL16: 124,091 | AM16: 123,965 | AN16: 123,877 | AO16: 123,722 | AP16: 123,409 | AQ16: 122,893 | AR16: 122,175 | AS16: 121,247 | AT16: 120,130 | AU16: 118,781 | AV16: 117,254 | AW16: 115,545 | AX16: 113,662
B17: 23 | D17: 0.13 | E17: 14 | F17: 177,102 | G17: 170,719 | H17: 169,230 | I17: 171,728 | J17: 177,867 | K17: 184,515 | L17: 194,267 | M17: 207,805 | N17: 208,823 | O17: 200,364 | P17: 188,529 | Q17: 188,576 | R17: 179,561 | S17: 181,812 | T17: 175,973 | U17: 181,742 | V17: 177,919 | W17: 173,754 | X17: 169,312 | Y17: 164,654 | Z17: 159,887 | AA17: 155,109 | AB17: 150,450 | AC17: 146,034 | AD17: 141,931 | AE17: 138,225 | AF17: 134,939 | AG17: 132,060 | AH17: 129,612 | AI17: 127,612 | AJ17: 126,080 | AK17: 125,015 | AL17: 124,386 | AM17: 124,075 | AN17: 123,949 | AO17: 123,860 | AP17: 123,706 | AQ17: 123,393 | AR17: 122,878 | AS17: 122,159 | AT17: 121,232 | AU17: 120,115 | AV17: 118,766 | AW17: 117,239 | AX17: 115,530
A18: 205 | B18: 16 | C18: =A18/F18*1000 -> 1 | D18: 0.09 | E18: 15 | F18: 181,995 | G18: 177,086 | H18: 170,704 | I18: 169,215 | J18: 171,713 | K18: 177,851 | L18: 184,499 | M18: 194,250 | N18: 207,787 | O18: 208,804 | P18: 200,347 | Q18: 188,513 | R18: 188,560 | S18: 179,546 | T18: 181,796 | U18: 175,957 | V18: 181,726 | W18: 177,903 | X18: 173,739 | Y18: 169,297 | Z18: 164,639 | AA18: 159,873 | AB18: 155,096 | AC18: 150,437 | AD18: 146,021 | AE18: 141,918 | AF18: 138,212 | AG18: 134,927 | AH18: 132,049 | AI18: 129,600 | AJ18: 127,601 | AK18: 126,069 | AL18: 125,004 | AM18: 124,375 | AN18: 124,064 | AO18: 123,938 | AP18: 123,850 | AQ18: 123,695 | AR18: 123,382 | AS18: 122,867 | AT18: 122,148 | AU18: 121,221 | AV18: 120,104 | AW18: 118,755 | AX18: 117,229
A19: 769 | B19: 35 | C19: =A19/F19*1000 -> 4 | D19: 0.19 | E19: 16 | F19: 183,747 | G19: 181,960 | H19: 177,053 | I19: 170,671 | J19: 169,183 | K19: 171,681 | L19: 177,817 | M19: 184,464 | N19: 194,213 | O19: 207,748 | P19: 208,765 | Q19: 200,308 | R19: 188,477 | S19: 188,524 | T19: 179,511 | U19: 181,761 | V19: 175,924 | W19: 181,692 | X19: 177,869 | Y19: 173,706 | Z19: 169,265 | AA19: 164,608 | AB19: 159,843 | AC19: 155,066 | AD19: 150,408 | AE19: 145,994 | AF19: 141,891 | AG19: 138,186 | AH19: 134,901 | AI19: 132,024 | AJ19: 129,575 | AK19: 127,576 | AL19: 126,045 | AM19: 124,980 | AN19: 124,352 | AO19: 124,040 | AP19: 123,914 | AQ19: 123,826 | AR19: 123,671 | AS19: 123,359 | AT19: 122,843 | AU19: 122,125 | AV19: 121,198 | AW19: 120,081 | AX19: 118,733
A20: 1,696 | B20: 38 | C20: 9 | D20: 0.20 | E20: 17 | F20: 188,776 | G20: 183,710 | H20: 181,924 | I20: 177,017 | J20: 170,637 | K20: 169,149 | L20: 171,646 | M20: 177,782 | N20: 184,426 | O20: 194,174 | P20: 207,706 | Q20: 208,723 | R20: 200,268 | S20: 188,439 | T20: 188,486 | U20: 179,475 | V20: 181,724 | W20: 175,888 | X20: 181,655 | Y20: 177,834 | Z20: 173,671 | AA20: 169,231 | AB20: 164,575 | AC20: 159,811 | AD20: 155,035 | AE20: 150,378 | AF20: 145,964 | AG20: 141,863 | AH20: 138,158 | AI20: 134,874 | AJ20: 131,997 | AK20: 129,549 | AL20: 127,551 | AM20: 126,020 | AN20: 124,955 | AO20: 124,327 | AP20: 124,015 | AQ20: 123,889 | AR20: 123,801 | AS20: 123,646 | AT20: 123,334 | AU20: 122,819 | AV20: 122,100 | AW20: 121,173 | AX20: 120,057
A21: 3,265 | B21: 50 | C21: 17 | D21: 0.25 | E21: 18 | F21: 197,473 | G21: 188,728 | H21: 183,663 | I21: 181,878 | J21: 176,972 | K21: 170,594 | L21: 169,106 | M21: 171,603 | N21: 177,737 | O21: 184,380 | P21: 194,125 | Q21: 207,653 | R21: 208,670 | S21: 200,217 | T21: 188,391 | U21: 188,438 | V21: 179,430 | W21: 181,678 | X21: 175,844 | Y21: 181,609 | Z21: 177,789 | AA21: 173,627 | AB21: 169,188 | AC21: 164,533 | AD21: 159,770 | AE21: 154,996 | AF21: 150,340 | AG21: 145,927 | AH21: 141,827 | AI21: 138,123 | AJ21: 134,840 | AK21: 131,964 | AL21: 129,517 | AM21: 127,518 | AN21: 125,988 | AO21: 124,923 | AP21: 124,295 | AQ21: 123,984 | AR21: 123,858 | AS21: 123,770 | AT21: 123,615 | AU21: 123,303 | AV21: 122,787 | AW21: 122,069 | AX21: 121,143
A22: 5,337 | B22: 49 | C22: 26 | D22: 0.24 | E22: 19 | F22: 205,300 | G22: 197,426 | H22: 188,683 | I22: 183,620 | J22: 181,834 | K22: 176,930 | L22: 170,553 | M22: 169,066 | N22: 171,562 | O22: 177,694 | P22: 184,336 | Q22: 194,078 | R22: 207,604 | S22: 208,620 | T22: 200,170 | U22: 188,346 | V22: 188,393 | W22: 179,387 | X22: 181,635 | Y22: 175,802 | Z22: 181,566 | AA22: 177,746 | AB22: 173,585 | AC22: 169,148 | AD22: 164,494 | AE22: 159,732 | AF22: 154,959 | AG22: 150,304 | AH22: 145,892 | AI22: 141,793 | AJ22: 138,090 | AK22: 134,808 | AL22: 131,932 | AM22: 129,486 | AN22: 127,488 | AO22: 125,958 | AP22: 124,893 | AQ22: 124,265 | AR22: 123,954 | AS22: 123,828 | AT22: 123,740 | AU22: 123,585 | AV22: 123,273 | AW22: 122,758 | AX22: 122,040
A23: 7,033 | B23: 41 | C23: 33 | D23: 0.19 | E23: 20 | F23: 212,185 | G23: 205,260 | H23: 197,388 | I23: 188,647 | J23: 183,584 | K23: 181,799 | L23: 176,896 | M23: 170,520 | N23: 169,033 | O23: 171,528 | P23: 177,660 | Q23: 184,300 | R23: 194,041 | S23: 207,564 | T23: 208,580 | U23: 200,131 | V23: 188,310 | W23: 188,357 | X23: 179,352 | Y23: 181,600 | Z23: 175,768 | AA23: 181,531 | AB23: 177,712 | AC23: 173,552 | AD23: 169,115 | AE23: 164,462 | AF23: 159,701 | AG23: 154,929 | AH23: 150,275 | AI23: 145,864 | AJ23: 141,765 | AK23: 138,064 | AL23: 134,782 | AM23: 131,907 | AN23: 129,461 | AO23: 127,463 | AP23: 125,933 | AQ23: 124,869 | AR23: 124,241 | AS23: 123,930 | AT23: 123,804 | AU23: 123,716 | AV23: 123,561 | AW23: 123,250 | AX23: 122,734
A24: 8,851 | B24: 36 | C24: 39 | D24: 0.16 | E24: 21 | F24: 226,198 | G24: 212,151 | H24: 205,228 | I24: 197,356 | J24: 188,617 | K24: 183,555 | L24: 181,770 | M24: 176,868 | N24: 170,493 | O24: 169,006 | P24: 171,501 | Q24: 177,632 | R24: 184,271 | S24: 194,010 | T24: 207,530 | U24: 208,546 | V24: 200,099 | W24: 188,280 | X24: 188,327 | Y24: 179,324 | Z24: 181,571 | AA24: 175,740 | AB24: 181,502 | AC24: 177,683 | AD24: 173,524 | AE24: 169,088 | AF24: 164,436 | AG24: 159,676 | AH24: 154,904 | AI24: 150,251 | AJ24: 145,841 | AK24: 141,743 | AL24: 138,042 | AM24: 134,760 | AN24: 131,886 | AO24: 129,440 | AP24: 127,443 | AQ24: 125,913 | AR24: 124,849 | AS24: 124,222 | AT24: 123,911 | AU24: 123,785 | AV24: 123,697 | AW24: 123,542 | AX24: 123,230
A25: 10,616 | B25: 48 | C25: 45 | D25: 0.20 | E25: 22 | F25: 235,027 | G25: 226,152 | H25: 212,108 | I25: 205,186 | J25: 197,316 | K25: 188,578 | L25: 183,517 | M25: 181,733 | N25: 176,832 | O25: 170,458 | P25: 168,972 | Q25: =P24*(1-$D25/1000) -> 171,466 | R25: 177,595 | S25: 184,233 | T25: 193,970 | U25: 207,488 | V25: 208,504 | W25: 200,058 | X25: 188,241 | Y25: 188,288 | Z25: 179,287 | AA25: 181,534 | AB25: 175,704 | AC25: 181,465 | AD25: 177,647 | AE25: 173,489 | AF25: 169,054 | AG25: 164,402 | AH25: 159,643 | AI25: 154,872 | AJ25: 150,220 | AK25: 145,811 | AL25: 141,714 | AM25: 138,013 | AN25: 134,733 | AO25: 131,859 | AP25: 129,414 | AQ25: 127,417 | AR25: 125,888 | AS25: 124,824 | AT25: 124,196 | AU25: 123,885 | AV25: 123,759 | AW25: 123,671 | AX25: 123,517
A26: 13,109 | B26: 58 | C26: 54 | D26: 0.24 | E26: 23 | F26: 244,398 | G26: =F25*(1-$D26/1000) -> 234,971 | H26: 226,098 | I26: 212,058 | J26: 205,137 | K26: 197,269 | L26: 188,533 | M26: 183,474 | N26: 181,690 | O26: 176,790 | P26: 170,418 | Q26: 168,932 | R26: 171,425 | S26: 177,553 | T26: 184,189 | U26: 193,924 | V26: 207,439 | W26: 208,454 | X26: 200,011 | Y26: 188,197 | Z26: 188,244 | AA26: 179,245 | AB26: 181,491 | AC26: 175,662 | AD26: 181,422 | AE26: 177,605 | AF26: 173,448 | AG26: 169,013 | AH26: 164,363 | AI26: 159,605 | AJ26: 154,836 | AK26: 150,185 | AL26: 145,777 | AM26: 141,680 | AN26: 137,981 | AO26: 134,701 | AP26: 131,827 | AQ26: 129,383 | AR26: 127,387 | AS26: 125,858 | AT26: 124,794 | AU26: 124,167 | AV26: 123,856 | AW26: 123,730 | AX26: 123,642
A27: 16,161 | B27: 63 | C27: 63 | D27: 0.24 | E27: 24 | F27: 258,308 | G27: 244,338 | H27: 234,914 | I27: 226,043 | J27: 212,006 | K27: 205,087 | L27: 197,221 | M27: 188,487 | N27: 183,429 | O27: 181,646 | P27: 176,746 | Q27: 170,376 | R27: 168,890 | S27: 171,384 | T27: 177,510 | U27: 184,144 | V27: 193,877 | W27: 207,388 | X27: 208,404 | Y27: 199,962 | Z27: 188,151 | AA27: 188,198 | AB27: 179,201 | AC27: 181,447 | AD27: 175,620 | AE27: 181,377 | AF27: 177,562 | AG27: 173,405 | AH27: 168,972 | AI27: 164,323 | AJ27: =AI26*(1-$D27/1000) -> 159,566 | AK27: 154,798 | AL27: 150,148 | AM27: 145,741 | AN27: 141,646 | AO27: 137,947 | AP27: 134,668 | AQ27: 131,795 | AR27: 129,351 | AS27: 127,356 | AT27: 125,827 | AU27: 124,764 | AV27: 124,136 | AW27: 123,826 | AX27: 123,700
A28: 20,131 | B28: 68 | C28: 76 | D28: 0.26 | E28: 25 | F28: 264,249 | G28: 258,242 | H28: 244,276 | I28: 234,853 | J28: 225,985 | K28: 211,951 | L28: 205,034 | M28: 197,170 | N28: 188,439 | O28: 183,382 | P28: 181,599 | Q28: 176,701 | R28: 170,332 | S28: 168,847 | T28: 171,340 | U28: 177,464 | V28: 184,097 | W28: 193,827 | X28: 207,335 | Y28: 208,350 | Z28: 199,910 | AA28: 188,102 | AB28: 188,149 | AC28: 179,155 | AD28: 181,400 | AE28: 175,574 | AF28: 181,331 | AG28: =AF27*(1-$D28/1000) -> 177,516 | AH28: 173,361 | AI28: 168,929 | AJ28: 164,281 | AK28: 159,525 | AL28: 154,758 | AM28: 150,109 | AN28: 145,704 | AO28: 141,609 | AP28: 137,912 | AQ28: 134,633 | AR28: 131,761 | AS28: 129,318 | AT28: 127,323 | AU28: 125,795 | AV28: 124,732 | AW28: 124,105 | AX28: 123,794
A29: 23,453 | B29: 71 | C29: 88 | D29: 0.27 | E29: 26 | F29: 265,691 | G29: 264,178 | H29: 258,173 | I29: 244,210 | J29: 234,791 | K29: 225,924 | L29: 211,895 | M29: 204,979 | N29: 197,118 | O29: 188,389 | P29: 183,333 | Q29: 181,550 | R29: 176,654 | S29: 170,287 | T29: 168,802 | U29: 171,294 | V29: 177,417 | W29: 184,048 | X29: 193,775 | Y29: 207,279 | Z29: 208,294 | AA29: 199,857 | AB29: 188,052 | AC29: 188,099 | AD29: 179,107 | AE29: 181,352 | AF29: 175,527 | AG29: 181,282 | AH29: 177,469 | AI29: 173,314 | AJ29: 168,884 | AK29: 164,237 | AL29: 159,483 | AM29: 154,717 | AN29: 150,069 | AO29: 145,665 | AP29: 141,571 | AQ29: 137,875 | AR29: 134,597 | AS29: 131,726 | AT29: 129,284 | AU29: 127,289 | AV29: 125,761 | AW29: 124,698 | AX29: 124,071
A30: 26,010 | B30: 56 | C30: 95 | D30: 0.20 | E30: 27 | F30: 273,299 | G30: 265,637 | H30: 264,124 | I30: 258,120 | J30: 244,160 | K30: 234,743 | L30: 225,878 | M30: 211,851 | N30: 204,937 | O30: 197,077 | P30: 188,350 | Q30: 183,295 | R30: 181,513 | S30: 176,618 | T30: 170,252 | U30: 168,767 | V30: 171,259 | W30: 177,380 | X30: 184,010 | Y30: 193,736 | Z30: 207,237 | AA30: 208,252 | AB30: 199,816 | AC30: 188,014 | AD30: 188,060 | AE30: 179,070 | AF30: 181,314 | AG30: 175,491 | AH30: 181,245 | AI30: 177,432 | AJ30: 173,279 | AK30: 168,849 | AL30: 164,204 | AM30: 159,450 | AN30: 154,685 | AO30: 150,039 | AP30: 145,635 | AQ30: 141,542 | AR30: 137,846 | AS30: 134,570 | AT30: 131,699 | AU30: 129,257 | AV30: 127,263 | AW30: 125,735 | AX30: 124,673
A31: 28,153 | B31: 80 | C31: 102 | D31: 0.29 | E31: 28 | F31: 276,674 | G31: 273,220 | H31: 265,560 | I31: 264,048 | J31: 258,045 | K31: 244,090 | L31: 234,675 | M31: 225,813 | N31: 211,790 | O31: 204,878 | P31: 197,020 | Q31: 188,295 | R31: 183,242 | S31: 181,461 | T31: 176,566 | U31: 170,203 | V31: 168,718 | W31: 171,209 | X31: 177,329 | Y31: 183,957 | Z31: 193,680 | AA31: 207,177 | AB31: 208,191 | AC31: 199,758 | AD31: 187,959 | AE31: 188,006 | AF31: 179,018 | AG31: 181,262 | AH31: 175,441 | AI31: 181,193 | AJ31: 177,381 | AK31: 173,229 | AL31: 168,800 | AM31: 164,156 | AN31: 159,404 | AO31: 154,640 | AP31: 149,995 | AQ31: 145,593 | AR31: 141,501 | AS31: 137,807 | AT31: 134,531 | AU31: 131,661 | AV31: 129,220 | AW31: 127,226 | AX31: 125,699
A32: 28,904 | B32: 94 | C32: 100 | D32: 0.33 | E32: 29 | F32: 288,209 | G32: 276,584 | H32: 273,131 | I32: 265,473 | J32: 263,962 | K32: 257,961 | L32: 244,010 | M32: 234,598 | N32: 225,739 | O32: 211,721 | P32: 204,811 | Q32: 196,956 | R32: 188,234 | S32: 183,183 | T32: 181,401 | U32: 176,509 | V32: 170,147 | W32: 168,663 | X32: 171,153 | Y32: 177,271 | Z32: 183,897 | AA32: 193,617 | AB32: 207,110 | AC32: 208,123 | AD32: 199,693 | AE32: 187,898 | AF32: 187,945 | AG32: 178,960 | AH32: 181,203 | AI32: 175,384 | AJ32: 181,134 | AK32: 177,323 | AL32: 173,172 | AM32: 168,745 | AN32: 164,102 | AO32: 159,352 | AP32: 154,590 | AQ32: 149,946 | AR32: 145,545 | AS32: 141,455 | AT32: 137,762 | AU32: 134,487 | AV32: 131,618 | AW32: 129,178 | AX32: 127,184
A33: 29,923 | B33: 102 | C33: 98 | D33: 0.34 | E33: 30 | F33: 304,065 | G33: 288,112 | H33: 276,491 | I33: 273,039 | J33: 265,384 | K33: 263,873 | L33: 257,874 | M33: 243,928 | N33: 234,519 | O33: 225,663 | P33: 211,650 | Q33: 204,743 | R33: 196,890 | S33: 188,171 | T33: 183,121 | U33: 181,341 | V33: 176,450 | W33: 170,090 | X33: 168,607 | Y33: 171,096 | Z33: 177,212 | AA33: 183,835 | AB33: 193,552 | AC33: 207,040 | AD33: 208,054 | AE33: 199,626 | AF33: 187,835 | AG33: 187,882 | AH33: 178,900 | AI33: 181,142 | AJ33: 175,325 | AK33: 181,073 | AL33: 177,264 | AM33: 173,114 | AN33: 168,689 | AO33: 164,047 | AP33: 159,298 | AQ33: 154,538 | AR33: 149,896 | AS33: 145,496 | AT33: 141,408 | AU33: 137,715 | AV33: 134,442 | AW33: 131,574 | AX33: 129,134
A34: 28,278 | B34: 110 | C34: 91 | D34: 0.35 | E34: 31 | F34: 312,304 | G34: 303,958 | H34: 288,011 | I34: 276,394 | J34: 272,943 | K34: 265,291 | L34: 263,780 | M34: 257,783 | N34: 243,842 | O34: 234,437 | P34: 225,584 | Q34: 211,575 | R34: 204,671 | S34: 196,821 | T34: 188,105 | U34: 183,057 | V34: 181,277 | W34: 176,388 | X34: 170,030 | Y34: 168,547 | Z34: 171,036 | AA34: 177,149 | AB34: 183,771 | AC34: 193,483 | AD34: 206,967 | AE34: 207,980 | AF34: 199,556 | AG34: 187,769 | AH34: 187,816 | AI34: 178,837 | AJ34: 181,078 | AK34: 175,263 | AL34: 181,009 | AM34: 177,201 | AN34: 173,053 | AO34: 168,629 | AP34: 163,990 | AQ34: 159,242 | AR34: 154,484 | AS34: 149,843 | AT34: 145,445 | AU34: 141,358 | AV34: 137,667 | AW34: 134,395 | AX34: 131,528
A35: 26,234 | B35: 132 | C35: 82 | D35: 0.41 | E35: 32 | F35: 321,757 | G35: 312,176 | H35: 303,833 | I35: 287,893 | J35: 276,280 | K35: 272,831 | L35: 265,182 | M35: 263,672 | N35: 257,678 | O35: 243,742 | P35: 234,341 | Q35: 225,491 | R35: 211,489 | S35: 204,587 | T35: 196,740 | U35: 188,027 | V35: 182,982 | W35: 181,202 | X35: 176,315 | Y35: 169,960 | Z35: 168,478 | AA35: 170,965 | AB35: 177,077 | AC35: 183,695 | AD35: 193,404 | AE35: 206,882 | AF35: 207,895 | AG35: 199,474 | AH35: 187,692 | AI35: 187,738 | AJ35: 178,764 | AK35: 181,004 | AL35: 175,191 | AM35: 180,935 | AN35: 177,128 | AO35: 172,982 | AP35: 168,560 | AQ35: 163,922 | AR35: 159,177 | AS35: 154,420 | AT35: 149,782 | AU35: 145,385 | AV35: 141,300 | AW35: 137,610 | AX35: 134,339
A36: 23,126 | B36: 138 | C36: 75 | D36: 0.44 | E36: 33 | F36: 310,246 | G36: 321,614 | H36: 312,037 | I36: 303,698 | J36: 287,765 | K36: 276,157 | L36: 272,710 | M36: 265,064 | N36: 263,555 | O36: 257,563 | P36: 243,634 | Q36: 234,236 | R36: 225,391 | S36: 211,394 | T36: 204,496 | U36: 196,652 | V36: 187,944 | W36: 182,900 | X36: 181,122 | Y36: 176,237 | Z36: 169,885 | AA36: 168,403 | AB36: 170,889 | AC36: 176,998 | AD36: 183,613 | AE36: 193,318 | AF36: 206,790 | AG36: 207,803 | AH36: 199,385 | AI36: 187,608 | AJ36: 187,655 | AK36: 178,684 | AL36: 180,923 | AM36: 175,113 | AN36: 180,854 | AO36: 177,050 | AP36: 172,905 | AQ36: 168,485 | AR36: 163,849 | AS36: 159,106 | AT36: 154,351 | AU36: 149,715 | AV36: 145,321 | AW36: 141,237 | AX36: 137,549
A37: 18,633 | B37: 142 | C37: 62 | D37: 0.48 | E37: 34 | F37: 298,153 | G37: 310,098 | H37: 321,461 | I37: 311,888 | J37: 303,553 | K37: 287,628 | L37: 276,026 | M37: 272,580 | N37: 264,938 | O37: 263,429 | P37: 257,440 | Q37: 243,518 | R37: 234,125 | S37: 225,284 | T37: 211,294 | U37: 204,398 | V37: 196,559 | W37: 187,854 | X37: 182,813 | Y37: 181,036 | Z37: 176,153 | AA37: 169,804 | AB37: 168,323 | AC37: 170,808 | AD37: 176,914 | AE37: 183,526 | AF37: 193,226 | AG37: 206,692 | AH37: 207,704 | AI37: 199,290 | AJ37: 187,519 | AK37: 187,566 | AL37: 178,599 | AM37: 180,837 | AN37: 175,030 | AO37: 180,768 | AP37: 176,965 | AQ37: 172,823 | AR37: 168,405 | AS37: 163,771 | AT37: 159,030 | AU37: 154,278 | AV37: 149,644 | AW37: 145,252 | AX37: 141,170
A38: 15,737 | B38: 162 | C38: 52 | D38: 0.53 | E38: 35 | F38: 304,398 | G38: 297,994 | H38: 309,933 | I38: 321,290 | J38: 311,722 | K38: 303,392 | L38: 287,474 | M38: 275,879 | N38: 272,435 | O38: 264,797 | P38: 263,289 | Q38: 257,303 | R38: 243,388 | S38: 234,000 | T38: 225,164 | U38: 211,181 | V38: 204,289 | W38: 196,454 | X38: 187,754 | Y38: 182,716 | Z38: 180,939 | AA38: 176,059 | AB38: 169,713 | AC38: 168,234 | AD38: 170,717 | AE38: 176,819 | AF38: 183,428 | AG38: 193,123 | AH38: 206,582 | AI38: 207,593 | AJ38: 199,184 | AK38: 187,419 | AL38: 187,466 | AM38: 178,504 | AN38: 180,741 | AO38: 174,937 | AP38: 180,672 | AQ38: 176,871 | AR38: 172,731 | AS38: 168,315 | AT38: 163,684 | AU38: 158,946 | AV38: 154,196 | AW38: 149,564 | AX38: 145,174
A39: 12,983 | B39: 179 | C39: 43 | D39: 0.59 | E39: 36 | F39: 301,862 | G39: 304,217 | H39: 297,818 | I39: 309,749 | J39: 321,099 | K39: 311,538 | L39: 303,212 | M39: 287,304 | N39: 275,715 | O39: 272,273 | P39: 264,640 | Q39: 263,133 | R39: 257,151 | S39: 243,244 | T39: 233,862 | U39: 225,030 | V39: 211,056 | W39: 204,168 | X39: 196,338 | Y39: 187,643 | Z39: 182,607 | AA39: 180,832 | AB39: 175,955 | AC39: 169,613 | AD39: 168,134 | AE39: 170,616 | AF39: 176,715 | AG39: 183,320 | AH39: 193,009 | AI39: 206,459 | AJ39: 207,470 | AK39: 199,066 | AL39: 187,308 | AM39: 187,355 | AN39: 178,398 | AO39: 180,634 | AP39: 174,833 | AQ39: 180,565 | AR39: 176,766 | AS39: 172,628 | AT39: 168,215 | AU39: 163,587 | AV39: 158,851 | AW39: 154,104 | AX39: 149,475
A40: 10,149 | B40: 201 | C40: 34 | D40: 0.68 | E40: 37 | F40: 294,624 | G40: 301,656 | H40: 304,010 | I40: 297,614 | J40: 309,538 | K40: 320,880 | L40: 311,325 | M40: 303,005 | N40: 287,108 | O40: 275,527 | P40: 272,087 | Q40: 264,459 | R40: 262,953 | S40: 256,975 | T40: 243,078 | U40: 233,702 | V40: 224,877 | W40: 210,912 | X40: 204,029 | Y40: 196,204 | Z40: 187,515 | AA40: 182,483 | AB40: 180,708 | AC40: 175,835 | AD40: 169,497 | AE40: 168,019 | AF40: 170,499 | AG40: 176,594 | AH40: 183,195 | AI40: 192,877 | AJ40: 206,318 | AK40: 207,328 | AL40: 198,930 | AM40: 187,180 | AN40: 187,227 | AO40: 178,276 | AP40: 180,511 | AQ40: 174,714 | AR40: 180,442 | AS40: 176,646 | AT40: 172,511 | AU40: 168,101 | AV40: 163,476 | AW40: 158,743 | AX40: 153,999
A41: 7,649 | B41: 188 | C41: 26 | D41: 0.64 | E41: 38 | F41: 292,583 | G41: 294,435 | H41: 301,462 | I41: 303,815 | J41: 297,423 | K41: 309,339 | L41: 320,674 | M41: 311,125 | N41: 302,810 | O41: 286,924 | P41: 275,350 | Q41: 271,913 | R41: 264,289 | S41: 262,784 | T41: 256,810 | U41: 242,922 | V41: =U40*(1-$D41/1000) -> 233,552 | W41: 224,732 | X41: 210,777 | Y41: 203,898 | Z41: 196,078 | AA41: 187,395 | AB41: 182,366 | AC41: 180,592 | AD41: 175,722 | AE41: 169,388 | AF41: 167,911 | AG41: 170,390 | AH41: 176,481 | AI41: 183,077 | AJ41: 192,753 | AK41: 206,186 | AL41: 207,195 | AM41: 198,802 | AN41: 187,060 | AO41: 187,106 | AP41: 178,162 | AQ41: 180,395 | AR41: 174,601 | AS41: 180,326 | AT41: 176,532 | AU41: 172,400 | AV41: 167,993 | AW41: 163,371 | AX41: 158,641
A42: 5,798 | B42: 215 | C42: 20 | D42: 0.73 | E42: 39 | F42: 294,752 | G42: =F41*(1-$D42/1000) -> 292,370 | H42: 294,220 | I42: 301,242 | J42: 303,593 | K42: 297,206 | L42: 309,114 | M42: 320,440 | N42: 310,898 | O42: 302,590 | P42: 286,714 | Q42: 275,149 | R42: 271,714 | S42: 264,096 | T42: 262,593 | U42: 256,623 | V42: 242,744 | W42: 233,381 | X42: 224,568 | Y42: 210,623 | Z42: 203,749 | AA42: 195,935 | AB42: 187,258 | AC42: 182,233 | AD42: 180,461 | AE42: 175,593 | AF42: 169,265 | AG42: 167,789 | AH42: 170,266 | AI42: 176,352 | AJ42: 182,943 | AK42: 192,612 | AL42: 206,035 | AM42: 207,044 | AN42: 198,657 | AO42: 186,923 | AP42: 186,970 | AQ42: 178,032 | AR42: 180,263 | AS42: 174,474 | AT42: 180,194 | AU42: 176,403 | AV42: 172,274 | AW42: 167,870 | AX42: 163,251
A43: 3,980 | B43: 249 | C43: 14 | D43: 0.87 | E43: 40 | F43: 285,097 | G43: 294,495 | H43: 292,114 | I43: 293,963 | J43: 300,979 | K43: 303,328 | L43: 296,947 | M43: 308,844 | N43: 320,160 | O43: 310,627 | P43: 302,325 | Q43: 286,464 | R43: 274,909 | S43: 271,477 | T43: 263,866 | U43: 262,363 | V43: 256,399 | W43: 242,532 | X43: 233,178 | Y43: 224,372 | Z43: 210,439 | AA43: 203,571 | AB43: 195,763 | AC43: 187,094 | AD43: 182,073 | AE43: 180,303 | AF43: 175,440 | AG43: 169,117 | AH43: 167,642 | AI43: 170,117 | AJ43: 176,198 | AK43: 182,783 | AL43: 192,444 | AM43: 205,855 | AN43: 206,863 | AO43: 198,484 | AP43: 186,760 | AQ43: 186,807 | AR43: 177,876 | AS43: 180,106 | AT43: 174,322 | AU43: 180,037 | AV43: 176,249 | AW43: 172,124 | AX43: 167,723
A44: 2,670 | B44: 262 | C44: 10 | D44: 0.95 | E44: 41 | F44: 274,628 | G44: 284,825 | H44: 294,214 | I44: 291,836 | J44: 293,683 | K44: 300,692 | L44: 303,038 | M44: 296,663 | N44: 308,549 | O44: 319,855 | P44: 310,330 | Q44: 302,037 | R44: 286,191 | S44: 274,647 | T44: 271,218 | U44: 263,614 | V44: 262,113 | W44: 256,154 | X44: 242,301 | Y44: 232,955 | Z44: 224,158 | AA44: 210,238 | AB44: 203,377 | AC44: 195,577 | AD44: 186,916 | AE44: 181,900 | AF44: 180,131 | AG44: 175,273 | AH44: 168,955 | AI44: 167,482 | AJ44: 169,955 | AK44: 176,030 | AL44: 182,609 | AM44: 192,261 | AN44: 205,659 | AO44: 206,666 | AP44: 198,295 | AQ44: 186,582 | AR44: 186,628 | AS44: 177,707 | AT44: 179,934 | AU44: 174,155 | AV44: 179,865 | AW44: 176,081 | AX44: 171,959
A45: 1,640 | B45: 271 | C45: 6 | D45: 1.02 | E45: 42 | F45: 264,611 | G45: 274,347 | H45: 284,533 | I45: 293,912 | J45: 291,537 | K45: 293,382 | L45: 300,384 | M45: 302,728 | N45: 296,360 | O45: 308,233 | P45: 319,527 | Q45: 310,012 | R45: 301,727 | S45: 285,897 | T45: 274,365 | U45: 270,940 | V45: 263,344 | W45: 261,845 | X45: 255,892 | Y45: 242,053 | Z45: 232,717 | AA45: 223,929 | AB45: 210,023 | AC45: 203,169 | AD45: 195,376 | AE45: 186,724 | AF45: 181,713 | AG45: 179,947 | AH45: 175,093 | AI45: 168,782 | AJ45: 167,311 | AK45: 169,781 | AL45: 175,849 | AM45: 182,422 | AN45: 192,064 | AO45: =AN44*(1-$D45/1000) -> 205,448 | AP45: 206,454 | AQ45: 198,092 | AR45: 186,391 | AS45: 186,437 | AT45: 177,525 | AU45: 179,750 | AV45: 173,977 | AW45: 179,681 | AX45: 175,901
A46: 900 | B46: 284 | C46: 4 | D46: 1.11 | E46: 43 | F46: 255,038 | G46: 264,316 | H46: 274,041 | I46: 284,216 | J46: 293,585 | K46: 291,212 | L46: 293,055 | M46: 300,050 | N46: 302,391 | O46: 296,030 | P46: 307,890 | Q46: 319,171 | R46: 309,667 | S46: 301,392 | T46: 285,579 | U46: 274,060 | V46: 270,639 | W46: 263,051 | X46: 261,553 | Y46: 255,607 | Z46: 241,783 | AA46: 232,457 | AB46: 223,679 | AC46: 209,789 | AD46: 202,942 | AE46: 195,159 | AF46: 186,516 | AG46: 181,511 | AH46: 179,746 | AI46: 174,898 | AJ46: 168,595 | AK46: 167,124 | AL46: =AK45*(1-$D46/1000) -> 169,592 | AM46: 175,654 | AN46: 182,219 | AO46: 191,850 | AP46: 205,220 | AQ46: 206,224 | AR46: 197,871 | AS46: 186,183 | AT46: 186,230 | AU46: 177,327 | AV46: 179,549 | AW46: 173,783 | AX46: 179,481
A47: 468 | B47: 367 | C47: 2 | D47: 1.49 | E47: 44 | F47: 246,144 | G47: 254,658 | H47: 263,922 | I47: 273,633 | J47: 283,793 | K47: 293,147 | L47: 290,778 | M47: 292,618 | N47: 299,602 | O47: 301,940 | P47: 295,588 | Q47: 307,431 | R47: 318,695 | S47: 309,205 | T47: 300,942 | U47: 285,153 | V47: 273,651 | W47: 270,235 | X47: 262,658 | Y47: 261,163 | Z47: 255,226 | AA47: 241,423 | AB47: 232,111 | AC47: 223,346 | AD47: 209,476 | AE47: 202,640 | AF47: 194,868 | AG47: 186,238 | AH47: 181,240 | AI47: 179,478 | AJ47: 174,637 | AK47: 168,343 | AL47: 166,875 | AM47: 169,339 | AN47: 175,392 | AO47: 181,947 | AP47: 191,564 | AQ47: 204,914 | AR47: 205,917 | AS47: 197,576 | AT47: 185,906 | AU47: 185,952 | AV47: 177,063 | AW47: 179,282 | AX47: 173,524
A48: 204 | B48: 355 | C48: 1 | D48: 1.49 | E48: 45 | F48: 237,911 | G48: 245,777 | H48: 254,278 | I48: 263,528 | J48: 273,224 | K48: 283,369 | L48: 292,710 | M48: 290,344 | N48: 292,181 | O48: 299,155 | P48: 301,490 | Q48: 295,147 | R48: 306,972 | S48: 318,220 | T48: 308,744 | U48: 300,493 | V48: 284,728 | W48: 273,243 | X48: 269,832 | Y48: 262,267 | Z48: 260,773 | AA48: 254,845 | AB48: 241,063 | AC48: 231,765 | AD48: 223,013 | AE48: 209,164 | AF48: 202,338 | AG48: 194,577 | AH48: 185,960 | AI48: 180,970 | AJ48: 179,210 | AK48: 174,377 | AL48: 168,092 | AM48: 166,626 | AN48: 169,086 | AO48: 175,130 | AP48: 181,676 | AQ48: 191,278 | AR48: 204,608 | AS48: 205,610 | AT48: 197,281 | AU48: 185,628 | AV48: 185,675 | AW48: 176,798 | AX48: 179,014
A49: 77 | B49: 381 | C49: 0 | D49: 1.65 | E49: 46 | F49: 230,348 | G49: 237,517 | H49: 245,370 | I49: 253,857 | J49: 263,093 | K49: 272,772 | L49: 282,901 | M49: 292,226 | N49: 289,864 | O49: 291,698 | P49: 298,660 | Q49: 300,991 | R49: 294,659 | S49: 306,464 | T49: 317,693 | U49: 308,233 | V49: 299,996 | W49: 284,257 | X49: 272,791 | Y49: 269,385 | Z49: 261,833 | AA49: 260,342 | AB49: 254,423 | AC49: 240,664 | AD49: 231,381 | AE49: 222,644 | AF49: 208,818 | AG49: 202,003 | AH49: 194,255 | AI49: 185,653 | AJ49: 180,671 | AK49: 178,914 | AL49: 174,088 | AM49: 167,814 | AN49: 166,351 | AO49: 168,806 | AP49: 174,840 | AQ49: 181,375 | AR49: 190,962 | AS49: 204,269 | AT49: 205,269 | AU49: 196,955 | AV49: 185,321 | AW49: 185,367 | AX49: 176,506
A50: 45 | B50: 458 | C50: 0 | D50: 2.02 | E50: 47 | F50: 226,266 | G50: 229,882 | H50: 237,037 | I50: 244,874 | J50: 253,343 | K50: 262,560 | L50: 272,220 | M50: 282,328 | N50: 291,634 | O50: 289,277 | P50: 291,108 | Q50: 298,056 | R50: 300,382 | S50: 294,062 | T50: 305,844 | U50: 317,050 | V50: 307,609 | W50: 299,389 | X50: 283,681 | Y50: 272,239 | Z50: 268,840 | AA50: 261,303 | AB50: 259,815 | AC50: 253,908 | AD50: 240,177 | AE50: 230,913 | AF50: 222,193 | AG50: 208,395 | AH50: 201,594 | AI50: 193,862 | AJ50: 185,277 | AK50: 180,305 | AL50: 178,552 | AM50: 173,736 | AN50: 167,474 | AO50: 166,014 | AP50: 168,465 | AQ50: 174,486 | AR50: 181,008 | AS50: 190,575 | AT50: 203,856 | AU50: 204,854 | AV50: 196,556 | AW50: 184,946 | AX50: 184,992
A51: 10 | B51: 454 | C51: 0 | D51: 2.02 | E51: 48 | F51: 224,431 | G51: 225,808 | H51: 229,417 | I51: 236,557 | J51: 244,378 | K51: 252,831 | L51: 262,029 | M51: 271,670 | N51: 281,757 | O51: 291,044 | P51: 288,692 | Q51: 290,519 | R51: 297,453 | S51: 299,774 | T51: 293,468 | U51: 305,225 | V51: 316,409 | W51: 306,987 | X51: 298,783 | Y51: 283,108 | Z51: 271,688 | AA51: 268,296 | AB51: 260,774 | AC51: 259,290 | AD51: 253,395 | AE51: 239,691 | AF51: 230,446 | AG51: 221,744 | AH51: 207,973 | AI51: 201,186 | AJ51: 193,470 | AK51: 184,902 | AL51: 179,940 | AM51: 178,191 | AN51: 173,385 | AO51: 167,135 | AP51: 165,678 | AQ51: 168,124 | AR51: 174,133 | AS51: 180,642 | AT51: 190,190 | AU51: 203,444 | AV51: 204,440 | AW51: 196,159 | AX51: 184,572
A52: 8 | B52: 490 | C52: 0 | D52: 2.17 | E52: 49 | F52: 226,087 | G52: 223,945 | H52: 225,319 | I52: 228,919 | J52: 236,045 | K52: 243,849 | L52: 252,283 | M52: 261,461 | N52: 271,081 | O52: 281,146 | P52: 290,413 | Q52: 288,066 | R52: 289,889 | S52: 296,808 | T52: 299,124 | U52: 292,832 | V52: 304,564 | W52: 315,723 | X52: 306,322 | Y52: 298,136 | Z52: 282,494 | AA52: 271,099 | AB52: 267,715 | AC52: 260,209 | AD52: 258,728 | AE52: 252,846 | AF52: 239,171 | AG52: 229,946 | AH52: 221,263 | AI52: 207,523 | AJ52: 200,750 | AK52: 193,050 | AL52: 184,502 | AM52: 179,550 | AN52: 177,804 | AO52: 173,009 | AP52: 166,773 | AQ52: 165,319 | AR52: 167,759 | AS52: 173,756 | AT52: 180,250 | AU52: 189,777 | AV52: 203,003 | AW52: 203,996 | AX52: 195,733
B53: 564 | D53: 2.46 | E53: 50 | F53: 229,019 | G53: 225,530 | H53: 223,393 | I53: 224,764 | J53: 228,356 | K53: 235,463 | L53: 243,248 | M53: 251,662 | N53: 260,817 | O53: 270,413 | P53: 280,454 | Q53: 289,698 | R53: 287,357 | S53: 289,175 | T53: 296,077 | U53: 298,388 | V53: 292,110 | W53: 303,814 | X53: 314,946 | Y53: 305,567 | Z53: 297,401 | AA53: 281,798 | AB53: 270,432 | AC53: 267,056 | AD53: 259,568 | AE53: 258,090 | AF53: 252,223 | AG53: 238,582 | AH53: 229,380 | AI53: 220,718 | AJ53: 207,012 | AK53: 200,256 | AL53: 192,575 | AM53: 184,047 | AN53: 179,108 | AO53: 177,367 | AP53: 172,583 | AQ53: 166,362 | AR53: 164,912 | AS53: 167,346 | AT53: 173,328 | AU53: 179,807 | AV53: 189,310 | AW53: 202,503 | AX53: 203,494
B54: 673 | D54: 2.87 | E54: 51 | F54: 234,614 | G54: 228,362 | H54: 224,883 | I54: 222,752 | J54: 224,119 | K54: 227,701 | L54: 234,788 | M54: 242,550 | N54: 250,940 | O54: 260,069 | P54: 269,638 | Q54: 279,649 | R54: 288,867 | S54: 286,532 | T54: 288,346 | U54: 295,228 | V54: 297,532 | W54: 291,273 | X54: 302,942 | Y54: 314,042 | Z54: 304,691 | AA54: 296,548 | AB54: 280,990 | AC54: 269,656 | AD54: 266,290 | AE54: 258,824 | AF54: 257,350 | AG54: 251,499 | AH54: 237,898 | AI54: 228,722 | AJ54: 220,085 | AK54: 206,418 | AL54: 199,681 | AM54: 192,023 | AN54: 183,519 | AO54: 178,594 | AP54: 176,858 | AQ54: 172,088 | AR54: 165,885 | AS54: 164,439 | AT54: 166,866 | AU54: 172,831 | AV54: 179,291 | AW54: 188,767 | AX54: 201,922
B55: 727 | D55: 3.02 | E55: 52 | F55: 240,749 | G55: 233,906 | H55: 227,672 | I55: 224,204 | J55: 222,080 | K55: 223,442 | L55: 227,013 | M55: 234,079 | N55: 241,818 | O55: 250,182 | P55: 259,284 | Q55: 268,823 | R55: 278,805 | S55: 287,995 | T55: 285,667 | U55: 287,475 | V55: 294,337 | W55: 296,633 | X55: 290,393 | Y55: 302,027 | Z55: 313,094 | AA55: 303,771 | AB55: 295,653 | AC55: 280,141 | AD55: 268,842 | AE55: 265,485 | AF55: 258,042 | AG55: 256,573 | AH55: 250,740 | AI55: 237,180 | AJ55: 228,031 | AK55: 219,420 | AL55: 205,794 | AM55: 199,078 | AN55: 191,443 | AO55: 182,965 | AP55: 178,055 | AQ55: 176,324 | AR55: 171,568 | AS55: 165,384 | AT55: 163,942 | AU55: 166,362 | AV55: 172,309 | AW55: 178,749 | AX55: 188,197
B56: 815 | D56: 3.35 | E56: 53 | F56: 243,327 | G56: 239,943 | H56: 233,122 | I56: 226,910 | J56: 223,453 | K56: 221,336 | L56: 222,694 | M56: 226,253 | N56: 233,295 | O56: 241,008 | P56: 249,344 | Q56: 258,415 | R56: 267,923 | S56: 277,871 | T56: 287,030 | U56: 284,710 | V56: 286,512 | W56: 293,351 | X56: 295,640 | Y56: 289,420 | Z56: 301,016 | AA56: 312,045 | AB56: 302,753 | AC56: 294,663 | AD56: 279,203 | AE56: 267,941 | AF56: 264,596 | AG56: 257,178 | AH56: 255,714 | AI56: 249,900 | AJ56: 236,385 | AK56: 227,268 | AL56: 218,685 | AM56: 205,105 | AN56: 198,412 | AO56: 190,802 | AP56: 182,352 | AQ56: 177,459 | AR56: 175,733 | AS56: 170,993 | AT56: 164,830 | AU56: 163,393 | AV56: 165,805 | AW56: 171,732 | AX56: 178,151
B57: 977 | D57: 3.86 | E57: 54 | F57: 253,267 | G57: 242,388 | H57: 239,017 | I57: 232,223 | J57: 226,035 | K57: 222,591 | L57: 220,482 | M57: 221,835 | N57: 225,380 | O57: 232,395 | P57: 240,078 | Q57: 248,382 | R57: 257,418 | S57: 266,889 | T57: 276,799 | U57: 285,923 | V57: =U56*(1-$D57/1000) -> 283,612 | W57: 285,407 | X57: 292,219 | Y57: 294,499 | Z57: 288,304 | AA57: 299,854 | AB57: 310,842 | AC57: 301,586 | AD57: 293,526 | AE57: 278,126 | AF57: 266,908 | AG57: 263,575 | AH57: 256,186 | AI57: 254,727 | AJ57: 248,936 | AK57: 235,473 | AL57: 226,391 | AM57: 217,842 | AN57: 204,314 | AO57: 197,646 | AP57: 190,066 | AQ57: 181,649 | AR57: 176,774 | AS57: 175,055 | AT57: 170,334 | AU57: 164,195 | AV57: 162,763 | AW57: 165,166 | AX57: 171,069
B58: 1,051 | D58: 3.91 | E58: 55 | F58: 269,023 | G58: =F57*(1-$D58/1000) -> 252,278 | H58: 241,441 | I58: 238,083 | J58: 231,316 | K58: 225,152 | L58: 221,722 | M58: 219,621 | N58: 220,968 | O58: 224,499 | P58: 231,487 | Q58: 239,140 | R58: 247,412 | S58: 256,413 | T58: 265,847 | U58: 275,718 | V58: 284,806 | W58: 282,504 | X58: 284,292 | Y58: 291,077 | Z58: 293,349 | AA58: 287,178 | AB58: 298,683 | AC58: 309,627 | AD58: 300,407 | AE58: 292,379 | AF58: 277,040 | AG58: 265,865 | AH58: 262,546 | AI58: 255,185 | AJ58: 253,732 | AK58: 247,964 | AL58: 234,553 | AM58: 225,506 | AN58: 216,991 | AO58: 203,516 | AP58: 196,874 | AQ58: 189,323 | AR58: 180,939 | AS58: 176,083 | AT58: 174,371 | AU58: 169,668 | AV58: 163,553 | AW58: 162,127 | AX58: 164,520
B59: 1,303 | D59: 4.54 | E59: 56 | F59: 286,961 | G59: 267,801 | H59: 251,132 | I59: 240,345 | J59: 237,002 | K59: 230,265 | L59: 224,129 | M59: 220,715 | N59: 218,623 | O59: 219,965 | P59: 223,480 | Q59: 230,436 | R59: 238,054 | S59: 246,288 | T59: 255,248 | U59: 264,640 | V59: 274,466 | W59: 283,513 | X59: 281,221 | Y59: 283,001 | Z59: 289,756 | AA59: 292,017 | AB59: 285,874 | AC59: 297,327 | AD59: 308,221 | AE59: 299,043 | AF59: 291,052 | AG59: 275,782 | AH59: 264,658 | AI59: 261,354 | AJ59: 254,026 | AK59: 252,580 | AL59: 246,838 | AM59: 233,488 | AN59: 224,482 | AO59: 216,005 | AP59: 202,592 | AQ59: 195,980 | AR59: 188,463 | AS59: 180,118 | AT59: 175,284 | AU59: 173,580 | AV59: 168,898 | AW59: 162,810 | AX59: 161,391
B60: 1,538 | D60: 5.17 | E60: 57 | F60: 297,358 | G60: 285,477 | H60: 266,416 | I60: 249,833 | J60: 239,102 | K60: 235,776 | L60: 229,074 | M60: 222,970 | N60: 219,573 | O60: 217,493 | P60: 218,827 | Q60: 222,324 | R60: 229,244 | S60: 236,823 | T60: 245,014 | U60: 253,928 | V60: 263,271 | W60: 273,046 | X60: 282,046 | Y60: 279,767 | Z60: 281,537 | AA60: 288,257 | AB60: 290,506 | AC60: 284,395 | AD60: 295,789 | AE60: 306,627 | AF60: 297,497 | AG60: 289,546 | AH60: 274,355 | AI60: 263,289 | AJ60: 260,002 | AK60: 252,712 | AL60: 251,273 | AM60: 245,561 | AN60: 232,281 | AO60: 223,321 | AP60: 214,888 | AQ60: 201,544 | AR60: 194,966 | AS60: 187,489 | AT60: 179,186 | AU60: 174,377 | AV60: 172,682 | AW60: 168,024 | AX60: 161,968
B61: 1,716 | D61: 5.67 | E61: 58 | F61: 302,876 | G61: 295,673 | H61: 283,859 | I61: 264,907 | J61: 248,418 | K61: 237,747 | L61: 234,441 | M61: 227,776 | N61: 221,707 | O61: 218,329 | P61: 216,260 | Q61: 217,588 | R61: 221,065 | S61: 227,945 | T61: 235,481 | U61: 243,626 | V61: 252,489 | W61: 261,779 | X61: 271,499 | Y61: 280,448 | Z61: 278,182 | AA61: 279,942 | AB61: 286,624 | AC61: 288,860 | AD61: 282,784 | AE61: 294,113 | AF61: 304,890 | AG61: 295,811 | AH61: 287,906 | AI61: 272,801 | AJ61: 261,797 | AK61: 258,529 | AL61: 251,280 | AM61: 249,850 | AN61: 244,170 | AO61: 230,965 | AP61: 222,056 | AQ61: 213,671 | AR61: 200,402 | AS61: 193,862 | AT61: 186,426 | AU61: 178,171 | AV61: 173,389 | AW61: 171,703 | AX61: 167,072
B62: 1,788 | D62: 5.96 | E62: 59 | F62: 299,855 | G62: 301,070 | H62: 293,910 | I62: 282,167 | J62: 263,327 | K62: 246,936 | L62: 236,330 | M62: 233,043 | N62: 226,418 | O62: 220,385 | P62: 217,027 | Q62: 214,971 | R62: 216,290 | S62: 219,746 | T62: 226,586 | U62: 234,077 | V62: 242,174 | W62: 250,984 | X62: 260,218 | Y62: 269,880 | Z62: 278,776 | AA62: 276,523 | AB62: 278,273 | AC62: 284,915 | AD62: 287,138 | AE62: 281,097 | AF62: 292,359 | AG62: 303,072 | AH62: 294,047 | AI62: 286,189 | AJ62: 271,174 | AK62: 260,236 | AL62: 256,987 | AM62: 249,782 | AN62: 248,360 | AO62: 242,714 | AP62: 229,588 | AQ62: 220,732 | AR62: 212,397 | AS62: 199,207 | AT62: 192,706 | AU62: 185,315 | AV62: 177,108 | AW62: 172,355 | AX62: 170,680
B63: 2,041 | D63: 6.74 | E63: 60 | F63: 302,841 | G63: 297,834 | H63: 299,041 | I63: 291,929 | J63: 280,265 | K63: 261,553 | L63: 245,272 | M63: 234,737 | N63: 231,472 | O63: 224,892 | P63: 218,899 | Q63: 215,565 | R63: 213,522 | S63: 214,832 | T63: 218,265 | U63: 225,059 | V63: 232,500 | W63: 240,541 | X63: 249,292 | Y63: 258,465 | Z63: 268,061 | AA63: 276,897 | AB63: 274,659 | AC63: 276,398 | AD63: 282,995 | AE63: 285,203 | AF63: 279,203 | AG63: 290,389 | AH63: 301,029 | AI63: 292,065 | AJ63: 284,260 | AK63: 269,347 | AL63: 258,482 | AM63: 255,255 | AN63: 248,099 | AO63: 246,686 | AP63: 241,078 | AQ63: 228,040 | AR63: 219,244 | AS63: 210,965 | AT63: 197,864 | AU63: 191,407 | AV63: 184,066 | AW63: 175,915 | AX63: 171,194
B64: 2,221 | D64: 7.62 | E64: 61 | F64: 291,635 | G64: 300,535 | H64: 295,566 | I64: 296,764 | J64: 289,706 | K64: 278,131 | L64: 259,561 | M64: 243,404 | N64: 232,949 | O64: 229,709 | P64: 223,180 | Q64: 217,232 | R64: 213,923 | S64: 211,896 | T64: 213,196 | U64: 216,603 | V64: 223,345 | W64: 230,729 | X64: 238,710 | Y64: 247,394 | Z64: 256,496 | AA64: 266,020 | AB64: 274,789 | AC64: 272,568 | AD64: 274,293 | AE64: 280,839 | AF64: 283,031 | AG64: 277,077 | AH64: 288,177 | AI64: 298,737 | AJ64: 289,841 | AK64: 282,095 | AL64: 267,295 | AM64: 256,514 | AN64: 253,311 | AO64: 246,209 | AP64: 244,808 | AQ64: 239,242 | AR64: 226,304 | AS64: 217,575 | AT64: 209,359 | AU64: 196,357 | AV64: 189,949 | AW64: 182,664 | AX64: 174,575
B65: 2,465 | D65: 8.51 | E65: 62 | F65: 289,566 | G65: 289,152 | H65: 297,976 | I65: 293,050 | J65: 294,237 | K65: 287,240 | L65: 275,763 | M65: 257,351 | N65: 241,332 | O65: 230,966 | P65: 227,754 | Q65: 221,280 | R65: 215,383 | S65: 212,102 | T65: 210,092 | U65: 211,381 | V65: 214,759 | W65: 221,444 | X65: 228,765 | Y65: 236,677 | Z65: 245,288 | AA65: 254,313 | AB65: 263,755 | AC65: 272,449 | AD65: 270,247 | AE65: 271,958 | AF65: 278,449 | AG65: 280,621 | AH65: 274,718 | AI65: 285,724 | AJ65: 296,194 | AK65: 287,374 | AL65: 279,694 | AM65: 265,020 | AN65: 254,330 | AO65: 251,155 | AP65: 244,113 | AQ65: 242,724 | AR65: 237,205 | AS65: 224,377 | AT65: =AS64*(1-$D65/1000) -> 215,723 | AU65: 207,576 | AV65: 194,686 | AW65: 188,332 | AX65: 181,109
B66: 2,466 | D66: 8.67 | E66: 63 | F66: 284,445 | G66: 287,056 | H66: 286,646 | I66: 295,393 | J66: 290,509 | K66: 291,686 | L66: 284,750 | M66: 273,372 | N66: 255,120 | O66: 239,240 | P66: 228,964 | Q66: 225,779 | R66: 219,361 | S66: 213,516 | T66: 210,263 | U66: 208,271 | V66: 209,549 | W66: 212,897 | X66: 219,524 | Y66: 226,782 | Z66: 234,626 | AA66: 243,161 | AB66: 252,108 | AC66: 261,469 | AD66: 270,087 | AE66: 267,904 | AF66: 269,600 | AG66: 276,035 | AH66: 278,189 | AI66: 272,336 | AJ66: 283,247 | AK66: 293,626 | AL66: =AK65*(1-$D66/1000) -> 284,882 | AM66: 277,269 | AN66: 262,722 | AO66: 252,125 | AP66: 248,978 | AQ66: 241,997 | AR66: 240,619 | AS66: 235,149 | AT66: 222,432 | AU66: 213,852 | AV66: 205,777 | AW66: 192,998 | AX66: 186,700
B67: 2,709 | D67: 9.67 | E67: 64 | F67: 280,127 | G67: 281,694 | H67: 284,280 | I67: 283,874 | J67: 292,536 | K67: 287,700 | L67: 288,866 | M67: 281,996 | N67: 270,729 | O67: 252,653 | P67: 236,926 | Q67: 226,750 | R67: 223,596 | S67: 217,240 | T67: 211,451 | U67: 208,230 | V67: 206,257 | W67: 207,522 | X67: 210,839 | Y67: 217,401 | Z67: 224,588 | AA67: 232,357 | AB67: 240,810 | AC67: 249,670 | AD67: 258,940 | AE67: 267,476 | AF67: 265,314 | AG67: 266,993 | AH67: 273,365 | AI67: 275,498 | AJ67: 269,703 | AK67: 280,508 | AL67: 290,786 | AM67: 282,127 | AN67: 274,588 | AO67: 260,182 | AP67: 249,687 | AQ67: 246,570 | AR67: 239,657 | AS67: 238,292 | AT67: 232,875 | AU67: 220,281 | AV67: 211,784 | AW67: 203,787 | AX67: 191,132
B68: 2,828 | D68: =B68/F68*1000 -> 10.65 | E68: 65 | F68: 265,577 | G68: 277,144 | H68: 278,695 | I68: 281,252 | J68: 280,851 | K68: 289,421 | L68: 284,636 | M68: 285,790 | N68: 278,993 | O68: 267,846 | P68: 249,962 | Q68: 234,403 | R68: 224,335 | S68: 221,215 | T68: 214,927 | U68: 209,199 | V68: 206,012 | W68: 204,060 | X68: 205,313 | Y68: 208,593 | Z68: 215,086 | AA68: 222,197 | AB68: 229,882 | AC68: 238,246 | AD68: 247,011 | AE68: 256,183 | AF68: 264,627 | AG68: 262,488 | AH68: 264,150 | AI68: 270,454 | AJ68: 272,565 | AK68: 266,831 | AL68: 277,521 | AM68: 287,690 | AN68: 279,123 | AO68: 271,664 | AP68: 257,411 | AQ68: 247,028 | AR68: 243,944 | AS68: 237,105 | AT68: 235,755 | AU68: 230,395 | AV68: 217,935 | AW68: 209,529 | AX68: 201,617
B69: 2,966 | D69: 11.69 | E69: 66 | F69: 253,825 | G69: 262,474 | H69: 273,906 | I69: 275,438 | J69: 277,966 | K69: 277,569 | L69: 286,039 | M69: 281,310 | N69: 282,450 | O69: 275,733 | P69: 264,716 | Q69: 247,042 | R69: 231,664 | S69: 221,714 | T69: 218,630 | U69: 212,415 | V69: 206,755 | W69: 203,605 | X69: 201,676 | Y69: 202,913 | Z69: 206,156 | AA69: 212,573 | AB69: 219,600 | AC69: 227,196 | AD69: 235,462 | AE69: 244,125 | AF69: 253,189 | AG69: 261,535 | AH69: 259,421 | AI69: 261,063 | AJ69: 267,294 | AK69: 269,380 | AL69: 263,713 | AM69: 274,278 | AN69: 284,328 | AO69: 275,862 | AP69: 268,489 | AQ69: 254,403 | AR69: 244,141 | AS69: 241,094 | AT69: 234,334 | AU69: 233,000 | AV69: 227,703 | AW69: 215,388 | AX69: 207,081
B70: 3,061 | D70: 12.53 | E70: 67 | F70: 244,238 | G70: 250,644 | H70: 259,184 | I70: 270,473 | J70: 271,986 | K70: 274,482 | L70: 274,090 | M70: 282,454 | N70: 277,785 | O70: 278,910 | P70: 272,277 | Q70: 261,398 | R70: 243,945 | S70: 228,761 | T70: 218,935 | U70: 215,890 | V70: 209,753 | W70: 204,164 | X70: 201,053 | Y70: 199,148 | Z70: 200,370 | AA70: 203,572 | AB70: 209,908 | AC70: 216,848 | AD70: 224,349 | AE70: 232,511 | AF70: 241,065 | AG70: 250,016 | AH70: 258,257 | AI70: 256,170 | AJ70: 257,791 | AK70: 263,944 | AL70: 266,004 | AM70: 260,408 | AN70: 270,841 | AO70: 280,765 | AP70: 272,404 | AQ70: 265,124 | AR70: 251,215 | AS70: 241,082 | AT70: 238,072 | AU70: 231,397 | AV70: 230,080 | AW70: 224,849 | AX70: 212,689
B71: 3,009 | D71: 13.25 | E71: 68 | F71: 227,063 | G71: 241,001 | H71: 247,322 | I71: 255,749 | J71: 266,888 | K71: 268,382 | L71: 270,845 | M71: 270,458 | N71: 278,711 | O71: 274,103 | P71: 275,214 | Q71: 268,669 | R71: 257,934 | S71: 240,713 | T71: 225,729 | U71: 216,034 | V71: 213,029 | W71: 206,973 | X71: 201,458 | Y71: 198,389 | Z71: 196,509 | AA71: 197,715 | AB71: 200,875 | AC71: 207,127 | AD71: 213,975 | AE71: 221,376 | AF71: 229,429 | AG71: 237,871 | AH71: 246,703 | AI71: 254,835 | AJ71: 252,775 | AK71: 254,375 | AL71: 260,446 | AM71: 262,479 | AN71: 256,957 | AO71: 267,252 | AP71: 277,044 | AQ71: 268,794 | AR71: 261,611 | AS71: 247,886 | AT71: 237,887 | AU71: 234,917 | AV71: 228,331 | AW71: 227,031 | AX71: 221,870
B72: 3,158 | D72: 15.36 | E72: 69 | F72: 205,570 | G72: 223,575 | H72: 237,299 | I72: 243,523 | J72: 251,821 | K72: 262,789 | L72: 264,259 | M72: 266,684 | N72: 266,303 | O72: 274,430 | P72: 269,893 | Q72: 270,986 | R72: 264,542 | S72: 253,972 | T72: 237,015 | U72: 222,262 | V72: 212,715 | W72: 209,756 | X72: 203,794 | Y72: 198,363 | Z72: 195,341 | AA72: 193,490 | AB72: 194,678 | AC72: 197,789 | AD72: 203,945 | AE72: 210,688 | AF72: 217,975 | AG72: 225,905 | AH72: 234,216 | AI72: 242,913 | AJ72: 250,920 | AK72: 248,892 | AL72: 250,467 | AM72: 256,445 | AN72: 258,446 | AO72: 253,009 | AP72: 263,146 | AQ72: 272,788 | AR72: 264,665 | AS72: 257,592 | AT72: 244,078 | AU72: 234,232 | AV72: 231,308 | AW72: 224,823 | AX72: 223,543
B73: 2,873 | D73: 19.57 | E73: 70 | F73: 146,812 | G73: 201,547 | H73: 219,200 | I73: 232,655 | J73: 238,757 | K73: 246,893 | L73: 257,646 | M73: 259,087 | N73: 261,465 | O73: 261,092 | P73: 269,059 | Q73: 264,611 | R73: 265,683 | S73: 259,365 | T73: 249,002 | U73: 232,377 | V73: =U72*(1-$D73/1000) -> 217,912 | W73: 208,552 | X73: 205,652 | Y73: 199,806 | Z73: 194,481 | AA73: 191,519 | AB73: 189,704 | AC73: 190,868 | AD73: 193,918 | AE73: 199,954 | AF73: 206,565 | AG73: 213,709 | AH73: 221,484 | AI73: 229,633 | AJ73: 238,159 | AK73: 246,010 | AL73: 244,021 | AM73: 245,566 | AN73: 251,427 | AO73: 253,389 | AP73: 248,058 | AQ73: 257,996 | AR73: 267,450 | AS73: 259,486 | AT73: 252,551 | AU73: 239,301 | AV73: 229,649 | AW73: 226,782 | AX73: 220,424
B74: 2,446 | D74: 16.91 | E74: 71 | F74: 144,683 | G74: =F73*(1-$D74/1000) -> 144,330 | H74: 198,140 | I74: 215,494 | J74: 228,722 | K74: 234,721 | L74: 242,719 | M74: 253,290 | N74: 254,707 | O74: 257,045 | P74: 256,678 | Q74: 264,511 | R74: 260,138 | S74: 261,192 | T74: 254,980 | U74: 244,792 | V74: 228,448 | W74: 214,228 | X74: 205,026 | Y74: 202,175 | Z74: 196,428 | AA74: 191,193 | AB74: 188,281 | AC74: 186,497 | AD74: 187,641 | AE74: 190,640 | AF74: 196,573 | AG74: 203,072 | AH74: 210,096 | AI74: 217,740 | AJ74: 225,751 | AK74: 234,133 | AL74: 241,851 | AM74: 239,896 | AN74: 241,414 | AO74: 247,176 | AP74: 249,105 | AQ74: 243,865 | AR74: 253,635 | AS74: 262,928 | AT74: 255,099 | AU74: 248,282 | AV74: 235,256 | AW74: 225,766 | AX74: 222,948
B75: 2,713 | D75: 19.56 | E75: 72 | F75: 138,669 | G75: 141,852 | H75: 141,506 | I75: 194,263 | J75: 211,278 | K75: 224,247 | L75: 230,129 | M75: 237,970 | N75: 248,335 | O75: 249,724 | P75: 252,016 | Q75: 251,656 | R75: 259,336 | S75: 255,048 | T75: 256,081 | U75: 249,992 | V75: 240,003 | W75: 223,979 | X75: 210,037 | Y75: 201,015 | Z75: 198,219 | AA75: 192,585 | AB75: 187,453 | AC75: 184,597 | AD75: 182,848 | AE75: 183,970 | AF75: 186,910 | AG75: 192,727 | AH75: 199,099 | AI75: 205,986 | AJ75: 213,480 | AK75: 221,334 | AL75: 229,552 | AM75: 237,119 | AN75: 235,202 | AO75: 236,691 | AP75: 242,340 | AQ75: 244,231 | AR75: 239,093 | AS75: 248,672 | AT75: 257,784 | AU75: 250,108 | AV75: 243,424 | AW75: 230,653 | AX75: 221,349
B76: 2,684 | D76: 19.89 | E76: 73 | F76: 134,953 | G76: 135,911 | H76: 139,031 | I76: 138,692 | J76: 190,400 | K76: 207,076 | L76: 219,787 | M76: 225,552 | N76: 233,237 | O76: 243,396 | P76: 244,757 | Q76: 247,004 | R76: 246,651 | S76: 254,178 | T76: 249,976 | U76: 250,988 | V76: 245,020 | W76: 235,230 | X76: 219,524 | Y76: 205,860 | Z76: 197,017 | AA76: 194,277 | AB76: 188,755 | AC76: 183,725 | AD76: 180,926 | AE76: 179,211 | AF76: 180,311 | AG76: 183,193 | AH76: 188,894 | AI76: 195,140 | AJ76: 201,889 | AK76: 209,234 | AL76: 216,932 | AM76: 224,987 | AN76: 232,403 | AO76: 230,525 | AP76: 231,984 | AQ76: 237,521 | AR76: 239,374 | AS76: 234,338 | AT76: 243,727 | AU76: 252,657 | AV76: 245,134 | AW76: 238,583 | AX76: 226,066
B77: 3,028 | D77: 21.28 | E77: 74 | F77: 142,286 | G77: 132,081 | H77: 133,019 | I77: 136,072 | J77: 135,740 | K77: 186,348 | L77: 202,669 | M77: 215,110 | N77: 220,752 | O77: 228,274 | P77: 238,216 | Q77: 239,549 | R77: 241,747 | S77: 241,402 | T77: 248,769 | U77: 244,656 | V77: 245,647 | W77: 239,805 | X77: 230,224 | Y77: 214,852 | Z77: 201,479 | AA77: 192,825 | AB77: 190,143 | AC77: 184,738 | AD77: 179,815 | AE77: 177,076 | AF77: 175,398 | AG77: 176,474 | AH77: 179,294 | AI77: 184,875 | AJ77: 190,987 | AK77: 197,593 | AL77: 204,781 | AM77: 212,316 | AN77: 220,199 | AO77: 227,457 | AP77: 225,619 | AQ77: 227,047 | AR77: 232,466 | AS77: 234,280 | AT77: 229,351 | AU77: 238,540 | AV77: 247,280 | AW77: 239,917 | AX77: 233,505
B78: 3,391 | D78: 23.03 | E78: 75 | F78: 147,243 | G78: 139,009 | H78: 129,039 | I78: 129,955 | J78: 132,939 | K78: 132,614 | L78: 182,056 | M78: 198,002 | N78: 210,156 | O78: 215,668 | P78: 223,017 | Q78: 232,730 | R78: 234,032 | S78: 236,180 | T78: 235,843 | U78: 243,040 | V78: 239,021 | W78: 239,990 | X78: 234,283 | Y78: 224,922 | Z78: 209,904 | AA78: 196,839 | AB78: 188,384 | AC78: 185,764 | AD78: 180,483 | AE78: 175,674 | AF78: 172,998 | AG78: 171,358 | AH78: 172,410 | AI78: 175,165 | AJ78: 180,617 | AK78: 186,588 | AL78: 193,042 | AM78: 200,065 | AN78: 207,426 | AO78: 215,128 | AP78: 222,219 | AQ78: 220,423 | AR78: 221,818 | AS78: 227,112 | AT78: 228,884 | AU78: 224,069 | AV78: 233,046 | AW78: 241,586 | AX78: 234,392
B79: 3,997 | D79: 27.47 | E79: 76 | F79: 145,513 | G79: 143,198 | H79: 135,191 | I79: 125,495 | J79: 126,386 | K79: 129,287 | L79: 128,972 | M79: 177,055 | N79: 192,563 | O79: 204,383 | P79: 209,744 | Q79: 216,891 | R79: 226,337 | S79: 227,603 | T79: 229,692 | U79: 229,364 | V79: 236,364 | W79: 232,456 | X79: 233,398 | Y79: 227,847 | Z79: 218,743 | AA79: 204,139 | AB79: 191,432 | AC79: 183,209 | AD79: 180,661 | AE79: 175,526 | AF79: 170,848 | AG79: 168,246 | AH79: 166,651 | AI79: 167,674 | AJ79: 170,353 | AK79: 175,656 | AL79: 181,463 | AM79: 187,740 | AN79: 194,570 | AO79: 201,728 | AP79: 209,219 | AQ79: 216,115 | AR79: 214,368 | AS79: 215,725 | AT79: 220,874 | AU79: 222,597 | AV79: 217,914 | AW79: 226,645 | AX79: 234,950
B80: 4,264 | D80: 29.92 | E80: 77 | F80: 142,531 | G80: 141,160 | H80: 138,915 | I80: 131,146 | J80: 121,740 | K80: 122,605 | L80: 125,419 | M80: 125,113 | N80: 171,759 | O80: 186,802 | P80: 198,269 | Q80: 203,469 | R80: 210,402 | S80: 219,566 | T80: 220,794 | U80: 222,821 | V80: 222,503 | W80: 229,293 | X80: 225,502 | Y80: 226,415 | Z80: 221,031 | AA80: 212,199 | AB80: 198,032 | AC80: 185,705 | AD80: 177,728 | AE80: 175,256 | AF80: 170,275 | AG80: 165,737 | AH80: 163,212 | AI80: 161,666 | AJ80: 162,658 | AK80: 165,257 | AL80: 170,401 | AM80: 176,034 | AN80: 182,123 | AO80: 188,749 | AP80: 195,693 | AQ80: 202,960 | AR80: 209,650 | AS80: 207,955 | AT80: 209,271 | AU80: 214,266 | AV80: 215,938 | AW80: 211,395 | AX80: 219,865
B81: 4,708 | D81: 33.73 | E81: 78 | F81: 139,588 | G81: 137,724 | H81: 136,399 | I81: 134,229 | J81: 126,723 | K81: 117,634 | L81: 118,470 | M81: 121,189 | N81: 120,893 | O81: 165,966 | P81: 180,502 | Q81: 191,582 | R81: 196,607 | S81: 203,306 | T81: 212,161 | U81: 213,348 | V81: 215,306 | W81: 214,998 | X81: 221,559 | Y81: 217,896 | Z81: 218,779 | AA81: 213,576 | AB81: 205,042 | AC81: 191,352 | AD81: 179,442 | AE81: 171,734 | AF81: 169,345 | AG81: 164,532 | AH81: 160,147 | AI81: 157,708 | AJ81: 156,213 | AK81: 157,172 | AL81: 159,683 | AM81: 164,653 | AN81: 170,097 | AO81: 175,981 | AP81: 182,383 | AQ81: 189,093 | AR81: 196,114 | AS81: 202,579 | AT81: 200,941 | AU81: 202,213 | AV81: 207,039 | AW81: 208,655 | AX81: 204,265
B82: 5,187 | D82: 37.91 | E82: 79 | F82: 136,822 | G82: 134,296 | H82: 132,503 | I82: 131,228 | J82: 129,141 | K82: 121,919 | L82: 113,175 | M82: 113,978 | N82: 116,595 | O82: 116,310 | P82: 159,674 | Q82: 173,659 | R82: 184,319 | S82: 189,153 | T82: 195,598 | U82: 204,117 | V82: 205,259 | W82: 207,143 | X82: 206,847 | Y82: 213,160 | Z82: 209,635 | AA82: 210,485 | AB82: 205,479 | AC82: 197,269 | AD82: 184,098 | AE82: 172,639 | AF82: 165,223 | AG82: 162,925 | AH82: 158,294 | AI82: 154,076 | AJ82: 151,729 | AK82: 150,291 | AL82: 151,213 | AM82: 153,630 | AN82: 158,411 | AO82: 163,649 | AP82: 169,309 | AQ82: 175,469 | AR82: 181,924 | AS82: 188,679 | AT82: 194,899 | AU82: 193,323 | AV82: 194,547 | AW82: 199,190 | AX82: 200,745
B83: 5,696 | D83: 44.01 | E83: 80 | F83: 129,426 | G83: 130,801 | H83: 128,386 | I83: 126,671 | J83: 125,453 | K83: 123,457 | L83: 116,553 | M83: 108,194 | N83: 108,962 | O83: 111,463 | P83: 111,192 | Q83: 152,646 | R83: 166,016 | S83: 176,207 | T83: 180,829 | U83: 186,990 | V83: 195,134 | W83: 196,226 | X83: 198,027 | Y83: 197,744 | Z83: 203,778 | AA83: 200,409 | AB83: 201,221 | AC83: 196,436 | AD83: 188,587 | AE83: 175,996 | AF83: 165,041 | AG83: 157,952 | AH83: 155,755 | AI83: 151,328 | AJ83: 147,295 | AK83: 145,051 | AL83: 143,677 | AM83: 144,558 | AN83: 146,868 | AO83: 151,440 | AP83: 156,447 | AQ83: 161,858 | AR83: 167,746 | AS83: 173,918 | AT83: 180,376 | AU83: 186,321 | AV83: 184,815 | AW83: 185,985 | AX83: 190,424
B84: 6,121 | D84: 50.82 | E84: 81 | F84: 120,451 | G84: 122,849 | H84: 124,154 | I84: 121,862 | J84: 120,234 | K84: 119,077 | L84: 117,183 | M84: 110,630 | N84: 102,696 | O84: 103,425 | P84: 105,799 | Q84: 105,541 | R84: 144,889 | S84: 157,580 | T84: 167,253 | U84: 171,639 | V84: 177,488 | W84: 185,218 | X84: 186,254 | Y84: 187,964 | Z84: 187,695 | AA84: 193,423 | AB84: 190,225 | AC84: 190,996 | AD84: 186,454 | AE84: 179,004 | AF84: 167,052 | AG84: 156,654 | AH84: 149,925 | AI84: 147,840 | AJ84: 143,638 | AK84: 139,810 | AL84: 137,680 | AM84: 136,375 | AN84: 137,212 | AO84: 139,405 | AP84: 143,744 | AQ84: 148,496 | AR84: 153,633 | AS84: 159,222 | AT84: 165,080 | AU84: 171,209 | AV84: 176,853 | AW84: 175,423 | AX84: 176,534
B85: 6,594 | D85: 59.04 | E85: 82 | F85: 111,686 | G85: 113,340 | H85: 115,596 | I85: 116,823 | J85: 114,667 | K85: 113,135 | L85: 112,047 | M85: 110,265 | N85: 104,099 | O85: 96,633 | P85: 97,319 | Q85: 99,553 | R85: 99,310 | S85: 136,335 | T85: 148,276 | U85: 157,378 | V85: 161,506 | W85: 167,009 | X85: 174,283 | Y85: 175,258 | Z85: 176,866 | AA85: 176,614 | AB85: 182,003 | AC85: 178,994 | AD85: 179,719 | AE85: 175,445 | AF85: 168,435 | AG85: 157,189 | AH85: 147,405 | AI85: 141,074 | AJ85: 139,111 | AK85: 135,157 | AL85: 131,555 | AM85: 129,551 | AN85: 128,324 | AO85: 129,111 | AP85: 131,174 | AQ85: 135,257 | AR85: 139,729 | AS85: 144,562 | AT85: =AS84*(1-$D85/1000) -> 149,821 | AU85: 155,334 | AV85: 161,101 | AW85: 166,411 | AX85: 165,066
B86: 6,933 | D86: 63.46 | E86: 83 | F86: 109,250 | G86: 104,598 | H86: 106,147 | I86: 108,260 | J86: 109,410 | K86: 107,390 | L86: 105,956 | M86: 104,936 | N86: 103,267 | O86: 97,493 | P86: 90,500 | Q86: 91,143 | R86: 93,235 | S86: 93,008 | T86: 127,683 | U86: 138,866 | V86: 147,391 | W86: 151,257 | X86: 156,410 | Y86: 163,223 | Z86: 164,136 | AA86: 165,642 | AB86: 165,406 | AC86: 170,453 | AD86: 167,635 | AE86: 168,314 | AF86: 164,312 | AG86: 157,746 | AH86: 147,214 | AI86: 138,051 | AJ86: 132,121 | AK86: 130,283 | AL86: =AK85*(1-$D86/1000) -> 126,580 | AM86: 123,207 | AN86: 121,330 | AO86: 120,180 | AP86: 120,918 | AQ86: 122,850 | AR86: 126,674 | AS86: 130,862 | AT86: 135,388 | AU86: 140,314 | AV86: 145,476 | AW86: 150,878 | AX86: 155,851
B87: 7,588 | D87: 74.67 | E87: 84 | F87: 101,616 | G87: 101,092 | H87: 96,788 | I87: 98,221 | J87: 100,176 | K87: 101,240 | L87: 99,371 | M87: 98,044 | N87: 97,101 | O87: 95,556 | P87: 90,213 | Q87: 83,742 | R87: 84,337 | S87: 86,273 | T87: 86,062 | U87: 118,149 | V87: 128,497 | W87: 136,385 | X87: 139,962 | Y87: 144,731 | Z87: 151,034 | AA87: 151,879 | AB87: 153,273 | AC87: 153,054 | AD87: 157,725 | AE87: 155,117 | AF87: 155,746 | AG87: 152,042 | AH87: 145,967 | AI87: 136,221 | AJ87: 127,742 | AK87: 122,255 | AL87: 120,555 | AM87: 117,128 | AN87: 114,007 | AO87: 112,270 | AP87: 111,206 | AQ87: 111,889 | AR87: 113,677 | AS87: 117,215 | AT87: 121,090 | AU87: 125,278 | AV87: 129,836 | AW87: 134,613 | AX87: 139,611
B88: 8,200 | D88: 86.22 | E88: 85 | F88: 95,102 | G88: 92,854 | H88: 92,375 | I88: 88,442 | J88: 89,752 | K88: 91,539 | L88: 92,511 | M88: 90,803 | N88: 89,590 | O88: 88,728 | P88: 87,317 | Q88: 82,434 | R88: 76,522 | S88: 77,065 | T88: 78,834 | U88: 78,642 | V88: 107,962 | W88: 117,417 | X88: 124,625 | Y88: 127,894 | Z88: 132,252 | AA88: 138,012 | AB88: 138,784 | AC88: 140,058 | AD88: 139,857 | AE88: 144,125 | AF88: 141,743 | AG88: 142,317 | AH88: 138,932 | AI88: 133,381 | AJ88: 124,476 | AK88: 116,728 | AL88: 111,714 | AM88: 110,160 | AN88: 107,029 | AO88: 104,177 | AP88: 102,590 | AQ88: 101,618 | AR88: 102,241 | AS88: 103,875 | AT88: 107,108 | AU88: 110,649 | AV88: 114,476 | AW88: 118,641 | AX88: 123,006
B89: 8,359 | D89: 103.27 | E89: 86 | F89: 80,946 | G89: 85,281 | H89: 83,266 | I89: 82,836 | J89: 79,309 | K89: 80,483 | L89: 82,086 | M89: 82,957 | N89: 81,426 | O89: 80,338 | P89: 79,566 | Q89: 78,300 | R89: 73,921 | S89: 68,620 | T89: 69,107 | U89: 70,693 | V89: =U88*(1-$D89/1000) -> 70,521 | W89: 96,813 | X89: 105,292 | Y89: 111,756 | Z89: 114,687 | AA89: 118,594 | AB89: 123,760 | AC89: 124,452 | AD89: 125,594 | AE89: 125,415 | AF89: 129,242 | AG89: 127,105 | AH89: 127,620 | AI89: 124,585 | AJ89: 119,607 | AK89: 111,622 | AL89: 104,674 | AM89: 100,178 | AN89: 98,784 | AO89: 95,976 | AP89: 93,419 | AQ89: 91,996 | AR89: 91,124 | AS89: 91,683 | AT89: 93,148 | AU89: 96,047 | AV89: 99,223 | AW89: 102,655 | AX89: 106,389
B90: 7,953 | D90: 113.47 | E90: 87 | F90: 70,089 | G90: =F89*(1-$D90/1000) -> 71,761 | H90: 75,604 | I90: 73,817 | J90: 73,437 | K90: 70,310 | L90: 71,351 | M90: 72,771 | N90: 73,544 | O90: 72,187 | P90: 71,222 | Q90: 70,537 | R90: 69,415 | S90: 65,534 | T90: 60,833 | U90: 61,265 | V90: 62,672 | W90: 62,519 | X90: 85,827 | Y90: 93,345 | Z90: 99,075 | AA90: 101,673 | AB90: 105,137 | AC90: 109,717 | AD90: 110,331 | AE90: 111,343 | AF90: 111,184 | AG90: 114,577 | AH90: 112,683 | AI90: 113,139 | AJ90: 110,449 | AK90: 106,036 | AL90: 98,956 | AM90: 92,796 | AN90: 88,810 | AO90: 87,575 | AP90: 85,086 | AQ90: 82,818 | AR90: 81,557 | AS90: 80,784 | AT90: 81,280 | AU90: 82,579 | AV90: 85,149 | AW90: 87,964 | AX90: 91,007
B91: 7,647 | D91: 132.65 | E91: 88 | F91: 57,647 | G91: 60,792 | H91: 62,242 | I91: 65,575 | J91: 64,025 | K91: 63,695 | L91: 60,983 | M91: 61,886 | N91: 63,118 | O91: 63,788 | P91: 62,611 | Q91: 61,775 | R91: 61,180 | S91: 60,207 | T91: 56,840 | U91: 52,764 | V91: 53,138 | W91: 54,358 | X91: 54,226 | Y91: 74,442 | Z91: 80,962 | AA91: 85,932 | AB91: 88,186 | AC91: 91,191 | AD91: 95,163 | AE91: 95,695 | AF91: 96,573 | AG91: 96,435 | AH91: 99,378 | AI91: 97,735 | AJ91: 98,131 | AK91: 95,797 | AL91: 91,970 | AM91: 85,829 | AN91: 80,487 | AO91: 77,030 | AP91: 75,958 | AQ91: 73,799 | AR91: 71,832 | AS91: 70,738 | AT91: 70,068 | AU91: 70,498 | AV91: 71,624 | AW91: 73,854 | AX91: 76,295
B92: 7,103 | D92: 143.74 | E92: 89 | F92: 49,417 | G92: 49,361 | H92: 52,054 | I92: 53,295 | J92: 56,150 | K92: 54,823 | L92: 54,540 | M92: 52,218 | N92: 52,991 | O92: 54,046 | P92: 54,620 | Q92: 53,611 | R92: 52,895 | S92: 52,387 | T92: 51,553 | U92: 48,670 | V92: 45,180 | W92: 45,500 | X92: 46,545 | Y92: 46,431 | Z92: 63,742 | AA92: 69,325 | AB92: 73,581 | AC92: 75,510 | AD92: 78,083 | AE92: 81,484 | AF92: 81,940 | AG92: 82,692 | AH92: 82,574 | AI92: 85,094 | AJ92: 83,687 | AK92: 84,026 | AL92: 82,028 | AM92: 78,750 | AN92: 73,492 | AO92: 68,918 | AP92: 65,958 | AQ92: 65,040 | AR92: 63,191 | AS92: 61,508 | AT92: 60,571 | AU92: 59,997 | AV92: 60,365 | AW92: 61,329 | AX92: 63,238
B93: 6,713 | D93: 156.19 | E93: 90 | F93: 42,981 | G93: 41,699 | H93: 41,652 | I93: 43,924 | J93: 44,971 | K93: 47,380 | L93: 46,260 | M93: 46,022 | N93: 44,062 | O93: 44,714 | P93: 45,605 | Q93: 46,089 | R93: 45,238 | S93: 44,634 | T93: 44,205 | U93: 43,501 | V93: 41,069 | W93: 38,123 | X93: 38,394 | Y93: 39,275 | Z93: 39,180 | AA93: 53,787 | AB93: 58,497 | AC93: 62,088 | AD93: 63,717 | AE93: 65,888 | AF93: 68,758 | AG93: 69,142 | AH93: 69,777 | AI93: 69,677 | AJ93: 71,803 | AK93: 70,616 | AL93: 70,903 | AM93: 69,216 | AN93: 66,451 | AO93: 62,014 | AP93: 58,154 | AQ93: 55,656 | AR93: 54,882 | AS93: 53,322 | AT93: 51,901 | AU93: 51,110 | AV93: 50,626 | AW93: 50,937 | AX93: 51,751
B94: 6,101 | D94: 188.55 | E94: 91 | F94: 32,358 | G94: 34,877 | H94: 33,837 | I94: 33,798 | J94: 35,642 | K94: 36,492 | L94: 38,447 | M94: 37,538 | N94: 37,344 | O94: 35,754 | P94: 36,284 | Q94: 37,006 | R94: 37,399 | S94: 36,709 | T94: 36,218 | U94: 35,870 | V94: 35,299 | W94: 33,325 | X94: 30,935 | Y94: 31,155 | Z94: 31,870 | AA94: 31,792 | AB94: 43,645 | AC94: 47,468 | AD94: 50,382 | AE94: 51,703 | AF94: 53,465 | AG94: 55,794 | AH94: 56,106 | AI94: 56,621 | AJ94: 56,540 | AK94: 58,265 | AL94: 57,302 | AM94: 57,534 | AN94: 56,166 | AO94: 53,922 | AP94: 50,321 | AQ94: 47,189 | AR94: 45,162 | AS94: 44,534 | AT94: 43,268 | AU94: 42,115 | AV94: 41,474 | AW94: 41,081 | AX94: 41,333
B95: 5,286 | D95: 204.59 | E95: 92 | F95: 25,837 | G95: 25,738 | H95: 27,742 | I95: 26,914 | J95: 26,884 | K95: 28,350 | L95: 29,026 | M95: 30,581 | N95: 29,858 | O95: 29,704 | P95: 28,439 | Q95: 28,860 | R95: 29,435 | S95: 29,748 | T95: 29,198 | U95: 28,808 | V95: 28,531 | W95: 28,077 | X95: 26,507 | Y95: 24,606 | Z95: 24,781 | AA95: 25,350 | AB95: 25,288 | AC95: 34,716 | AD95: 37,756 | AE95: 40,074 | AF95: 41,125 | AG95: 42,527 | AH95: 44,379 | AI95: 44,627 | AJ95: 45,037 | AK95: 44,972 | AL95: 46,345 | AM95: 45,578 | AN95: 45,763 | AO95: 44,675 | AP95: 42,890 | AQ95: 40,026 | AR95: 37,535 | AS95: 35,923 | AT95: 35,423 | AU95: 34,416 | AV95: 33,499 | AW95: 32,989 | AX95: 32,676
B96: 4,390 | D96: 225.41 | E96: 93 | F96: 19,476 | G96: 20,013 | H96: 19,936 | I96: 21,488 | J96: 20,847 | K96: 20,824 | L96: 21,960 | M96: 22,484 | N96: 23,688 | O96: 23,128 | P96: 23,009 | Q96: 22,029 | R96: 22,355 | S96: 22,800 | T96: 23,042 | U96: 22,617 | V96: 22,315 | W96: 22,100 | X96: 21,749 | Y96: 20,532 | Z96: 19,060 | AA96: 19,195 | AB96: 19,636 | AC96: 19,588 | AD96: 26,891 | AE96: 29,246 | AF96: 31,041 | AG96: 31,855 | AH96: 32,941 | AI96: 34,376 | AJ96: 34,568 | AK96: 34,885 | AL96: 34,835 | AM96: 35,898 | AN96: 35,305 | AO96: 35,448 | AP96: 34,605 | AQ96: 33,222 | AR96: 31,004 | AS96: 29,074 | AT96: 27,825 | AU96: 27,438 | AV96: 26,658 | AW96: 25,948 | AX96: 25,553
B97: 3,349 | D97: 264.64 | E97: 94 | F97: 12,655 | G97: 14,322 | H97: 14,717 | I97: 14,660 | J97: 15,802 | K97: 15,330 | L97: 15,313 | M97: 16,148 | N97: 16,534 | O97: 17,419 | P97: 17,007 | Q97: 16,920 | R97: 16,199 | S97: 16,439 | T97: 16,766 | U97: 16,944 | V97: 16,632 | W97: 16,409 | X97: 16,252 | Y97: 15,993 | Z97: 15,099 | AA97: 14,016 | AB97: 14,115 | AC97: 14,439 | AD97: 14,404 | AE97: 19,774 | AF97: 21,506 | AG97: 22,827 | AH97: 23,425 | AI97: 24,223 | AJ97: 25,278 | AK97: 25,420 | AL97: 25,653 | AM97: 25,617 | AN97: 26,398 | AO97: 25,962 | AP97: 26,067 | AQ97: 25,447 | AR97: 24,430 | AS97: 22,799 | AT97: 21,380 | AU97: 20,462 | AV97: 20,177 | AW97: 19,604 | AX97: 19,081
B98: 2,325 | D98: 268.94 | E98: 95 | F98: 8,645 | G98: 9,252 | H98: 10,470 | I98: 10,759 | J98: 10,718 | K98: 11,552 | L98: 11,207 | M98: 11,195 | N98: 11,805 | O98: 12,087 | P98: 12,734 | Q98: 12,433 | R98: 12,369 | S98: 11,843 | T98: 12,018 | U98: 12,257 | V98: 12,387 | W98: 12,159 | X98: 11,996 | Y98: 11,881 | Z98: 11,692 | AA98: 11,038 | AB98: 10,246 | AC98: 10,319 | AD98: 10,556 | AE98: 10,530 | AF98: 14,456 | AG98: 15,722 | AH98: 16,688 | AI98: 17,125 | AJ98: 17,709 | AK98: 18,480 | AL98: 18,583 | AM98: 18,754 | AN98: 18,727 | AO98: 19,299 | AP98: 18,980 | AQ98: 19,057 | AR98: 18,603 | AS98: 17,860 | AT98: 16,668 | AU98: 15,630 | AV98: 14,959 | AW98: 14,751 | AX98: 14,331
B99: 1,901 | D99: 339.52 | E99: 96 | F99: 5,599 | G99: 5,710 | H99: 6,110 | I99: 6,915 | J99: 7,106 | K99: 7,079 | L99: 7,630 | M99: 7,402 | N99: 7,394 | O99: 7,797 | P99: 7,983 | Q99: 8,411 | R99: 8,212 | S99: 8,170 | T99: 7,822 | U99: 7,938 | V99: 8,096 | W99: 8,182 | X99: 8,030 | Y99: 7,923 | Z99: 7,847 | AA99: 7,722 | AB99: 7,290 | AC99: 6,768 | AD99: 6,816 | AE99: 6,972 | AF99: 6,955 | AG99: 9,548 | AH99: 10,384 | AI99: 11,022 | AJ99: 11,311 | AK99: 11,696 | AL99: 12,206 | AM99: 12,274 | AN99: 12,387 | AO99: 12,369 | AP99: 12,746 | AQ99: 12,536 | AR99: 12,586 | AS99: 12,287 | AT99: 11,796 | AU99: 11,008 | AV99: 10,323 | AW99: 9,880 | AX99: 9,742
B100: 1,020 | D100: 353.19 | E100: 97 | F100: 2,888 | G100: 3,622 | H100: 3,693 | I100: 3,952 | J100: 4,473 | K100: 4,596 | L100: 4,579 | M100: 4,935 | N100: 4,788 | O100: 4,782 | P100: 5,043 | Q100: 5,164 | R100: 5,440 | S100: 5,312 | T100: 5,284 | U100: 5,059 | V100: 5,134 | W100: 5,236 | X100: 5,292 | Y100: 5,194 | Z100: 5,125 | AA100: 5,076 | AB100: 4,995 | AC100: 4,716 | AD100: 4,377 | AE100: 4,408 | AF100: 4,510 | AG100: 4,499 | AH100: 6,176 | AI100: 6,717 | AJ100: 7,129 | AK100: 7,316 | AL100: 7,565 | AM100: 7,895 | AN100: 7,939 | AO100: 8,012 | AP100: 8,000 | AQ100: 8,244 | AR100: 8,108 | AS100: 8,141 | AT100: 7,947 | AU100: 7,630 | AV100: 7,120 | AW100: 6,677 | AX100: 6,390
B101: 682 | D101: 339.98 | E101: 98 | F101: 2,006 | G101: 1,906 | H101: 2,390 | I101: 2,438 | J101: 2,609 | K101: 2,952 | L101: 3,034 | M101: 3,022 | N101: 3,257 | O101: 3,160 | P101: 3,157 | Q101: 3,329 | R101: 3,408 | S101: 3,591 | T101: 3,506 | U101: 3,488 | V101: 3,339 | W101: 3,389 | X101: 3,456 | Y101: 3,493 | Z101: 3,428 | AA101: 3,383 | AB101: 3,350 | AC101: 3,297 | AD101: 3,112 | AE101: 2,889 | AF101: 2,910 | AG101: 2,976 | AH101: 2,969 | AI101: 4,076 | AJ101: 4,433 | AK101: 4,705 | AL101: 4,829 | AM101: 4,993 | AN101: 5,211 | AO101: 5,240 | AP101: 5,288 | AQ101: 5,280 | AR101: 5,442 | AS101: 5,352 | AT101: 5,373 | AU101: 5,245 | AV101: 5,036 | AW101: 4,700 | AX101: 4,407
B102: 479 | D102: 306.07 | E102: 99 | F102: 1,565 | G102: 1,392 | H102: 1,323 | I102: 1,659 | J102: 1,692 | K102: 1,810 | L102: 2,049 | M102: 2,105 | N102: 2,097 | O102: 2,260 | P102: 2,193 | Q102: 2,190 | R102: 2,310 | S102: 2,365 | T102: 2,492 | U102: 2,433 | V102: 2,420 | W102: 2,317 | X102: 2,351 | Y102: 2,398 | Z102: 2,424 | AA102: 2,379 | AB102: 2,347 | AC102: 2,325 | AD102: 2,288 | AE102: 2,160 | AF102: 2,005 | AG102: 2,019 | AH102: 2,065 | AI102: 2,060 | AJ102: 2,829 | AK102: 3,076 | AL102: 3,265 | AM102: 3,351 | AN102: 3,465 | AO102: 3,616 | AP102: 3,636 | AQ102: 3,669 | AR102: 3,664 | AS102: 3,776 | AT102: 3,714 | AU102: 3,729 | AV102: 3,640 | AW102: 3,495 | AX102: 3,261
B103: 1,196 | D103: 296.33 | E103: 100+ | F103: 4,036 | G103: =(F102+F103)*(1-$D$103/1000) -> 3,941 | H103: =(G102+G103)*(1-$D$103/1000) -> 3,753 | I103: 3,572 | J103: 3,680 | K103: 3,780 | L103: 3,934 | M103: 4,209 | N103: 4,443 | O103: 4,602 | P103: 4,829 | Q103: 4,941 | R103: 5,018 | S103: 5,156 | T103: 5,293 | U103: 5,478 | V103: 5,566 | W103: 5,620 | X103: 5,585 | Y103: 5,585 | Z103: 5,617 | AA103: 5,658 | AB103: 5,656 | AC103: 5,631 | AD103: 5,598 | AE103: 5,549 | AF103: 5,424 | AG103: 5,228 | AH103: 5,099 | AI103: 5,042 | AJ103: 4,997 | AK103: 5,507 | AL103: 6,040 | AM103: 6,548 | AN103: 6,965 | AO103: 7,339 | AP103: 7,709 | AQ103: 7,983 | AR103: 8,199 | AS103: 8,348 | AT103: 8,531 | AU103: 8,616 | AV103: 8,687 | AW103: 8,674 | AX103: 8,563

Sheet Mężczyźni
A1: Liczba zgonów | B1: Wiek populacji | C1: Wskaźnik umieralności | D1: Liczba osób
A2: M | D2: 2016 | E2: 2017 | F2: 2018 | G2: 2019 | H2: 2020 | I2: 2021 | J2: 2022 | K2: 2023 | L2: 2024 | M2: 2025 | N2: 2026 | O2: 2027 | P2: 2028 | Q2: 2029 | R2: 2030 | S2: 2031 | T2: 2032 | U2: 2033 | V2: 2034 | W2: 2035 | X2: 2036 | Y2: 2037 | Z2: 2038 | AA2: 2039 | AB2: 2040 | AC2: 2041 | AD2: 2042 | AE2: 2043 | AF2: 2044 | AG2: 2045 | AH2: 2046 | AI2: 2047 | AJ2: 2048 | AK2: 2049 | AL2: 2050 | AM2: 2051 | AN2: 2052 | AO2: 2053 | AP2: 2054 | AQ2: 2055 | AR2: 2056 | AS2: 2057 | AT2: 2058 | AU2: 2059 | AV2: 2060
A3: 868 | B3: 0 | C3: =A3/D3*1000 -> 4.67 | D3: 186,054 | E3: =SUMPRODUCT(Kobiety!$C18:$C52,Kobiety!F18:F52)/1000*0.515 -> 196836 | F3: =SUMPRODUCT(Kobiety!$C18:$C52,Kobiety!G18:G52)/1000*0.515 -> 193254 | G3: =SUMPRODUCT(Kobiety!$C18:$C52,Kobiety!H18:H52)/1000*0.515 -> 189188 | H3: =SUMPRODUCT(Kobiety!$C18:$C52,Kobiety!I18:I52)/1000*0.515 -> 184760 | I3: =SUMPRODUCT(Kobiety!$C18:$C52,Kobiety!J18:J52)/1000*0.515 -> 180037 | J3: =SUMPRODUCT(Kobiety!$C18:$C52,Kobiety!K18:K52)/1000*0.515 -> 175083 | K3: =SUMPRODUCT(Kobiety!$C18:$C52,Kobiety!L18:L52)/1000*0.515 -> 170015 | L3: =SUMPRODUCT(Kobiety!$C18:$C52,Kobiety!M18:M52)/1000*0.515 -> 164934 | M3: =SUMPRODUCT(Kobiety!$C18:$C52,Kobiety!N18:N52)/1000*0.515 -> 159980 | N3: =SUMPRODUCT(Kobiety!$C18:$C52,Kobiety!O18:O52)/1000*0.515 -> 155284 | O3: =SUMPRODUCT(Kobiety!$C18:$C52,Kobiety!P18:P52)/1000*0.515 -> 150921 | P3: =SUMPRODUCT(Kobiety!$C18:$C52,Kobiety!Q18:Q52)/1000*0.515 -> 146980 | Q3: =SUMPRODUCT(Kobiety!$C18:$C52,Kobiety!R18:R52)/1000*0.515 -> 143486 | R3: =SUMPRODUCT(Kobiety!$C18:$C52,Kobiety!S18:S52)/1000*0.515 -> 140425 | S3: =SUMPRODUCT(Kobiety!$C18:$C52,Kobiety!T18:T52)/1000*0.515 -> 137821 | T3: =SUMPRODUCT(Kobiety!$C18:$C52,Kobiety!U18:U52)/1000*0.515 -> 135695 | U3: =SUMPRODUCT(Kobiety!$C18:$C52,Kobiety!V18:V52)/1000*0.515 -> 134066 | V3: =SUMPRODUCT(Kobiety!$C18:$C52,Kobiety!W18:W52)/1000*0.515 -> 132933 | W3: =SUMPRODUCT(Kobiety!$C18:$C52,Kobiety!X18:X52)/1000*0.515 -> 132265 | X3: =SUMPRODUCT(Kobiety!$C18:$C52,Kobiety!Y18:Y52)/1000*0.515 -> 131934 | Y3: =SUMPRODUCT(Kobiety!$C18:$C52,Kobiety!Z18:Z52)/1000*0.515 -> 131800 | Z3: =SUMPRODUCT(Kobiety!$C18:$C52,Kobiety!AA18:AA52)/1000*0.515 -> 131706 | AA3: =SUMPRODUCT(Kobiety!$C18:$C52,Kobiety!AB18:AB52)/1000*0.515 -> 131541 | AB3: =SUMPRODUCT(Kobiety!$C18:$C52,Kobiety!AC18:AC52)/1000*0.515 -> 131209 | AC3: =SUMPRODUCT(Kobiety!$C18:$C52,Kobiety!AD18:AD52)/1000*0.515 -> 130661 | AD3: =SUMPRODUCT(Kobiety!$C18:$C52,Kobiety!AE18:AE52)/1000*0.515 -> 129896 | AE3: =SUMPRODUCT(Kobiety!$C18:$C52,Kobiety!AF18:AF52)/1000*0.515 -> 128910 | AF3: =SUMPRODUCT(Kobiety!$C18:$C52,Kobiety!AG18:AG52)/1000*0.515 -> 127723 | AG3: =SUMPRODUCT(Kobiety!$C18:$C52,Kobiety!AH18:AH52)/1000*0.515 -> 126288 | AH3: =SUMPRODUCT(Kobiety!$C18:$C52,Kobiety!AI18:AI52)/1000*0.515 -> 124665 | AI3: =SUMPRODUCT(Kobiety!$C18:$C52,Kobiety!AJ18:AJ52)/1000*0.515 -> 122848 | AJ3: =SUMPRODUCT(Kobiety!$C18:$C52,Kobiety!AK18:AK52)/1000*0.515 -> 120845 | AK3: =SUMPRODUCT(Kobiety!$C18:$C52,Kobiety!AL18:AL52)/1000*0.515 -> 118688 | AL3: =SUMPRODUCT(Kobiety!$C18:$C52,Kobiety!AM18:AM52)/1000*0.515 -> 116399 | AM3: =SUMPRODUCT(Kobiety!$C18:$C52,Kobiety!AN18:AN52)/1000*0.515 -> 114034 | AN3: =SUMPRODUCT(Kobiety!$C18:$C52,Kobiety!AO18:AO52)/1000*0.515 -> 111612 | AO3: =SUMPRODUCT(Kobiety!$C18:$C52,Kobiety!AP18:AP52)/1000*0.515 -> 109180 | AP3: =SUMPRODUCT(Kobiety!$C18:$C52,Kobiety!AQ18:AQ52)/1000*0.515 -> 106783 | AQ3: =SUMPRODUCT(Kobiety!$C18:$C52,Kobiety!AR18:AR52)/1000*0.515 -> 104459 | AR3: =SUMPRODUCT(Kobiety!$C18:$C52,Kobiety!AS18:AS52)/1000*0.515 -> 102231 | AS3: =SUMPRODUCT(Kobiety!$C18:$C52,Kobiety!AT18:AT52)/1000*0.515 -> 100130 | AT3: =SUMPRODUCT(Kobiety!$C18:$C52,Kobiety!AU18:AU52)/1000*0.515 -> 98171 | AU3: =SUMPRODUCT(Kobiety!$C18:$C52,Kobiety!AV18:AV52)/1000*0.515 -> 96369 | AV3: =SUMPRODUCT(Kobiety!$C18:$C52,Kobiety!AW18:AW52)/1000*0.515 -> 94732
A4: 47 | B4: 1 | C4: =A4/D4*1000 -> 0.24 | D4: 192,687 | E4: =D3*(1-$C4/1000) -> 186009 | F4: =E3*(1-$C4/1000) -> 196788 | G4: 193207 | H4: 189142 | I4: 184715 | J4: 179993 | K4: 175041 | L4: 169973 | M4: 164894 | N4: 159941 | O4: 155246 | P4: 150884 | Q4: 146944 | R4: 143451 | S4: 140391 | T4: 137788 | U4: 135662 | V4: 134033 | W4: 132901 | X4: 132233 | Y4: 131902 | Z4: 131767 | AA4: 131674 | AB4: 131509 | AC4: 131177 | AD4: 130629 | AE4: 129865 | AF4: 128879 | AG4: 127692 | AH4: 126258 | AI4: 124635 | AJ4: 122818 | AK4: 120816 | AL4: 118659 | AM4: 116370 | AN4: 114006 | AO4: 111585 | AP4: 109154 | AQ4: 106757 | AR4: 104433 | AS4: 102206 | AT4: 100106 | AU4: 98147 | AV4: 96346
A5: 33 | B5: 2 | C5: =A5/D5*1000 -> 0.17 | D5: 189,754 | E5: =D4*(1-$C5/1000) -> 192653 | F5: 185976 | G5: 196753 | H5: 193173 | I5: 189109 | J5: 184683 | K5: 179961 | L5: 175010 | M5: 169944 | N5: 164865 | O5: 159913 | P5: 155219 | Q5: 150858 | R5: 146918 | S5: 143426 | T5: 140366 | U5: 137764 | V5: 135638 | W5: 134010 | X5: 132878 | Y5: 132210 | Z5: 131879 | AA5: 131745 | AB5: 131651 | AC5: 131486 | AD5: 131154 | AE5: 130606 | AF5: 129842 | AG5: 128857 | AH5: 127669 | AI5: 126236 | AJ5: 124613 | AK5: 122796 | AL5: 120795 | AM5: 118639 | AN5: 116350 | AO5: 113986 | AP5: 111565 | AQ5: 109135 | AR5: 106738 | AS5: 104415 | AT5: 102189 | AU5: 100088 | AV5: 98130
A6: 32 | B6: 3 | C6: 0.16 | D6: 199,982 | E6: 189724 | F6: 192623 | G6: 185947 | H6: 196722 | I6: 193142 | J6: 189079 | K6: 184653 | L6: 179933 | M6: 174982 | N6: 169916 | O6: 164839 | P6: 159887 | Q6: 155194 | R6: 150833 | S6: 146895 | T6: 143403 | U6: 140344 | V6: 137742 | W6: 135616 | X6: 133989 | Y6: 132856 | Z6: 132189 | AA6: 131858 | AB6: 131724 | AC6: 131630 | AD6: 131465 | AE6: 131133 | AF6: 130585 | AG6: 129821 | AH6: 128836 | AI6: 127649 | AJ6: 126215 | AK6: 124593 | AL6: 122777 | AM6: 120775 | AN6: 118620 | AO6: 116331 | AP6: 113968 | AQ6: 111547 | AR6: 109117 | AS6: 106721 | AT6: 104399 | AU6: 102172 | AV6: 100072
A7: 28 | B7: 4 | C7: 0.14 | D7: 199,975 | E7: 199954 | F7: 189697 | G7: 192596 | H7: 185920 | I7: 196694 | J7: 193115 | K7: 189053 | L7: 184627 | M7: 179907 | N7: 174958 | O7: 169893 | P7: 164816 | Q7: 159865 | R7: 155173 | S7: 150812 | T7: 146874 | U7: 143383 | V7: 140324 | W7: 137722 | X7: 135597 | Y7: 133970 | Z7: 132838 | AA7: 132170 | AB7: 131839 | AC7: 131705 | AD7: 131611 | AE7: 131447 | AF7: 131115 | AG7: 130567 | AH7: 129803 | AI7: 128818 | AJ7: 127631 | AK7: 126198 | AL7: 124576 | AM7: 122760 | AN7: 120759 | AO7: 118603 | AP7: 116315 | AQ7: 113952 | AR7: 111532 | AS7: 109102 | AT7: 106706 | AU7: 104384 | AV7: 102158
A8: 16 | B8: 5 | C8: 0.08 | D8: 212,070 | E8: 199960 | F8: 199939 | G8: 189683 | H8: 192581 | I8: 185906 | J8: 196679 | K8: 193101 | L8: 189038 | M8: 184613 | N8: 179894 | O8: 174944 | P8: 169880 | Q8: 164803 | R8: 159853 | S8: 155161 | T8: 150801 | U8: 146863 | V8: 143372 | W8: 140314 | X8: 137712 | Y8: 135587 | Z8: 133960 | AA8: 132828 | AB8: 132160 | AC8: 131829 | AD8: 131695 | AE8: 131601 | AF8: 131437 | AG8: 131105 | AH8: 130557 | AI8: 129793 | AJ8: 128808 | AK8: 127621 | AL8: 126188 | AM8: 124566 | AN8: 122750 | AO8: 120749 | AP8: 118594 | AQ8: 116306 | AR8: 113943 | AS8: 111523 | AT8: 109094 | AU8: 106698 | AV8: 104376
A9: 31 | B9: 6 | C9: 0.14 | D9: 219,392 | E9: 212040 | F9: 199932 | G9: 199911 | H9: 189656 | I9: 192554 | J9: 185880 | K9: 196652 | L9: 193073 | M9: 189012 | N9: 184587 | O9: 179868 | P9: 174920 | Q9: 169856 | R9: 164780 | S9: 159830 | T9: 155139 | U9: 150780 | V9: 146843 | W9: 143352 | X9: 140294 | Y9: 137693 | Z9: 135568 | AA9: 133941 | AB9: 132809 | AC9: 132141 | AD9: 131811 | AE9: 131677 | AF9: 131583 | AG9: 131418 | AH9: 131087 | AI9: 130539 | AJ9: 129775 | AK9: 128790 | AL9: 127603 | AM9: 126170 | AN9: 124549 | AO9: 122733 | AP9: 120732 | AQ9: 118577 | AR9: 116290 | AS9: 113927 | AT9: =AS8*(1-$C9/1000) -> 111508 | AU9: 109078 | AV9: 106683
A10: 19 | B10: 7 | C10: 0.09 | D10: 218,187 | E10: 219373 | F10: 212022 | G10: 199914 | H10: 199893 | I10: 189639 | J10: 192537 | K10: 185864 | L10: 196635 | M10: 193057 | N10: 188995 | O10: 184571 | P10: 179853 | Q10: 174904 | R10: 169841 | S10: 164766 | T10: 159816 | U10: =T9*(1-$C10/1000) -> 155126 | V10: 150767 | W10: 146830 | X10: 143340 | Y10: 140282 | Z10: 137681 | AA10: 135556 | AB10: 133929 | AC10: 132797 | AD10: 132130 | AE10: 131799 | AF10: 131665 | AG10: 131571 | AH10: 131407 | AI10: 131075 | AJ10: 130527 | AK10: =AJ9*(1-$C10/1000) -> 129764 | AL10: 128779 | AM10: 127592 | AN10: 126159 | AO10: 124538 | AP10: 122722 | AQ10: 120722 | AR10: 118567 | AS10: 116280 | AT10: 113917 | AU10: 111498 | AV10: 109069
A11: 21 | B11: 8 | C11: 0.10 | D11: 204,460 | E11: 218165 | F11: 219350 | G11: 212000 | H11: 199894 | I11: 199873 | J11: 189620 | K11: 192517 | L11: 185845 | M11: 196614 | N11: 193037 | O11: 188976 | P11: 184552 | Q11: 179834 | R11: 174886 | S11: 169824 | T11: 164749 | U11: 159800 | V11: 155110 | W11: 150751 | X11: 146815 | Y11: 143325 | Z11: 140267 | AA11: 137666 | AB11: 135542 | AC11: 133915 | AD11: 132784 | AE11: 132116 | AF11: 131786 | AG11: 131652 | AH11: 131558 | AI11: 131393 | AJ11: 131062 | AK11: 130514 | AL11: 129750 | AM11: 128766 | AN11: 127579 | AO11: 126146 | AP11: 124525 | AQ11: 122710 | AR11: 120709 | AS11: 118555 | AT11: 116268 | AU11: 113905 | AV11: 111486
A12: 23 | B12: 9 | C12: 0.12 | D12: 194,387 | E12: 204436 | F12: 218139 | G12: 219324 | H12: 211975 | I12: 199870 | J12: 199849 | K12: 189598 | L12: 192495 | M12: 185823 | N12: 196591 | O12: 193014 | P12: 188953 | Q12: 184530 | R12: 179813 | S12: 174866 | T12: 169804 | U12: 164729 | V12: 159781 | W12: 155091 | X12: 150733 | Y12: 146797 | Z12: 143308 | AA12: 140251 | AB12: 137650 | AC12: 135526 | AD12: 133900 | AE12: 132768 | AF12: 132101 | AG12: 131770 | AH12: 131636 | AI12: 131542 | AJ12: 131378 | AK12: 131046 | AL12: 130498 | AM12: 129735 | AN12: 128750 | AO12: 127564 | AP12: 126132 | AQ12: 124510 | AR12: 122695 | AS12: 120695 | AT12: 118541 | AU12: 116254 | AV12: 113892
A13: 19 | B13: 10 | C13: 0.10 | D13: 187,058 | E13: 194367 | F13: 204415 | G13: 218117 | H13: 219302 | I13: 211953 | J13: 199850 | K13: 199829 | L13: 189578 | M13: 192475 | N13: 185804 | O13: 196571 | P13: 192994 | Q13: 188934 | R13: 184512 | S13: 179795 | T13: 174848 | U13: 169786 | V13: 164712 | W13: 159765 | X13: 155076 | Y13: 150718 | Z13: 146782 | AA13: 143293 | AB13: 140236 | AC13: 137636 | AD13: 135513 | AE13: 133886 | AF13: 132755 | AG13: 132087 | AH13: 131757 | AI13: 131623 | AJ13: 131529 | AK13: 131364 | AL13: 131033 | AM13: 130485 | AN13: 129722 | AO13: 128737 | AP13: 127551 | AQ13: 126119 | AR13: 124498 | AS13: 122683 | AT13: 120683 | AU13: 118529 | AV13: 116242
A14: 22 | B14: 11 | C14: 0.12 | D14: 181,650 | E14: 187035 | F14: 194344 | G14: 204390 | H14: 218090 | I14: 219276 | J14: 211928 | K14: 199826 | L14: 199805 | M14: 189555 | N14: 192452 | O14: 185782 | P14: 196547 | Q14: 192971 | R14: 188911 | S14: 184489 | T14: 179773 | U14: 174827 | V14: 169766 | W14: 164693 | X14: 159746 | Y14: 155057 | Z14: 150700 | AA14: 146765 | AB14: 143276 | AC14: 140219 | AD14: 137619 | AE14: 135496 | AF14: 133870 | AG14: 132739 | AH14: 132071 | AI14: 131741 | AJ14: 131607 | AK14: 131513 | AL14: 131348 | AM14: 131017 | AN14: 130469 | AO14: 129706 | AP14: 128722 | AQ14: 127536 | AR14: 126103 | AS14: 124483 | AT14: 122668 | AU14: 120668 | AV14: 118514
A15: 26 | B15: 12 | C15: 0.15 | D15: 178,055 | E15: 181623 | F15: 187008 | G15: 194315 | H15: 204360 | I15: 218058 | J15: 219244 | K15: 211897 | L15: 199796 | M15: 199775 | N15: 189528 | O15: 192424 | P15: 185754 | Q15: 196519 | R15: 192943 | S15: 188884 | T15: 184462 | U15: 179747 | V15: 174801 | W15: 169741 | X15: 164668 | Y15: 159722 | Z15: 155034 | AA15: 150678 | AB15: 146743 | AC15: 143255 | AD15: 140199 | AE15: 137599 | AF15: 135476 | AG15: 133850 | AH15: 132719 | AI15: 132052 | AJ15: 131722 | AK15: 131587 | AL15: 131494 | AM15: 131329 | AN15: 130998 | AO15: 130450 | AP15: 129687 | AQ15: 128703 | AR15: 127517 | AS15: 126085 | AT15: 124464 | AU15: 122650 | AV15: 120651
A16: 21 | B16: 13 | C16: 0.12 | D16: 180,063 | E16: 178034 | F16: 181602 | G16: 186986 | H16: 194293 | I16: 204337 | J16: 218033 | K16: 219218 | L16: 211872 | M16: 199773 | N16: 199752 | O16: 189506 | P16: 192401 | Q16: 185733 | R16: 196496 | S16: 192920 | T16: 188862 | U16: 184441 | V16: 179726 | W16: 174781 | X16: 169721 | Y16: 164649 | Z16: 159704 | AA16: 155016 | AB16: 150660 | AC16: 146726 | AD16: 143238 | AE16: 140183 | AF16: 137583 | AG16: 135461 | AH16: 133835 | AI16: 132704 | AJ16: 132037 | AK16: 131706 | AL16: 131572 | AM16: 131478 | AN16: 131314 | AO16: 130983 | AP16: 130435 | AQ16: 129672 | AR16: 128688 | AS16: 127502 | AT16: 126070 | AU16: 124450 | AV16: 122636
A17: 35 | B17: 14 | C17: 0.19 | D17: 186,458 | E17: 180029 | F17: 178001 | G17: 181568 | H17: 186951 | I17: 194256 | J17: 204298 | K17: 217992 | L17: 219177 | M17: 211832 | N17: 199736 | O17: 199715 | P17: 189470 | Q17: 192365 | R17: 185698 | S17: 196459 | T17: 192884 | U17: 188826 | V17: 184406 | W17: 179692 | X17: 174748 | Y17: 169689 | Z17: 164618 | AA17: 159674 | AB17: 154987 | AC17: 150632 | AD17: 146699 | AE17: 143211 | AF17: 140156 | AG17: 137558 | AH17: 135435 | AI17: 133809 | AJ17: 132679 | AK17: 132012 | AL17: 131681 | AM17: 131547 | AN17: 131454 | AO17: 131289 | AP17: 130958 | AQ17: 130411 | AR17: 129648 | AS17: 128664 | AT17: 127478 | AU17: 126047 | AV17: 124427
A18: 51 | B18: 15 | C18: 0.27 | D18: 191,491 | E18: 186408 | F18: 179981 | G18: 177953 | H18: 181520 | I18: 186901 | J18: 194204 | K18: 204244 | L18: 217934 | M18: 219118 | N18: 211776 | O18: 199682 | P18: 199661 | Q18: 189419 | R18: 192314 | S18: 185648 | T18: 196406 | U18: 192833 | V18: 188776 | W18: 184357 | X18: 179644 | Y18: 174702 | Z18: 169644 | AA18: 164575 | AB18: 159631 | AC18: 154946 | AD18: 150592 | AE18: 146659 | AF18: 143173 | AG18: 140119 | AH18: 137521 | AI18: 135399 | AJ18: 133774 | AK18: 132643 | AL18: 131977 | AM18: 131646 | AN18: 131512 | AO18: 131419 | AP18: 131254 | AQ18: 130923 | AR18: 130376 | AS18: 129613 | AT18: 128629 | AU18: 127444 | AV18: 126013
A19: 61 | B19: 16 | C19: 0.32 | D19: 193,044 | E19: 191430 | F19: 186349 | G19: 179924 | H19: 177897 | I19: 181462 | J19: 186842 | K19: 194143 | L19: 204179 | M19: 217865 | N19: 219049 | O19: 211709 | P19: 199619 | Q19: 199598 | R19: 189360 | S19: 192253 | T19: 185590 | U19: 196344 | V19: 192772 | W19: 188716 | X19: 184299 | Y19: 179587 | Z19: 174646 | AA19: 169590 | AB19: 164523 | AC19: 159581 | AD19: 154897 | AE19: 150544 | AF19: 146613 | AG19: 143128 | AH19: 140075 | AI19: 137477 | AJ19: 135356 | AK19: 133732 | AL19: 132601 | AM19: 131935 | AN19: 131605 | AO19: 131471 | AP19: 131377 | AQ19: 131213 | AR19: 130882 | AS19: 130335 | AT19: 129572 | AU19: 128589 | AV19: 127404
A20: 88 | B20: 17 | C20: 0.44 | D20: 199,225 | E20: 192959 | F20: 191346 | G20: 186267 | H20: 179845 | I20: 177819 | J20: 181382 | K20: 186760 | L20: 194057 | M20: 204089 | N20: 217769 | O20: 218952 | P20: 211615 | Q20: 199531 | R20: 199510 | S20: 189276 | T20: 192168 | U20: 185508 | V20: 196258 | W20: 192687 | X20: 188633 | Y20: 184217 | Z20: 179508 | AA20: 174569 | AB20: 169516 | AC20: 164450 | AD20: 159510 | AE20: 154828 | AF20: 150478 | AG20: 146548 | AH20: 143065 | AI20: 140013 | AJ20: 137417 | AK20: 135296 | AL20: 133673 | AM20: 132543 | AN20: 131877 | AO20: 131547 | AP20: 131413 | AQ20: 131319 | AR20: 131155 | AS20: 130824 | AT20: 130277 | AU20: 129515 | AV20: 128532
A21: 134 | B21: 18 | C21: 0.65 | D21: 207,024 | E21: 199096 | F21: 192834 | G21: 191222 | H21: 186147 | I21: 179728 | J21: 177704 | K21: 181265 | L21: 186639 | M21: 193932 | N21: 203957 | O21: 217628 | P21: 218811 | Q21: 211478 | R21: 199402 | S21: 199381 | T21: 189153 | U21: 192044 | V21: 185388 | W21: 196131 | X21: 192562 | Y21: 188511 | Z21: 184098 | AA21: 179392 | AB21: 174456 | AC21: 169406 | AD21: 164343 | AE21: 159407 | AF21: 154728 | AG21: 150380 | AH21: 146453 | AI21: 142972 | AJ21: 139922 | AK21: 137328 | AL21: 135209 | AM21: 133586 | AN21: 132457 | AO21: 131791 | AP21: 131461 | AQ21: 131328 | AR21: 131234 | AS21: 131070 | AT21: 130739 | AU21: 130193 | AV21: 129431
A22: 155 | B22: 19 | C22: 0.72 | D22: 215,178 | E22: 206875 | F22: 198953 | G22: 192695 | H22: 191084 | I22: 186012 | J22: 179599 | K22: 177575 | L22: 181134 | M22: 186504 | N22: 193792 | O22: 203810 | P22: 217471 | Q22: 218653 | R22: 211326 | S22: 199258 | T22: 199237 | U22: 189017 | V22: 191905 | W22: 185254 | X22: 195989 | Y22: 192423 | Z22: 188375 | AA22: 183966 | AB22: 179263 | AC22: 174331 | AD22: 169284 | AE22: 164225 | AF22: 159292 | AG22: 154617 | AH22: 150272 | AI22: 146348 | AJ22: 142869 | AK22: 139821 | AL22: 137229 | AM22: 135112 | AN22: 133490 | AO22: 132362 | AP22: 131696 | AQ22: 131367 | AR22: 131233 | AS22: 131140 | AT22: 130976 | AU22: 130645 | AV22: 130099
A23: 169 | B23: 20 | C23: 0.77 | D23: 220,190 | E23: 215013 | F23: 206716 | G23: 198800 | H23: 192547 | I23: 190938 | J23: 185870 | K23: 179461 | L23: 177439 | M23: 180995 | N23: 186361 | O23: 193643 | P23: 203654 | Q23: 217304 | R23: 218485 | S23: 211164 | T23: 199105 | U23: 199084 | V23: 188872 | W23: 191758 | X23: 185112 | Y23: 195839 | Z23: 192275 | AA23: 188231 | AB23: 183824 | AC23: 179125 | AD23: 174197 | AE23: 169154 | AF23: 164099 | AG23: 159170 | AH23: 154498 | AI23: 150156 | AJ23: 146236 | AK23: 142760 | AL23: 139714 | AM23: 137123 | AN23: 135008 | AO23: 133387 | AP23: 132260 | AQ23: 131595 | AR23: 131266 | AS23: 131132 | AT23: 131039 | AU23: 130875 | AV23: 130545
A24: 204 | B24: 21 | C24: 0.87 | D24: 233,867 | E24: 219998 | F24: 214825 | G24: 206536 | H24: 198627 | I24: 192379 | J24: 190771 | K24: 185708 | L24: 179305 | M24: 177284 | N24: 180837 | O24: 186199 | P24: 193474 | Q24: 203476 | R24: 217115 | S24: 218295 | T24: 210980 | U24: 198932 | V24: 198911 | W24: 188707 | X24: 191591 | Y24: 184951 | Z24: 195668 | AA24: 192108 | AB24: 188066 | AC24: 183664 | AD24: 178969 | AE24: 174045 | AF24: 169006 | AG24: 163956 | AH24: 159031 | AI24: 154363 | AJ24: 150026 | AK24: 146108 | AL24: 142635 | AM24: 139592 | AN24: 137004 | AO24: 134890 | AP24: 133271 | AQ24: 132145 | AR24: 131480 | AS24: 131151 | AT24: 131018 | AU24: 130925 | AV24: 130761
A25: 223 | B25: 22 | C25: 0.91 | D25: 244,534 | E25: 233654 | F25: 219797 | G25: 214629 | H25: 206347 | I25: 198445 | J25: 192204 | K25: 190597 | L25: 185538 | M25: 179141 | N25: 177123 | O25: =N24*(1-$C25/1000) -> 180673 | P25: 186029 | Q25: 193298 | R25: 203290 | S25: 216917 | T25: 218096 | U25: 210787 | V25: 198750 | W25: 198729 | X25: 188535 | Y25: 191416 | Z25: 184782 | AA25: 195490 | AB25: 191933 | AC25: 187895 | AD25: 183497 | AE25: 178806 | AF25: 173886 | AG25: 168852 | AH25: 163806 | AI25: 158886 | AJ25: 154222 | AK25: 149889 | AL25: 145975 | AM25: 142505 | AN25: 139465 | AO25: 136879 | AP25: 134767 | AQ25: 133149 | AR25: 132024 | AS25: 131361 | AT25: 131032 | AU25: 130898 | AV25: 130805
A26: 229 | B26: 23 | C26: 0.90 | D26: 254,031 | E26: =D25*(1-$C26/1000) -> 244314 | F26: 233443 | G26: 219599 | H26: 214436 | I26: 206161 | J26: 198266 | K26: 192030 | L26: 190425 | M26: 185371 | N26: 178980 | O26: 176963 | P26: 180510 | Q26: 185861 | R26: 193124 | S26: 203107 | T26: 216721 | U26: 217899 | V26: 210597 | W26: 198571 | X26: 198550 | Y26: 188365 | Z26: 191244 | AA26: 184615 | AB26: 195313 | AC26: 191760 | AD26: 187725 | AE26: 183331 | AF26: 178644 | AG26: 173729 | AH26: 168700 | AI26: 163659 | AJ26: 158743 | AK26: 154083 | AL26: 149754 | AM26: 145843 | AN26: 142377 | AO26: 139339 | AP26: 136756 | AQ26: 134646 | AR26: 133029 | AS26: 131905 | AT26: 131242 | AU26: 130914 | AV26: 130780
A27: 240 | B27: 24 | C27: 0.89 | D27: 269,793 | E27: 253805 | F27: 244096 | G27: 233235 | H27: 219404 | I27: 214245 | J27: 205978 | K27: 198090 | L27: 191860 | M27: 190256 | N27: 185206 | O27: 178820 | P27: 176806 | Q27: 180349 | R27: 185696 | S27: 192952 | T27: 202927 | U27: 216528 | V27: 217705 | W27: 210410 | X27: 198394 | Y27: 198374 | Z27: 188198 | AA27: 191074 | AB27: 184451 | AC27: 195140 | AD27: 191589 | AE27: 187558 | AF27: 183168 | AG27: 178485 | AH27: =AG26*(1-$C27/1000) -> 173575 | AI27: 168550 | AJ27: 163513 | AK27: 158601 | AL27: 153946 | AM27: 149620 | AN27: 145714 | AO27: 142250 | AP27: 139215 | AQ27: 136634 | AR27: 134526 | AS27: 132911 | AT27: 131788 | AU27: 131125 | AV27: 130797
A28: 256 | B28: 25 | C28: 0.93 | D28: 275,212 | E28: 269542 | F28: 253569 | G28: 243869 | H28: 233018 | I28: 219200 | J28: 214046 | K28: 205786 | L28: 197906 | M28: 191681 | N28: 190079 | O28: 185034 | P28: 178654 | Q28: 176641 | R28: 180181 | S28: 185523 | T28: 192772 | U28: 202738 | V28: 216327 | W28: 217503 | X28: 210214 | Y28: 198210 | Z28: 198189 | AA28: 188023 | AB28: 190896 | AC28: 184279 | AD28: 194958 | AE28: =AD27*(1-$C28/1000) -> 191411 | AF28: 187384 | AG28: 182998 | AH28: 178319 | AI28: 173413 | AJ28: 168393 | AK28: 163361 | AL28: 158454 | AM28: 153803 | AN28: 149481 | AO28: 145578 | AP28: 142118 | AQ28: 139086 | AR28: 136507 | AS28: 134401 | AT28: 132787 | AU28: 131665 | AV28: 131003
A29: 266 | B29: 26 | C29: 0.96 | D29: 276,920 | E29: 274948 | F29: 269283 | G29: 253325 | H29: 243635 | I29: 232795 | J29: 218989 | K29: 213840 | L29: 205589 | M29: 197716 | N29: 191497 | O29: 189896 | P29: 184856 | Q29: 178482 | R29: 176472 | S29: 180008 | T29: 185345 | U29: 192587 | V29: 202543 | W29: 216119 | X29: 217294 | Y29: 210012 | Z29: 198020 | AA29: 197999 | AB29: 187842 | AC29: 190712 | AD29: 184102 | AE29: 194771 | AF29: 191227 | AG29: 187204 | AH29: 182822 | AI29: 178148 | AJ29: 173247 | AK29: 168231 | AL29: 163204 | AM29: 158302 | AN29: 153655 | AO29: 149338 | AP29: 145438 | AQ29: 141981 | AR29: 138952 | AS29: 136376 | AT29: 134272 | AU29: 132660 | AV29: 131539
A30: 321 | B30: 27 | C30: 1.13 | D30: 283,673 | E30: 276607 | F30: 274637 | G30: 268978 | H30: 253039 | I30: 243359 | J30: 232531 | K30: 218741 | L30: 213598 | M30: 205356 | N30: 197492 | O30: 191280 | P30: 189681 | Q30: 184647 | R30: 178281 | S30: 176272 | T30: 179805 | U30: 185135 | V30: 192369 | W30: 202314 | X30: 215875 | Y30: 217048 | Z30: 209774 | AA30: 197795 | AB30: 197775 | AC30: 187630 | AD30: 190497 | AE30: 183894 | AF30: 194551 | AG30: 191010 | AH30: 186992 | AI30: 182615 | AJ30: 177947 | AK30: 173051 | AL30: 168041 | AM30: 163019 | AN30: 158123 | AO30: 153481 | AP30: 149169 | AQ30: 145274 | AR30: 141820 | AS30: 138795 | AT30: 136221 | AU30: 134120 | AV30: 132510
A31: 291 | B31: 28 | C31: 1.01 | D31: 288,752 | E31: 283387 | F31: 276328 | G31: 274360 | H31: 268707 | I31: 252784 | J31: 243114 | K31: 232297 | L31: 218521 | M31: 213383 | N31: 205149 | O31: 197293 | P31: 191087 | Q31: 189490 | R31: 184461 | S31: 178101 | T31: 176094 | U31: 179623 | V31: 184949 | W31: 192175 | X31: 202110 | Y31: 215657 | Z31: 216829 | AA31: 209563 | AB31: 197596 | AC31: 197575 | AD31: 187440 | AE31: 190305 | AF31: 183709 | AG31: 194354 | AH31: 190818 | AI31: 186804 | AJ31: 182431 | AK31: 177767 | AL31: 172876 | AM31: 167872 | AN31: 162855 | AO31: 157963 | AP31: 153327 | AQ31: 149018 | AR31: 145127 | AS31: 141677 | AT31: 138655 | AU31: 136084 | AV31: 133984
A32: 325 | B32: 29 | C32: 1.09 | D32: 299,331 | E32: 288438 | F32: 283079 | G32: 276028 | H32: 274062 | I32: 268416 | J32: 252509 | K32: 242850 | L32: 232045 | M32: 218284 | N32: 213151 | O32: 204926 | P32: 197079 | Q32: 190880 | R32: 189285 | S32: 184261 | T32: 177907 | U32: 175903 | V32: 179428 | W32: 184748 | X32: 191967 | Y32: 201890 | Z32: 215423 | AA32: 216594 | AB32: 209336 | AC32: 197382 | AD32: 197361 | AE32: 187237 | AF32: 190098 | AG32: 183509 | AH32: 194143 | AI32: 190611 | AJ32: 186601 | AK32: 182233 | AL32: 177574 | AM32: 172689 | AN32: 167689 | AO32: 162678 | AP32: 157792 | AQ32: 153160 | AR32: 148856 | AS32: 144970 | AT32: 141524 | AU32: 138505 | AV32: 135936
A33: 355 | B33: 30 | C33: 1.12 | D33: 315,808 | E33: 298995 | F33: 288114 | G33: 282761 | H33: 275718 | I33: 273754 | J33: 268114 | K33: 252225 | L33: 242577 | M33: 231784 | N33: 218038 | O33: 212912 | P33: 204696 | Q33: 196857 | R33: 190665 | S33: 189072 | T33: 184053 | U33: 177707 | V33: 175705 | W33: 179227 | X33: 184540 | Y33: 191751 | Z33: 201664 | AA33: 215181 | AB33: 216350 | AC33: 209100 | AD33: 197160 | AE33: 197139 | AF33: 187026 | AG33: 189884 | AH33: 183303 | AI33: 193925 | AJ33: 190397 | AK33: 186391 | AL33: 182028 | AM33: 177375 | AN33: 172495 | AO33: 167501 | AP33: 162495 | AQ33: 157614 | AR33: 152988 | AS33: 148689 | AT33: 144807 | AU33: 141365 | AV33: 138349
A34: 432 | B34: 31 | C34: 1.33 | D34: 325,106 | E34: 315388 | F34: 298597 | G34: 287731 | H34: 282385 | I34: 275351 | J34: 273390 | K34: 267758 | L34: 251890 | M34: 242255 | N34: 231476 | O34: 217749 | P34: 212629 | Q34: 204424 | R34: 196596 | S34: 190412 | T34: 188821 | U34: 183809 | V34: 177471 | W34: 175472 | X34: 178988 | Y34: 184295 | Z34: 191496 | AA34: 201396 | AB34: 214895 | AC34: 216063 | AD34: 208822 | AE34: 196898 | AF34: 196877 | AG34: 186778 | AH34: 189632 | AI34: 183059 | AJ34: 193668 | AK34: 190144 | AL34: 186143 | AM34: 181786 | AN34: 177139 | AO34: 172265 | AP34: 167278 | AQ34: 162279 | AR34: 157405 | AS34: 152785 | AT34: 148492 | AU34: 144614 | AV34: 141177
A35: 465 | B35: 32 | C35: 1.40 | D35: 332,846 | E35: 324652 | F35: 314948 | G35: 298180 | H35: 287329 | I35: 281991 | J35: 274967 | K35: 273008 | L35: 267384 | M35: 251538 | N35: 241916 | O35: 231152 | P35: 217444 | Q35: 212332 | R35: 204138 | S35: 196321 | T35: 190146 | U35: 188557 | V35: 183552 | W35: 177223 | X35: 175227 | Y35: 178738 | Z35: 184037 | AA35: 191229 | AB35: 201114 | AC35: 214595 | AD35: 215761 | AE35: 208531 | AF35: 196623 | AG35: 196602 | AH35: 186517 | AI35: 189367 | AJ35: 182804 | AK35: 193397 | AL35: 189878 | AM35: 185883 | AN35: 181532 | AO35: 176891 | AP35: 172025 | AQ35: 167045 | AR35: 162053 | AS35: 157185 | AT35: 152571 | AU35: 148284 | AV35: 144412
A36: 485 | B36: 33 | C36: 1.50 | D36: 322,933 | E36: 332346 | F36: 324164 | G36: 314475 | H36: 297732 | I36: 286898 | J36: 281567 | K36: 274554 | L36: 272598 | M36: 266982 | N36: 251161 | O36: 241553 | P36: 230805 | Q36: 217118 | R36: 212013 | S36: 203832 | T36: 196026 | U36: 189861 | V36: 188274 | W36: 183276 | X36: 176957 | Y36: 174963 | Z36: 178470 | AA36: 183761 | AB36: 190941 | AC36: 200812 | AD36: 214272 | AE36: 215437 | AF36: 208217 | AG36: 196327 | AH36: 196307 | AI36: 186237 | AJ36: 189083 | AK36: 182529 | AL36: 193107 | AM36: 189593 | AN36: 185604 | AO36: 181260 | AP36: 176626 | AQ36: 171766 | AR36: 166794 | AS36: 161809 | AT36: 156949 | AU36: 152342 | AV36: 148061
A37: 502 | B37: 34 | C37: 1.63 | D37: 307,729 | E37: 322406 | F37: 331804 | G37: 323635 | H37: 313962 | I37: 297247 | J37: 286430 | K37: 281108 | L37: 274106 | M37: 272153 | N37: 266546 | O37: 250751 | P37: 241159 | Q37: 230429 | R37: 216764 | S37: 211667 | T37: 203499 | U37: 195706 | V37: 189551 | W37: 187966 | X37: 182977 | Y37: 176669 | Z37: 174678 | AA37: 178179 | AB37: 183461 | AC37: 190630 | AD37: 200485 | AE37: 213923 | AF37: 215085 | AG37: 207878 | AH37: 196007 | AI37: 195987 | AJ37: 185933 | AK37: 188774 | AL37: 182231 | AM37: 192791 | AN37: 189283 | AO37: 185301 | AP37: 180964 | AQ37: 176338 | AR37: 171486 | AS37: 166522 | AT37: 161545 | AU37: 156693 | AV37: 152094
A38: 531 | B38: 35 | C38: 1.70 | D38: 312,861 | E38: 307207 | F38: 321859 | G38: 331241 | H38: 323086 | I38: 313429 | J38: 296742 | K38: 285944 | L38: 280631 | M38: 273640 | N38: 271691 | O38: 266094 | P38: 250325 | Q38: 240750 | R38: 230038 | S38: 216396 | T38: 211308 | U38: 203154 | V38: 195374 | W38: 189229 | X38: 187647 | Y38: 182667 | Z38: 176369 | AA38: 174382 | AB38: 177876 | AC38: 183150 | AD38: 190306 | AE38: 200144 | AF38: 213560 | AG38: 214720 | AH38: 207525 | AI38: 195674 | AJ38: 195654 | AK38: 185618 | AL38: 188454 | AM38: 181922 | AN38: 192464 | AO38: 188962 | AP38: 184987 | AQ38: 180657 | AR38: 176038 | AS38: 171195 | AT38: 166239 | AU38: 161271 | AV38: 156427
A39: 573 | B39: 36 | C39: 1.83 | D39: 312,329 | E39: 312287 | F39: 306643 | G39: 321269 | H39: 330633 | I39: 322493 | J39: 312854 | K39: 296198 | L39: 285419 | M39: 280116 | N39: 273138 | O39: 271193 | P39: 265606 | Q39: 249866 | R39: 240308 | S39: 229616 | T39: 215999 | U39: 210920 | V39: 202781 | W39: 195016 | X39: 188882 | Y39: 187303 | Z39: 182332 | AA39: 176045 | AB39: 174062 | AC39: 177550 | AD39: 182814 | AE39: 189957 | AF39: 199777 | AG39: 213168 | AH39: 214326 | AI39: 207144 | AJ39: 195315 | AK39: 195295 | AL39: 185277 | AM39: 188108 | AN39: 181588 | AO39: 192111 | AP39: 188615 | AQ39: 184648 | AR39: 180325 | AS39: 175715 | AT39: 170881 | AU39: 165934 | AV39: 160975
A40: 633 | B40: 37 | C40: 2.09 | D40: 303,259 | E40: 311677 | F40: 311635 | G40: 306003 | H40: 320598 | I40: 329943 | J40: 321820 | K40: 312201 | L40: 295579 | M40: 284823 | N40: 279532 | O40: 272568 | P40: 270627 | Q40: 265051 | R40: 249344 | S40: 239806 | T40: 229136 | U40: 215548 | V40: 210480 | W40: 202358 | X40: 194609 | Y40: 188488 | Z40: 186912 | AA40: 181951 | AB40: 175678 | AC40: 173698 | AD40: 177180 | AE40: 182432 | AF40: 189561 | AG40: 199360 | AH40: 212723 | AI40: 213879 | AJ40: 206712 | AK40: 194908 | AL40: 194887 | AM40: 184890 | AN40: 187715 | AO40: 181209 | AP40: 191710 | AQ40: 188222 | AR40: 184262 | AS40: 179949 | AT40: 175349 | AU40: 170524 | AV40: 165588
A41: 660 | B41: 38 | C41: 2.19 | D41: 301,253 | E41: 302595 | F41: 310994 | G41: 310952 | H41: 305333 | I41: 319896 | J41: 329220 | K41: 321115 | L41: 311517 | M41: 294932 | N41: 284199 | O41: 278919 | P41: 271971 | Q41: 270034 | R41: 264471 | S41: 248798 | T41: =S40*(1-$C41/1000) -> 239281 | U41: 228634 | V41: 215076 | W41: 210019 | X41: 201915 | Y41: 194182 | Z41: 188075 | AA41: 186503 | AB41: 181552 | AC41: 175293 | AD41: 173318 | AE41: 176791 | AF41: 182033 | AG41: 189146 | AH41: 198923 | AI41: 212257 | AJ41: 213411 | AK41: 206259 | AL41: 194481 | AM41: 194460 | AN41: 184485 | AO41: 187304 | AP41: 180812 | AQ41: 191290 | AR41: 187809 | AS41: 183858 | AT41: 179555 | AU41: 174964 | AV41: 170151
A42: 662 | B42: 39 | C42: 2.19 | D42: 302,036 | E42: =D41*(1-$C42/1000) -> 300593 | F42: 301931 | G42: 310313 | H42: 310271 | I42: 304663 | J42: 319194 | K42: 328499 | L42: 320411 | M42: 310834 | N42: 294285 | O42: 283576 | P42: 278308 | Q42: 271375 | R42: 269442 | S42: 263891 | T42: 248253 | U42: 238756 | V42: 228133 | W42: 214604 | X42: 209558 | Y42: 201472 | Z42: 193757 | AA42: 187662 | AB42: 186094 | AC42: 181155 | AD42: 174909 | AE42: 172938 | AF42: 176404 | AG42: 181634 | AH42: 188731 | AI42: 198487 | AJ42: 211792 | AK42: 212943 | AL42: 205807 | AM42: 194054 | AN42: 194034 | AO42: 184081 | AP42: 186894 | AQ42: 180416 | AR42: 190871 | AS42: 187398 | AT42: 183456 | AU42: 179161 | AV42: 174581
A43: 722 | B43: 40 | C43: 2.47 | D43: 291,786 | E43: 301289 | F43: 299849 | G43: 301184 | H43: 309545 | I43: 309503 | J43: 303910 | K43: 318405 | L43: 327686 | M43: 319619 | N43: 310065 | O43: 293557 | P43: 282875 | Q43: 277619 | R43: 270704 | S43: 268775 | T43: 263238 | U43: 247639 | V43: 238166 | W43: 227569 | X43: 214073 | Y43: 209040 | Z43: 200974 | AA43: 193277 | AB43: 187198 | AC43: 185633 | AD43: 180706 | AE43: 174476 | AF43: 172510 | AG43: 175967 | AH43: 181184 | AI43: 188264 | AJ43: 197996 | AK43: 211268 | AL43: 212416 | AM43: 205298 | AN43: 193574 | AO43: 193554 | AP43: 183625 | AQ43: 186431 | AR43: 179970 | AS43: 190399 | AT43: 186934 | AU43: 183002 | AV43: 178718
A44: 753 | B44: 41 | C44: 2.67 | D44: 281,945 | E44: 291007 | F44: 300484 | G44: 299048 | H44: 300380 | I44: 308718 | J44: 308677 | K44: 303098 | L44: 317554 | M44: 326811 | N44: 318765 | O44: 309237 | P44: 292773 | Q44: 282119 | R44: 276878 | S44: 269981 | T44: 268058 | U44: 262535 | V44: 246977 | W44: 237530 | X44: 226961 | Y44: 213501 | Z44: 208482 | AA44: 200437 | AB44: 192761 | AC44: 186698 | AD44: 185138 | AE44: 180224 | AF44: 174010 | AG44: 172049 | AH44: 175497 | AI44: 180700 | AJ44: 187761 | AK44: 197467 | AL44: 210703 | AM44: 211849 | AN44: 204749 | AO44: 193057 | AP44: 193037 | AQ44: 183135 | AR44: 185933 | AS44: 179489 | AT44: 189890 | AU44: 186435 | AV44: 182513
A45: 806 | B45: 42 | C45: 2.98 | D45: 270,382 | E45: 281105 | F45: 290139 | G45: 299588 | H45: 298157 | I45: 299484 | J45: 307798 | K45: 307756 | L45: 302194 | M45: 316608 | N45: 325836 | O45: 317815 | P45: 308315 | Q45: 291900 | R45: 281278 | S45: 276052 | T45: 269176 | U45: 267259 | V45: 261752 | W45: 246241 | X45: 236822 | Y45: 226284 | Z45: 212865 | AA45: 207860 | AB45: 199839 | AC45: 192187 | AD45: 186142 | AE45: 184586 | AF45: 179686 | AG45: 173491 | AH45: 171536 | AI45: 174974 | AJ45: 180162 | AK45: 187201 | AL45: 196879 | AM45: =AL44*(1-$C45/1000) -> 210075 | AN45: 211217 | AO45: 204139 | AP45: 192482 | AQ45: 192462 | AR45: 182589 | AS45: 185379 | AT45: 178954 | AU45: 189324 | AV45: 185879
A46: 929 | B46: 43 | C46: 3.56 | D46: 260,688 | E46: 269418 | F46: 280103 | G46: 289105 | H46: 298521 | I46: 297094 | J46: 298417 | K46: 306701 | L46: 306660 | M46: 301117 | N46: 315479 | O46: 324675 | P46: 316682 | Q46: 307216 | R46: 290860 | S46: 280276 | T46: 275069 | U46: 268217 | V46: 266306 | W46: 260820 | X46: 245363 | Y46: 235978 | Z46: 225478 | AA46: 212106 | AB46: 207119 | AC46: 199127 | AD46: 191502 | AE46: 185478 | AF46: 183928 | AG46: 179046 | AH46: 172873 | AI46: 170925 | AJ46: =AI45*(1-$C46/1000) -> 174351 | AK46: 179520 | AL46: 186534 | AM46: 196177 | AN46: 209327 | AO46: 210464 | AP46: 203412 | AQ46: 191796 | AR46: 191776 | AS46: 181938 | AT46: 184718 | AU46: 178316 | AV46: 188649
A47: 952 | B47: 44 | C47: 3.82 | D47: 249,028 | E47: 259691 | F47: 268389 | G47: 279032 | H47: 288000 | I47: 297379 | J47: 295958 | K47: 297276 | L47: 305528 | M47: 305487 | N47: 299966 | O47: 314273 | P47: 323434 | Q47: 315471 | R47: 306042 | S47: 289748 | T47: 279204 | U47: 274017 | V47: 267191 | W47: 265288 | X47: 259823 | Y47: 244425 | Z47: 235075 | AA47: 224616 | AB47: 211296 | AC47: 206328 | AD47: 198366 | AE47: 190770 | AF47: 184769 | AG47: 183225 | AH47: 178362 | AI47: 172212 | AJ47: 170272 | AK47: 173684 | AL47: 178833 | AM47: 185821 | AN47: 195427 | AO47: 208526 | AP47: 209660 | AQ47: 202634 | AR47: 191063 | AS47: 191043 | AT47: 181243 | AU47: 184012 | AV47: 177635
A48: 1,067 | B48: 45 | C48: 4.41 | D48: 241,744 | E48: 247929 | F48: 258545 | G48: 267204 | H48: 277800 | I48: 286729 | J48: 296067 | K48: 294652 | L48: 295964 | M48: 304180 | N48: 304139 | O48: 298642 | P48: 312886 | Q48: 322006 | R48: 314079 | S48: 304691 | T48: 288469 | U48: 277972 | V48: 272808 | W48: 266012 | X48: 264117 | Y48: 258676 | Z48: 243347 | AA48: 234038 | AB48: 223625 | AC48: 210363 | AD48: 205417 | AE48: 197490 | AF48: 189928 | AG48: 183954 | AH48: 182416 | AI48: 177574 | AJ48: 171452 | AK48: 169520 | AL48: 172918 | AM48: 178044 | AN48: 185001 | AO48: 194565 | AP48: 207606 | AQ48: 208734 | AR48: 201740 | AS48: 190219 | AT48: 190199 | AU48: 180443 | AV48: 183200
A49: 1,067 | B49: 46 | C49: 4.60 | D49: 231,935 | E49: 240632 | F49: 246788 | G49: 257356 | H49: 265975 | I49: 276522 | J49: 285410 | K49: 294705 | L49: 293297 | M49: 294603 | N49: 302781 | O49: 302740 | P49: 297268 | Q49: 311447 | R49: 320525 | S49: 312634 | T49: 303289 | U49: 287142 | V49: 276693 | W49: 271553 | X49: 264788 | Y49: 262902 | Z49: 257486 | AA49: 242227 | AB49: 232961 | AC49: 222596 | AD49: 209395 | AE49: 204472 | AF49: 196582 | AG49: 189054 | AH49: 183107 | AI49: 181577 | AJ49: 176757 | AK49: 170663 | AL49: 168740 | AM49: 172122 | AN49: 177225 | AO49: 184150 | AP49: 193670 | AQ49: 206651 | AR49: 207774 | AS49: 200811 | AT49: 189344 | AU49: 189324 | AV49: 179613
A50: 1,236 | B50: 47 | C50: 5.42 | D50: 227,988 | E50: 230678 | F50: 239327 | G50: 245450 | H50: 255961 | I50: 264533 | J50: 275023 | K50: 283863 | L50: 293107 | M50: 291707 | N50: 293006 | O50: 301139 | P50: 301099 | Q50: 295657 | R50: 309758 | S50: 318787 | T50: 310939 | U50: 301645 | V50: 285586 | W50: 275193 | X50: 270080 | Y50: 263353 | Z50: 261477 | AA50: 256090 | AB50: 240914 | AC50: 231698 | AD50: 221389 | AE50: 208260 | AF50: 203363 | AG50: 195516 | AH50: 188029 | AI50: 182115 | AJ50: 180593 | AK50: 175799 | AL50: 169738 | AM50: 167825 | AN50: 171189 | AO50: 176264 | AP50: 183152 | AQ50: 192620 | AR50: 205531 | AS50: 206648 | AT50: 199723 | AU50: 188318 | AV50: 188298
A51: 1,279 | B51: 48 | C51: 5.68 | D51: 225,052 | E51: 226692 | F51: 229367 | G51: 237967 | H51: 244055 | I51: 254506 | J51: 263029 | K51: 273460 | L51: 282249 | M51: 291441 | N51: 290049 | O51: 291340 | P51: 299428 | Q51: 299387 | R51: 293977 | S51: 307998 | T51: 316976 | U51: 309172 | V51: 299931 | W51: 283963 | X51: 273629 | Y51: 268545 | Z51: 261856 | AA51: 259991 | AB51: 254634 | AC51: 239545 | AD51: 230381 | AE51: 220131 | AF51: 207076 | AG51: 202208 | AH51: 194405 | AI51: 186960 | AJ51: 181080 | AK51: 179566 | AL51: 174800 | AM51: 168773 | AN51: 166872 | AO51: 170216 | AP51: 175262 | AQ51: 182111 | AR51: 191525 | AS51: 204363 | AT51: 205473 | AU51: 198588 | AV51: 187248
A52: 1,372 | B52: 49 | C52: 6.08 | D52: 225,736 | E52: 223684 | F52: 225315 | G52: 227973 | H52: 236521 | I52: 242572 | J52: 252959 | K52: 261431 | L52: 271798 | M52: 280534 | N52: 289670 | O52: 288286 | P52: 289570 | Q52: 297608 | R52: 297568 | S52: 292190 | T52: 306126 | U52: 315049 | V52: 307293 | W52: 298108 | X52: 282237 | Y52: 271966 | Z52: 266913 | AA52: 260264 | AB52: 258411 | AC52: 253087 | AD52: 238089 | AE52: 228981 | AF52: 218793 | AG52: 205818 | AH52: 200979 | AI52: 193223 | AJ52: 185824 | AK52: 179979 | AL52: 178475 | AM52: 173738 | AN52: 167747 | AO52: 165857 | AP52: 169181 | AQ52: 174197 | AR52: 181004 | AS52: 190361 | AT52: 203120 | AU52: 204224 | AV52: 197381
A53: 1,538 | B53: 50 | C53: 6.75 | D53: 227,734 | E53: 224211 | F53: 222174 | G53: 223793 | H53: 226433 | I53: 234924 | J53: 240934 | K53: 251251 | L53: 259665 | M53: 269963 | N53: 278639 | O53: 287714 | P53: 286339 | Q53: 287614 | R53: 295598 | S53: 295558 | T53: 290217 | U53: 304058 | V53: 312921 | W53: 305218 | X53: 296095 | Y53: 280331 | Z53: 270130 | AA53: 265111 | AB53: 258507 | AC53: 256665 | AD53: 251378 | AE53: 236481 | AF53: 227435 | AG53: 217315 | AH53: 204428 | AI53: 199621 | AJ53: 191918 | AK53: 184569 | AL53: 178764 | AM53: 177270 | AN53: 172564 | AO53: 166615 | AP53: 164737 | AQ53: 168039 | AR53: 173021 | AS53: 179781 | AT53: 189075 | AU53: 201749 | AV53: 202845
A54: 1,737 | B54: 51 | C54: 7.49 | D54: 231,977 | E54: 226029 | F54: 222533 | G54: 220510 | H54: 222117 | I54: 224737 | J54: 233164 | K54: 239130 | L54: 249369 | M54: 257721 | N54: 267941 | O54: 276553 | P54: 285559 | Q54: 284195 | R54: 285460 | S54: 293384 | T54: 293345 | U54: 288043 | V54: 301782 | W54: 310578 | X54: 302932 | Y54: 293877 | Z54: 278232 | AA54: 268107 | AB54: 263126 | AC54: 256571 | AD54: 254744 | AE54: 249495 | AF54: 234710 | AG54: 225732 | AH54: 215688 | AI54: 202897 | AJ54: 198127 | AK54: 190481 | AL54: 183187 | AM54: 177425 | AN54: 175942 | AO54: 171272 | AP54: 165367 | AQ54: 163504 | AR54: 166781 | AS54: 171725 | AT54: 178435 | AU54: 187660 | AV54: 200238
A55: 1,862 | B55: 52 | C55: 7.91 | D55: 235,489 | E55: 230143 | F55: 224242 | G55: 220773 | H55: 218766 | I55: 220361 | J55: 222960 | K55: 231321 | L55: 237239 | M55: 247398 | N55: 255683 | O55: 265823 | P55: 274366 | Q55: 283301 | R55: 281948 | S55: 283203 | T55: 291065 | U55: 291026 | V55: 285766 | W55: 299396 | X55: 308123 | Y55: 300537 | Z55: 291554 | AA55: 276032 | AB55: 265987 | AC55: 261045 | AD55: 254542 | AE55: 252729 | AF55: 247523 | AG55: 232854 | AH55: 223947 | AI55: 213983 | AJ55: 201293 | AK55: 196560 | AL55: 188975 | AM55: 181739 | AN55: 176022 | AO55: 174551 | AP55: 169918 | AQ55: 164059 | AR55: 162211 | AS55: 165462 | AT55: 170367 | AU55: 177024 | AV55: 186176
A56: 2,071 | B56: 53 | C56: 8.75 | D56: 236,784 | E56: 233429 | F56: 228130 | G56: 222280 | H56: 218842 | I56: 216853 | J56: 218433 | K56: 221010 | L56: 229298 | M56: 235164 | N56: 245234 | O56: 253447 | P56: 263498 | Q56: 271966 | R56: 280824 | S56: 279482 | T56: 280726 | U56: 288519 | V56: 288480 | W56: 283266 | X56: 296777 | Y56: 305428 | Z56: 297908 | AA56: 289004 | AB56: 273617 | AC56: 263661 | AD56: 258762 | AE56: 252316 | AF56: 250519 | AG56: 245358 | AH56: 230818 | AI56: 221988 | AJ56: 212111 | AK56: 199532 | AL56: 194841 | AM56: 187322 | AN56: 180149 | AO56: 174483 | AP56: 173024 | AQ56: 168432 | AR56: 162625 | AS56: 160792 | AT56: 164015 | AU56: 168877 | AV56: 175476
A57: 2,456 | B57: 54 | C57: 10.08 | D57: 243,726 | E57: 234398 | F57: 231077 | G57: 225831 | H57: 220040 | I57: 216637 | J57: 214668 | K57: 216232 | L57: 218783 | M57: 226987 | N57: 232794 | O57: 242763 | P57: 250893 | Q57: 260842 | R57: 269226 | S57: 277994 | T57: =S56*(1-$C57/1000) -> 276665 | U57: 277897 | V57: 285612 | W57: 285573 | X57: 280412 | Y57: 293786 | Z57: 302350 | AA57: 294906 | AB57: 286092 | AC57: 270860 | AD57: 261004 | AE57: 256154 | AF57: 249773 | AG57: 247994 | AH57: 242885 | AI57: 228492 | AJ57: 219751 | AK57: 209974 | AL57: 197522 | AM57: 192877 | AN57: 185435 | AO57: 178334 | AP57: 172724 | AQ57: 171281 | AR57: 166735 | AS57: 160986 | AT57: 159172 | AU57: 162362 | AV57: 167176
A58: 2,733 | B58: 55 | C58: 10.71 | D58: 255,198 | E58: =D57*(1-$C58/1000) -> 241116 | F58: 231888 | G58: 228602 | H58: 223413 | I58: 217684 | J58: 214317 | K58: 212369 | L58: 213917 | M58: 216440 | N58: 224556 | O58: 230301 | P58: 240163 | Q58: 248206 | R58: 258049 | S58: 266343 | T58: 275017 | U58: 273702 | V58: 274921 | W58: 282553 | X58: 282515 | Y58: 277409 | Z58: 290640 | AA58: 299112 | AB58: 291748 | AC58: 283028 | AD58: 267959 | AE58: 258208 | AF58: 253411 | AG58: 247099 | AH58: 245339 | AI58: 240284 | AJ58: 226045 | AK58: 217398 | AL58: 207725 | AM58: 195406 | AN58: 190812 | AO58: 183449 | AP58: 176424 | AQ58: 170875 | AR58: 169446 | AS58: 164949 | AT58: 159262 | AU58: 157467 | AV58: 160623
A59: 3,152 | B59: 56 | C59: 11.66 | D59: 270,278 | E59: 252222 | F59: 238304 | G59: 229183 | H59: 225936 | I59: 220807 | J59: 215145 | K59: 211817 | L59: 209892 | M59: 211422 | N59: 213916 | O59: 221937 | P59: 227615 | Q59: 237362 | R59: 245311 | S59: 255040 | T59: 263237 | U59: 271809 | V59: 270511 | W59: 271715 | X59: 279258 | Y59: 279220 | Z59: 274174 | AA59: 287251 | AB59: 295624 | AC59: 288346 | AD59: 279727 | AE59: 264834 | AF59: 255197 | AG59: 250456 | AH59: 244217 | AI59: 242477 | AJ59: 237482 | AK59: 223409 | AL59: 214863 | AM59: 205303 | AN59: 193127 | AO59: 188587 | AP59: 181310 | AQ59: 174366 | AR59: 168882 | AS59: 167470 | AT59: 163025 | AU59: 157404 | AV59: 155631
A60: 3,505 | B60: 57 | C60: 12.65 | D60: 277,134 | E60: 266860 | F60: 249032 | G60: 235290 | H60: 226285 | I60: 223079 | J60: 218014 | K60: 212424 | L60: 209139 | M60: 207238 | N60: 208748 | O60: 211211 | P60: 219130 | Q60: 224737 | R60: 234360 | S60: 242209 | T60: 251814 | U60: 259907 | V60: 268372 | W60: 267089 | X60: 268279 | Y60: 275726 | Z60: 275689 | AA60: 270706 | AB60: 283618 | AC60: 291885 | AD60: 284699 | AE60: 276189 | AF60: 261485 | AG60: 251970 | AH60: 247288 | AI60: 241128 | AJ60: 239411 | AK60: 234478 | AL60: 220583 | AM60: 212145 | AN60: 202706 | AO60: 190685 | AP60: 186201 | AQ60: 179016 | AR60: 172161 | AS60: 166746 | AT60: 165352 | AU60: 160963 | AV60: 155414
A61: 3,917 | B61: 58 | C61: 14.07 | D61: 278,395 | E61: 273235 | F61: 263105 | G61: 245528 | H61: 231980 | I61: 223101 | J61: 219940 | K61: 214947 | L61: 209435 | M61: 206196 | N61: 204322 | O61: 205811 | P61: 208239 | Q61: 216047 | R61: 221575 | S61: 231063 | T61: 238801 | U61: 248271 | V61: 256250 | W61: 264596 | X61: 263331 | Y61: 264504 | Z61: 271846 | AA61: 271810 | AB61: 266897 | AC61: 279627 | AD61: 287778 | AE61: 280693 | AF61: 272303 | AG61: 257806 | AH61: 248424 | AI61: 243809 | AJ61: 237736 | AK61: 236042 | AL61: 231179 | AM61: 217480 | AN61: 209160 | AO61: 199854 | AP61: 188002 | AQ61: 183582 | AR61: 176498 | AS61: 169739 | AT61: 164400 | AU61: 163026 | AV61: 158699
A62: 4,291 | B62: 59 | C62: 15.68 | D62: 273,686 | E62: 274030 | F62: 268951 | G62: 258980 | H62: 241679 | I62: 228342 | J62: 219603 | K62: 216492 | L62: 211577 | M62: 206152 | N62: 202963 | O62: 201118 | P62: 202584 | Q62: 204974 | R62: 212660 | S62: 218101 | T62: 227440 | U62: 235057 | V62: 244378 | W62: 252233 | X62: 260447 | Y62: 259203 | Z62: 260357 | AA62: 267584 | AB62: 267548 | AC62: 262713 | AD62: 275243 | AE62: 283266 | AF62: 276292 | AG62: 268034 | AH62: 253764 | AI62: 244530 | AJ62: 239986 | AK62: 234008 | AL62: 232341 | AM62: 227555 | AN62: 214070 | AO62: 205881 | AP62: 196721 | AQ62: 185054 | AR62: 180703 | AS62: 173730 | AT62: 167078 | AU62: 161822 | AV62: 160470
A63: 4,575 | B63: 60 | C63: 16.77 | D63: 272,868 | E63: 269097 | F63: 269436 | G63: 264441 | H63: 254638 | I63: 237626 | J63: 224514 | K63: 215921 | L63: 212862 | M63: 208030 | N63: 202695 | O63: 199560 | P63: 197746 | Q63: 199188 | R63: 201537 | S63: 209094 | T63: 214444 | U63: 223627 | V63: 231116 | W63: 240281 | X63: 248004 | Y63: 256081 | Z63: 254857 | AA63: 255992 | AB63: 263098 | AC63: 263062 | AD63: 258308 | AE63: 270628 | AF63: 278517 | AG63: 271660 | AH63: 263540 | AI63: 249509 | AJ63: 240430 | AK63: 235963 | AL63: 230085 | AM63: 228446 | AN63: 223739 | AO63: 210481 | AP63: 202429 | AQ63: 193422 | AR63: 181952 | AS63: 177674 | AT63: 170818 | AU63: 164276 | AV63: 159109
A64: 4,850 | B64: 61 | C64: 18.79 | D64: 258,097 | E64: 267740 | F64: 264041 | G64: 264373 | H64: 259472 | I64: 249853 | J64: 233161 | K64: 220295 | L64: 211864 | M64: 208862 | N64: 204120 | O64: 198886 | P64: 195810 | Q64: 194030 | R64: 195445 | S64: 197750 | T64: 205165 | U64: 210414 | V64: 219424 | W64: 226773 | X64: 235766 | Y64: 243343 | Z64: 251268 | AA64: 250068 | AB64: 251181 | AC64: 258154 | AD64: 258119 | AE64: 253454 | AF64: 265543 | AG64: 273283 | AH64: 266555 | AI64: 258588 | AJ64: 244821 | AK64: 235912 | AL64: 231529 | AM64: 225761 | AN64: 224153 | AO64: 219535 | AP64: 206525 | AQ64: 198625 | AR64: 189788 | AS64: 178533 | AT64: 174335 | AU64: 167608 | AV64: 161189
A65: 4,911 | B65: 62 | C65: 19.47 | D65: 252,250 | E65: 253072 | F65: 262528 | G65: 258900 | H65: 259226 | I65: 254421 | J65: 244988 | K65: 228622 | L65: 216006 | M65: 207739 | N65: 204796 | O65: 200146 | P65: 195014 | Q65: 191998 | R65: 190253 | S65: 191639 | T65: 193900 | U65: 201171 | V65: 206318 | W65: 215152 | X65: 222358 | Y65: 231176 | Z65: 238606 | AA65: 246377 | AB65: 245199 | AC65: 246291 | AD65: 253128 | AE65: 253094 | AF65: 248520 | AG65: 260373 | AH65: 267963 | AI65: 261366 | AJ65: 253553 | AK65: 240054 | AL65: 231319 | AM65: 227021 | AN65: 221366 | AO65: 219789 | AP65: 215261 | AQ65: 202505 | AR65: =AQ64*(1-$C65/1000) -> 194758 | AS65: 186093 | AT65: 175057 | AU65: 170941 | AV65: 164345
A66: 5,092 | B66: 63 | C66: 20.88 | D66: 243,844 | E66: 246982 | F66: 247787 | G66: 257046 | H66: 253494 | I66: 253812 | J66: 249108 | K66: 239873 | L66: 223848 | M66: 211495 | N66: 203401 | O66: 200519 | P66: 195967 | Q66: 190942 | R66: 187989 | S66: 186280 | T66: 187638 | U66: 189851 | V66: 196970 | W66: 202009 | X66: 210659 | Y66: 217714 | Z66: 226348 | AA66: 233623 | AB66: 241232 | AC66: 240079 | AD66: 241148 | AE66: 247842 | AF66: 247809 | AG66: 243330 | AH66: 254936 | AI66: 262367 | AJ66: =AI65*(1-$C66/1000) -> 255908 | AK66: 248259 | AL66: 235041 | AM66: 226488 | AN66: 222280 | AO66: 216743 | AP66: 215199 | AQ66: 210766 | AR66: 198276 | AS66: 190691 | AT66: 182207 | AU66: 171401 | AV66: 167371
A67: 5,430 | B67: 64 | C67: 23.18 | D67: 234,211 | E67: 238191 | F67: 241256 | G67: 242043 | H67: 251086 | I67: 247617 | J67: 247928 | K67: 243332 | L67: 234311 | M67: 218658 | N67: 206592 | O67: 198685 | P67: 195870 | Q67: 191424 | R67: 186515 | S67: 183630 | T67: 181961 | U67: 183287 | V67: 185450 | W67: 192403 | X67: 197326 | Y67: 205776 | Z67: 212667 | AA67: 221101 | AB67: 228207 | AC67: 235639 | AD67: 234513 | AE67: 235557 | AF67: 242096 | AG67: 242063 | AH67: 237689 | AI67: 249025 | AJ67: 256284 | AK67: 249975 | AL67: 242503 | AM67: 229592 | AN67: 221237 | AO67: 217127 | AP67: 211718 | AQ67: 210210 | AR67: 205879 | AS67: 193679 | AT67: 186270 | AU67: 177982 | AV67: 167427
A68: 5,482 | B68: 65 | C68: =A68/D68*1000 -> 24.82 | D68: 220,914 | E68: 228399 | F68: 232280 | G68: 235270 | H68: 236036 | I68: 244856 | J68: 241472 | K68: 241776 | L68: 237294 | M68: 228497 | N68: 213232 | O68: 201466 | P68: 193755 | Q68: 191010 | R68: 186673 | S68: 181887 | T68: 179073 | U68: 177446 | V68: 178739 | W68: 180848 | X68: 187629 | Y68: 192429 | Z68: 200669 | AA68: 207390 | AB68: 215614 | AC68: 222544 | AD68: 229791 | AE68: 228693 | AF68: 229712 | AG68: 236088 | AH68: 236057 | AI68: 231790 | AJ68: 242846 | AK68: 249924 | AL68: 243772 | AM68: 236485 | AN68: 223895 | AO68: 215747 | AP68: 211739 | AQ68: 206464 | AR68: 204994 | AS68: 200771 | AT68: 188873 | AU68: 181648 | AV68: 173566
A69: 5,771 | B69: 66 | C69: 28.00 | D69: 206,110 | E69: 214728 | F69: 222004 | G69: 225776 | H69: 228682 | I69: 229427 | J69: 238000 | K69: 234711 | L69: 235006 | M69: 230650 | N69: 222099 | O69: 207262 | P69: 195825 | Q69: 188330 | R69: 185662 | S69: 181447 | T69: 176794 | U69: 174059 | V69: 172477 | W69: 173734 | X69: 175784 | Y69: 182375 | Z69: 187041 | AA69: 195051 | AB69: 201583 | AC69: 209577 | AD69: 216313 | AE69: 223357 | AF69: 222290 | AG69: 223280 | AH69: 229478 | AI69: 229447 | AJ69: 225300 | AK69: 236046 | AL69: 242927 | AM69: 236946 | AN69: 229864 | AO69: 217626 | AP69: 209706 | AQ69: 205810 | AR69: 200683 | AS69: 199254 | AT69: 195149 | AU69: 183584 | AV69: 176562
A70: 5,713 | B70: 67 | C70: 29.11 | D70: 196,250 | E70: 200110 | F70: 208478 | G70: 215541 | H70: 219204 | I70: 222025 | J70: 222749 | K70: 231071 | L70: 227878 | M70: 228165 | N70: 223936 | O70: 215634 | P70: 201228 | Q70: 190124 | R70: 182847 | S70: 180257 | T70: 176165 | U70: 171647 | V70: 168992 | W70: 167456 | X70: 168677 | Y70: 170667 | Z70: 177066 | AA70: 181596 | AB70: 189372 | AC70: 195715 | AD70: 203476 | AE70: 210016 | AF70: 216855 | AG70: 215819 | AH70: 216780 | AI70: 222798 | AJ70: 222768 | AK70: 218742 | AL70: 229175 | AM70: 235855 | AN70: 230048 | AO70: 223172 | AP70: 211291 | AQ70: 203602 | AR70: 199819 | AS70: 194841 | AT70: 193454 | AU70: 189468 | AV70: 178240
A71: 5,471 | B71: 68 | C71: 30.76 | D71: 177,846 | E71: 190213 | F71: 193954 | G71: 202064 | H71: 208911 | I71: 212460 | J71: 215195 | K71: 215896 | L71: 223963 | M71: 220868 | N71: 221146 | O71: 217047 | P71: 209000 | Q71: 195038 | R71: 184275 | S71: 177223 | T71: 174712 | U71: 170745 | V71: 166367 | W71: 163794 | X71: 162305 | Y71: 163488 | Z71: 165417 | AA71: 171619 | AB71: 176010 | AC71: 183547 | AD71: 189694 | AE71: 197217 | AF71: 203555 | AG71: 210184 | AH71: 209180 | AI71: 210111 | AJ71: 215944 | AK71: 215915 | AL71: 212013 | AM71: 222125 | AN71: 228599 | AO71: 222972 | AP71: 216307 | AQ71: 204791 | AR71: 197338 | AS71: 193672 | AT71: 188848 | AU71: 187503 | AV71: 183640
A72: 5,262 | B72: 69 | C72: 33.57 | D72: 156,737 | E72: 171875 | F72: 183827 | G72: 187443 | H72: 195281 | I72: 201897 | J72: 205328 | K72: 207970 | L72: 208648 | M72: 216444 | N72: 213453 | O72: 213721 | P72: 209760 | Q72: 201983 | R72: 188490 | S72: 178089 | T72: 171273 | U72: 168846 | V72: 165013 | W72: 160782 | X72: 158295 | Y72: 156856 | Z72: 157999 | AA72: 159863 | AB72: 165858 | AC72: 170101 | AD72: 177385 | AE72: 183325 | AF72: 190596 | AG72: 196721 | AH72: 203128 | AI72: 202157 | AJ72: 203058 | AK72: 208694 | AL72: 208666 | AM72: 204895 | AN72: 214667 | AO72: 220925 | AP72: 215486 | AQ72: 209045 | AR72: 197915 | AS72: 190713 | AT72: 187170 | AU72: 182508 | AV72: 181208
A73: 4,461 | B73: 70 | C73: 40.96 | D73: 108,913 | E73: 150317 | F73: 164835 | G73: 176298 | H73: 179765 | I73: 187282 | J73: 193627 | K73: 196918 | L73: 199452 | M73: 200102 | N73: 207579 | O73: 204710 | P73: 204968 | Q73: 201168 | R73: 193710 | S73: 180769 | T73: =S72*(1-$C73/1000) -> 170794 | U73: 164258 | V73: 161930 | W73: 158254 | X73: 154196 | Y73: 151811 | Z73: 150431 | AA73: 151528 | AB73: 153315 | AC73: 159064 | AD73: 163134 | AE73: 170119 | AF73: 175817 | AG73: 182789 | AH73: 188664 | AI73: 194808 | AJ73: 193877 | AK73: 194740 | AL73: 200146 | AM73: 200119 | AN73: 196503 | AO73: 205875 | AP73: 211876 | AQ73: 206660 | AR73: 200483 | AS73: 189809 | AT73: 182902 | AU73: 179504 | AV73: 175032
A74: 3,719 | B74: 71 | C74: 35.72 | D74: 104,107 | E74: =D73*(1-$C74/1000) -> 105022 | F74: 144947 | G74: 158947 | H74: 170000 | I74: 173343 | J74: 180592 | K74: 186711 | L74: 189883 | M74: 192327 | N74: 192954 | O74: 200163 | P74: 197397 | Q74: 197646 | R74: 193982 | S74: 186790 | T74: 174312 | U74: 164693 | V74: 158390 | W74: 156146 | X74: 152601 | Y74: 148688 | Z74: 146388 | AA74: 145058 | AB74: 146115 | AC74: 147839 | AD74: 153382 | AE74: 157306 | AF74: 164042 | AG74: 169536 | AH74: 176259 | AI74: 181924 | AJ74: 187849 | AK74: 186951 | AL74: 187784 | AM74: 192996 | AN74: 192970 | AO74: 189483 | AP74: 198520 | AQ74: 204307 | AR74: 199277 | AS74: 193321 | AT74: 183028 | AU74: 176368 | AV74: 173091
A75: 4,012 | B75: 72 | C75: 40.97 | D75: 97,915 | E75: 99841 | F75: 100719 | G75: 139008 | H75: 152434 | I75: 163034 | J75: 166241 | K75: 173192 | L75: 179060 | M75: 182103 | N75: 184447 | O75: 185048 | P75: 191962 | Q75: 189309 | R75: 189547 | S75: 186034 | T75: 179137 | U75: 167170 | V75: 157945 | W75: 151900 | X75: 149748 | Y75: 146348 | Z75: 142596 | AA75: 140390 | AB75: 139114 | AC75: 140128 | AD75: 141781 | AE75: 147097 | AF75: 150861 | AG75: 157321 | AH75: 162589 | AI75: 169037 | AJ75: 174470 | AK75: 180152 | AL75: 179291 | AM75: 180089 | AN75: 185089 | AO75: 185064 | AP75: 181719 | AQ75: 190386 | AR75: 195936 | AS75: 191112 | AT75: 185400 | AU75: 175529 | AV75: 169142
A76: 3,858 | B76: 73 | C76: 41.81 | D76: 92,277 | E76: 93821 | F76: 95667 | G76: 96508 | H76: 133196 | I76: 146061 | J76: 156218 | K76: 159290 | L76: 165951 | M76: 171574 | N76: 174489 | O76: 176735 | P76: 177311 | Q76: 183936 | R76: 181394 | S76: 181622 | T76: 178256 | U76: 171647 | V76: 160180 | W76: 151341 | X76: 145549 | Y76: 143487 | Z76: 140230 | AA76: 136634 | AB76: 134520 | AC76: 133298 | AD76: 134269 | AE76: 135853 | AF76: 140947 | AG76: 144553 | AH76: 150743 | AI76: 155792 | AJ76: 161970 | AK76: 167175 | AL76: 172620 | AM76: 171795 | AN76: 172560 | AO76: 177350 | AP76: 177326 | AQ76: 174122 | AR76: 182426 | AS76: 187744 | AT76: 183122 | AU76: 177648 | AV76: 168190
A77: 4,076 | B77: 74 | C77: 43.10 | D77: 94,560 | E77: 88299 | F77: 89777 | G77: 91543 | H77: 92348 | I77: 127455 | J77: 139765 | K77: 149484 | L77: 152424 | M77: 158798 | N77: 164178 | O77: 166968 | P77: 169117 | Q77: 169668 | R77: 176008 | S77: 173575 | T77: 173794 | U77: 170572 | V77: 164249 | W77: 153276 | X77: 144818 | Y77: 139275 | Z77: 137302 | AA77: 134185 | AB77: 130744 | AC77: 128722 | AD77: 127552 | AE77: 128482 | AF77: 129997 | AG77: 134872 | AH77: 138322 | AI77: 144245 | AJ77: 149076 | AK77: 154988 | AL77: 159969 | AM77: 165179 | AN77: 164390 | AO77: 165122 | AP77: 169706 | AQ77: 169683 | AR77: 166616 | AS77: 174563 | AT77: 179651 | AU77: 175228 | AV77: 169991
A78: 4,481 | B78: 75 | C78: 47.73 | D78: 93,885 | E78: 90047 | F78: 84085 | G78: 85492 | H78: 87174 | I78: 87941 | J78: 121372 | K78: 133094 | L78: 142349 | M78: 145149 | N78: 151219 | O78: 156342 | P78: 158999 | Q78: 161045 | R78: 161570 | S78: 167607 | T78: 165291 | U78: 165499 | V78: 162431 | W78: 156409 | X78: 145960 | Y78: 137906 | Z78: 132628 | AA78: 130749 | AB78: 127780 | AC78: 124504 | AD78: 122578 | AE78: 121464 | AF78: 122349 | AG78: 123793 | AH78: 128435 | AI78: 131720 | AJ78: 137361 | AK78: 141961 | AL78: 147591 | AM78: 152334 | AN78: 157295 | AO78: 156544 | AP78: 157241 | AQ78: 161606 | AR78: 161584 | AS78: 158664 | AT78: 166231 | AU78: 171077 | AV78: 166865
A79: 4,784 | B79: 76 | C79: 53.49 | D79: 89,440 | E79: 88863 | F79: 85230 | G79: 79587 | H79: 80919 | I79: 82511 | J79: 83237 | K79: 114880 | L79: 125975 | M79: 134735 | N79: 137385 | O79: 143130 | P79: 147980 | Q79: 150494 | R79: 152431 | S79: 152928 | T79: 158642 | U79: 156450 | V79: 156646 | W79: 153743 | X79: 148043 | Y79: 138153 | Z79: 130530 | AA79: 125534 | AB79: 123755 | AC79: 120946 | AD79: 117844 | AE79: 116022 | AF79: 114967 | AG79: 115805 | AH79: 117171 | AI79: 121565 | AJ79: 124675 | AK79: 130014 | AL79: 134368 | AM79: 139696 | AN79: 144186 | AO79: 148882 | AP79: 148170 | AQ79: 148830 | AR79: 152962 | AS79: 152941 | AT79: 150177 | AU79: 157340 | AV79: 161926
A80: 5,012 | B80: 77 | C80: 59.09 | D80: 84,816 | E80: 84155 | F80: 83612 | G80: 80194 | H80: 74884 | I80: 76138 | J80: 77635 | K80: 78318 | L80: 108091 | M80: 118531 | N80: 126773 | O80: 129267 | P80: 134672 | Q80: 139235 | R80: 141601 | S80: 143424 | T80: 143891 | U80: 149267 | V80: 147205 | W80: 147390 | X80: 144658 | Y80: 139295 | Z80: 129989 | AA80: 122816 | AB80: 118116 | AC80: 116442 | AD80: 113799 | AE80: 110881 | AF80: 109166 | AG80: 108173 | AH80: 108962 | AI80: 110247 | AJ80: 114381 | AK80: 117308 | AL80: 122331 | AM80: 126428 | AN80: 131441 | AO80: 135666 | AP80: 140084 | AQ80: 139415 | AR80: 140036 | AS80: 143923 | AT80: 143903 | AU80: 141303 | AV80: 148042
A81: 4,844 | B81: 78 | C81: 60.03 | D81: 80,694 | E81: 79725 | F81: 79103 | G81: 78593 | H81: 75380 | I81: 70389 | J81: 71567 | K81: 72975 | L81: 73617 | M81: 101603 | N81: 111416 | O81: 119163 | P81: 121507 | Q81: 126588 | R81: 130877 | S81: 133101 | T81: 134814 | U81: 135253 | V81: 140307 | W81: 138368 | X81: 138542 | Y81: 135974 | Z81: 130933 | AA81: 122186 | AB81: 115444 | AC81: 111025 | AD81: 109452 | AE81: 106967 | AF81: 104225 | AG81: 102613 | AH81: 101680 | AI81: 102421 | AJ81: 103629 | AK81: 107515 | AL81: 110266 | AM81: 114987 | AN81: 118838 | AO81: 123551 | AP81: 127522 | AQ81: 131675 | AR81: 131046 | AS81: 131629 | AT81: 135283 | AU81: 135265 | AV81: 132820
A82: 5,184 | B82: 79 | C82: 68.06 | D82: 76,164 | E82: 75202 | F82: 74298 | G82: 73719 | H82: 73244 | I82: 70249 | J82: 65598 | K82: 66696 | L82: 68008 | M82: 68606 | N82: 94687 | O82: 103832 | P82: 111053 | Q82: 113237 | R82: 117972 | S82: 121969 | T82: 124042 | U82: 125638 | V82: 126048 | W82: 130757 | X82: 128950 | Y82: 129112 | Z82: 126719 | AA82: 122021 | AB82: 113870 | AC82: 107586 | AD82: 103468 | AE82: 102003 | AF82: 99687 | AG82: 97131 | AH82: 95628 | AI82: 94759 | AJ82: 95450 | AK82: 96576 | AL82: 100197 | AM82: 102761 | AN82: 107161 | AO82: 110750 | AP82: 115142 | AQ82: 118842 | AR82: 122713 | AS82: 122126 | AT82: 122670 | AU82: 126075 | AV82: 126058
A83: 5,369 | B83: 80 | C83: 77.02 | D83: 69,706 | E83: 70298 | F83: 69409 | G83: 68576 | H83: 68041 | I83: 67602 | J83: 64838 | K83: 60546 | L83: 61559 | M83: 62770 | N83: 63322 | O83: 87394 | P83: 95835 | Q83: 102499 | R83: 104515 | S83: 108885 | T83: 112575 | U83: 114487 | V83: 115961 | W83: 116339 | X83: 120686 | Y83: 119018 | Z83: 119168 | AA83: 116959 | AB83: 112623 | AC83: 105099 | AD83: 99299 | AE83: 95499 | AF83: 94146 | AG83: 92009 | AH83: 89649 | AI83: 88263 | AJ83: 87460 | AK83: 88098 | AL83: 89137 | AM83: 92480 | AN83: 94846 | AO83: 98907 | AP83: 102219 | AQ83: 106273 | AR83: 109689 | AS83: 113261 | AT83: 112720 | AU83: 113222 | AV83: 116365
A84: 5,253 | B84: 81 | C84: 83.91 | D84: 62,600 | E84: 63857 | F84: 64399 | G84: 63585 | H84: 62821 | I84: 62331 | J84: 61929 | K84: 59398 | L84: 55465 | M84: 56393 | N84: 57503 | O84: 58008 | P84: 80061 | Q84: 87793 | R84: 93898 | S84: 95745 | T84: 99748 | U84: 103128 | V84: 104880 | W84: 106230 | X84: 106576 | Y84: 110559 | Z84: 109031 | AA84: 109168 | AB84: 107144 | AC84: 103172 | AD84: 96280 | AE84: 90967 | AF84: 87485 | AG84: 86246 | AH84: 84288 | AI84: 82127 | AJ84: 80856 | AK84: 80121 | AL84: 80705 | AM84: 81657 | AN84: 84719 | AO84: 86887 | AP84: 90607 | AQ84: 93642 | AR84: 97355 | AS84: 100484 | AT84: 103757 | AU84: 103261 | AV84: 103721
A85: 5,002 | B85: 82 | C85: 88.68 | D85: 56,403 | E85: 57048 | F85: 58194 | G85: 58688 | H85: 57946 | I85: 57250 | J85: 56804 | K85: 56437 | L85: 54130 | M85: 50546 | N85: 51392 | O85: 52403 | P85: 52864 | Q85: 72960 | R85: 80007 | S85: 85571 | T85: 87254 | U85: 90902 | V85: 93982 | W85: 95579 | X85: 96809 | Y85: 97125 | Z85: 100754 | AA85: 99362 | AB85: 99487 | AC85: 97642 | AD85: 94023 | AE85: 87741 | AF85: 82900 | AG85: 79727 | AH85: 78597 | AI85: 76813 | AJ85: 74843 | AK85: 73686 | AL85: 73016 | AM85: 73548 | AN85: 74416 | AO85: 77206 | AP85: 79181 | AQ85: 82572 | AR85: =AQ84*(1-$C85/1000) -> 85337 | AS85: 88721 | AT85: 91573 | AU85: 94555 | AV85: 94103
A86: 5,069 | B86: 83 | C86: 97.08 | D86: 52,216 | E86: 50928 | F86: 51510 | G86: 52544 | H86: 52990 | I86: 52321 | J86: 51692 | K86: 51289 | L86: 50958 | M86: 48875 | N86: 45639 | O86: 46403 | P86: 47316 | Q86: 47732 | R86: 65878 | S86: 72240 | T86: 77264 | U86: 78783 | V86: 82078 | W86: 84859 | X86: 86301 | Y86: 87411 | Z86: 87696 | AA86: 90973 | AB86: 89716 | AC86: 89829 | AD86: 88164 | AE86: 84895 | AF86: 79224 | AG86: 74852 | AH86: 71987 | AI86: 70967 | AJ86: =AI85*(1-$C86/1000) -> 69356 | AK86: 67578 | AL86: 66532 | AM86: 65928 | AN86: 66408 | AO86: 67192 | AP86: 69711 | AQ86: 71495 | AR86: 74556 | AS86: 77053 | AT86: 80109 | AU86: 82683 | AV86: 85376
A87: 5,158 | B87: 84 | C87: 108.88 | D87: 47,375 | E87: 46531 | F87: 45383 | G87: 45902 | H87: 46824 | I87: 47221 | J87: 46624 | K87: 46064 | L87: 45705 | M87: 45410 | N87: 43554 | O87: 40670 | P87: 41351 | Q87: 42164 | R87: 42535 | S87: 58705 | T87: 64375 | U87: 68852 | V87: 70206 | W87: 73141 | X87: 75620 | Y87: 76905 | Z87: 77894 | AA87: 78148 | AB87: 81068 | AC87: 79948 | AD87: 80048 | AE87: 78565 | AF87: 75652 | AG87: 70598 | AH87: 66702 | AI87: 64149 | AJ87: 63241 | AK87: 61805 | AL87: 60220 | AM87: 59289 | AN87: 58750 | AO87: 59178 | AP87: 59876 | AQ87: 62121 | AR87: 63711 | AS87: 66439 | AT87: 68664 | AU87: 71387 | AV87: 73681
A88: 4,932 | B88: 85 | C88: 116.81 | D88: 42,224 | E88: 41841 | F88: 41096 | G88: 40082 | H88: 40540 | I88: 41354 | J88: 41705 | K88: 41178 | L88: 40684 | M88: 40366 | N88: 40106 | O88: 38467 | P88: 35920 | Q88: 36521 | R88: 37239 | S88: 37567 | T88: 51848 | U88: 56856 | V88: 60809 | W88: 62005 | X88: 64598 | Y88: 66787 | Z88: 67922 | AA88: 68796 | AB88: 69020 | AC88: 71599 | AD88: 70610 | AE88: 70698 | AF88: 69388 | AG88: 66815 | AH88: 62352 | AI88: 58911 | AJ88: 56656 | AK88: 55854 | AL88: 54586 | AM88: 53186 | AN88: 52363 | AO88: 51887 | AP88: 52266 | AQ88: 52882 | AR88: 54865 | AS88: 56269 | AT88: 58678 | AU88: 60643 | AV88: 63048
A89: 4,679 | B89: 86 | C89: 135.54 | D89: 34,521 | E89: 36501 | F89: 36170 | G89: 35526 | H89: 34649 | I89: 35046 | J89: 35749 | K89: 36053 | L89: 35597 | M89: 35169 | N89: 34895 | O89: 34670 | P89: 33253 | Q89: 31051 | R89: 31571 | S89: 32192 | T89: =S88*(1-$C89/1000) -> 32475 | U89: 44821 | V89: 49150 | W89: 52567 | X89: 53601 | Y89: 55842 | Z89: 57735 | AA89: 58716 | AB89: 59471 | AC89: 59665 | AD89: 61894 | AE89: 61039 | AF89: 61116 | AG89: 59983 | AH89: 57759 | AI89: 53901 | AJ89: 50926 | AK89: 48977 | AL89: 48283 | AM89: 47187 | AN89: 45977 | AO89: 45266 | AP89: 44855 | AQ89: 45182 | AR89: 45715 | AS89: 47429 | AT89: 48642 | AU89: 50725 | AV89: 52424
A90: 4,303 | B90: 87 | C90: 151.44 | D90: 28,413 | E90: =D89*(1-$C90/1000) -> 29293 | F90: 30973 | G90: 30692 | H90: 30146 | I90: 29402 | J90: 29738 | K90: 30335 | L90: 30593 | M90: 30206 | N90: 29843 | O90: 29610 | P90: 29420 | Q90: 28217 | R90: 26349 | S90: 26790 | T90: 27317 | U90: 27557 | V90: 38033 | W90: 41706 | X90: 44606 | Y90: 45484 | Z90: 47385 | AA90: 48991 | AB90: 49823 | AC90: 50465 | AD90: 50629 | AE90: 52521 | AF90: 51795 | AG90: 51860 | AH90: 50899 | AI90: 49012 | AJ90: 45738 | AK90: 43214 | AL90: 41560 | AM90: 40971 | AN90: 40041 | AO90: 39014 | AP90: 38411 | AQ90: 38062 | AR90: 38339 | AS90: 38791 | AT90: 40246 | AU90: 41276 | AV90: 43043
A91: 3,680 | B91: 88 | C91: 172.38 | D91: 21,348 | E91: 23515 | F91: 24243 | G91: 25634 | H91: 25402 | I91: 24949 | J91: 24333 | K91: 24612 | L91: 25106 | M91: 25319 | N91: 24999 | O91: 24699 | P91: 24506 | Q91: 24348 | R91: 23353 | S91: 21807 | T91: 22172 | U91: 22608 | V91: 22806 | W91: 31477 | X91: 34517 | Y91: 36917 | Z91: 37643 | AA91: 39217 | AB91: 40546 | AC91: 41235 | AD91: 41765 | AE91: 41902 | AF91: 43467 | AG91: 42867 | AH91: 42920 | AI91: 42125 | AJ91: 40563 | AK91: 37853 | AL91: 35765 | AM91: 34396 | AN91: 33908 | AO91: 33139 | AP91: 32289 | AQ91: 31789 | AR91: 31500 | AS91: 31730 | AT91: 32104 | AU91: 33308 | AV91: 34160
A92: 3,157 | B92: 89 | C92: 187.51 | D92: 16,836 | E92: 17345 | F92: 19106 | G92: 19697 | H92: 20827 | I92: 20638 | J92: 20271 | K92: 19770 | L92: 19997 | M92: 20398 | N92: 20571 | O92: 20311 | P92: 20067 | Q92: 19911 | R92: 19783 | S92: 18974 | T92: 17718 | U92: 18014 | V92: 18368 | W92: 18530 | X92: 25574 | Y92: 28044 | Z92: 29994 | AA92: 30584 | AB92: 31863 | AC92: 32943 | AD92: 33503 | AE92: 33934 | AF92: 34044 | AG92: 35316 | AH92: 34828 | AI92: 34872 | AJ92: 34226 | AK92: 32957 | AL92: 30755 | AM92: 29058 | AN92: 27946 | AO92: 27550 | AP92: 26925 | AQ92: 26234 | AR92: 25828 | AS92: 25594 | AT92: 25780 | AU92: 26084 | AV92: 27062
A93: 2,629 | B93: 90 | C93: 187.93 | D93: 13,989 | E93: 13672 | F93: 14085 | G93: 15515 | H93: 15996 | I93: 16913 | J93: 16760 | K93: 16461 | L93: 16055 | M93: 16239 | N93: 16565 | O93: 16705 | P93: 16494 | Q93: 16296 | R93: 16169 | S93: 16065 | T93: 15408 | U93: 14388 | V93: 14629 | W93: 14916 | X93: 15048 | Y93: 20768 | Z93: 22774 | AA93: 24357 | AB93: 24837 | AC93: 25875 | AD93: 26752 | AE93: 27206 | AF93: 27557 | AG93: 27646 | AH93: 28679 | AI93: 28283 | AJ93: 28319 | AK93: 27794 | AL93: 26763 | AM93: 24975 | AN93: 23597 | AO93: 22694 | AP93: 22372 | AQ93: 21865 | AR93: 21304 | AS93: 20974 | AT93: 20784 | AU93: 20935 | AV93: 21182
A94: 2,313 | B94: 91 | C94: 228.74 | D94: 10,112 | E94: 10789 | F94: 10545 | G94: 10863 | H94: 11966 | I94: 12337 | J94: 13044 | K94: 12926 | L94: 12696 | M94: 12383 | N94: 12524 | O94: 12776 | P94: 12884 | Q94: 12721 | R94: 12569 | S94: 12471 | T94: 12390 | U94: 11884 | V94: 11097 | W94: 11282 | X94: 11504 | Y94: 11606 | Z94: 16018 | AA94: 17565 | AB94: 18786 | AC94: 19155 | AD94: 19956 | AE94: 20633 | AF94: 20983 | AG94: 21253 | AH94: 21323 | AI94: 22119 | AJ94: 21814 | AK94: 21841 | AL94: 21436 | AM94: 20641 | AN94: 19263 | AO94: 18200 | AP94: 17503 | AQ94: 17255 | AR94: 16863 | AS94: 16431 | AT94: 16177 | AU94: 16030 | AV94: 16147
A95: 1,914 | B95: 92 | C95: 236.30 | D95: 8,100 | E95: 7723 | F95: 8240 | G95: 8053 | H95: 8296 | I95: 9139 | J95: 9422 | K95: 9962 | L95: 9872 | M95: 9696 | N95: 9457 | O95: 9565 | P95: 9757 | Q95: 9840 | R95: 9715 | S95: 9599 | T95: 9524 | U95: 9462 | V95: 9076 | W95: 8475 | X95: 8616 | Y95: 8786 | Z95: 8863 | AA95: 12233 | AB95: 13414 | AC95: 14347 | AD95: 14629 | AE95: 15241 | AF95: 15757 | AG95: 16025 | AH95: 16231 | AI95: 16284 | AJ95: 16893 | AK95: 16659 | AL95: 16680 | AM95: 16371 | AN95: 15764 | AO95: 14711 | AP95: 13899 | AQ95: 13367 | AR95: 13178 | AS95: 12879 | AT95: 12548 | AU95: 12354 | AV95: 12242
A96: 1,512 | B96: 93 | C96: 269.13 | D96: 5,618 | E96: 5920 | F96: 5644 | G96: 6022 | H96: 5886 | I96: 6064 | J96: 6679 | K96: 6886 | L96: 7281 | M96: 7215 | N96: 7086 | O96: 6912 | P96: 6991 | Q96: 7131 | R96: 7191 | S96: 7101 | T96: 7015 | U96: 6961 | V96: 6916 | W96: 6633 | X96: 6194 | Y96: 6297 | Z96: 6421 | AA96: 6478 | AB96: 8940 | AC96: 9804 | AD96: 10486 | AE96: 10692 | AF96: 11139 | AG96: 11516 | AH96: 11712 | AI96: 11863 | AJ96: 11901 | AK96: 12346 | AL96: 12176 | AM96: 12191 | AN96: 11965 | AO96: 11521 | AP96: 10752 | AQ96: 10158 | AR96: 9770 | AS96: 9631 | AT96: 9413 | AU96: 9171 | AV96: 9029
A97: 1,002 | B97: 94 | C97: 277.18 | D97: 3,615 | E97: 4061 | F97: 4279 | G97: 4080 | H97: 4353 | I97: 4254 | J97: 4383 | K97: 4828 | L97: 4977 | M97: 5263 | N97: 5215 | O97: 5122 | P97: 4996 | Q97: 5053 | R97: 5154 | S97: 5198 | T97: 5132 | U97: 5071 | V97: 5031 | W97: 4999 | X97: 4794 | Y97: 4477 | Z97: 4552 | AA97: 4642 | AB97: 4682 | AC97: 6462 | AD97: 7086 | AE97: 7579 | AF97: 7728 | AG97: 8052 | AH97: 8324 | AI97: 8466 | AJ97: 8575 | AK97: 8603 | AL97: 8924 | AM97: 8801 | AN97: 8812 | AO97: 8648 | AP97: 8328 | AQ97: 7772 | AR97: 7343 | AS97: 7062 | AT97: 6962 | AU97: 6804 | AV97: 6629
A98: 768 | B98: 95 | C98: 298.83 | D98: 2,570 | E98: 2535 | F98: 2847 | G98: 3000 | H98: 2861 | I98: 3052 | J98: 2983 | K98: 3073 | L98: 3385 | M98: 3490 | N98: 3690 | O98: 3657 | P98: 3592 | Q98: 3503 | R98: 3543 | S98: 3614 | T98: 3645 | U98: 3599 | V98: 3555 | W98: 3528 | X98: 3505 | Y98: 3362 | Z98: 3139 | AA98: 3192 | AB98: 3254 | AC98: 3283 | AD98: 4531 | AE98: 4969 | AF98: 5314 | AG98: 5419 | AH98: 5645 | AI98: 5837 | AJ98: 5936 | AK98: 6012 | AL98: 6032 | AM98: 6257 | AN98: 6171 | AO98: 6179 | AP98: 6064 | AQ98: 5839 | AR98: 5449 | AS98: 5148 | AT98: 4951 | AU98: 4881 | AV98: 4770
A99: 605 | B99: 96 | C99: 388.57 | D99: 1,557 | E99: 1571 | F99: 1550 | G99: 1741 | H99: 1835 | I99: 1749 | J99: 1866 | K99: 1824 | L99: 1879 | M99: 2070 | N99: 2134 | O99: 2256 | P99: 2236 | Q99: 2196 | R99: 2142 | S99: 2166 | T99: 2210 | U99: 2229 | V99: 2200 | W99: 2174 | X99: 2157 | Y99: 2143 | Z99: 2055 | AA99: 1919 | AB99: 1951 | AC99: 1990 | AD99: 2007 | AE99: 2771 | AF99: 3038 | AG99: 3249 | AH99: 3313 | AI99: 3452 | AJ99: 3569 | AK99: 3629 | AL99: 3676 | AM99: 3688 | AN99: 3826 | AO99: 3773 | AP99: 3778 | AQ99: 3708 | AR99: 3570 | AS99: 3332 | AT99: 3148 | AU99: 3027 | AV99: 2985
A100: 276 | B100: 97 | C100: 398.27 | D100: 693 | E100: 937 | F100: 946 | G100: 933 | H100: 1048 | I100: 1104 | J100: 1052 | K100: 1123 | L100: 1097 | M100: 1131 | N100: 1245 | O100: 1284 | P100: 1358 | Q100: 1345 | R100: 1321 | S100: 1289 | T100: 1304 | U100: 1330 | V100: 1341 | W100: 1324 | X100: 1308 | Y100: 1298 | Z100: 1290 | AA100: 1237 | AB100: 1155 | AC100: 1174 | AD100: 1197 | AE100: 1208 | AF100: 1667 | AG100: 1828 | AH100: 1955 | AI100: 1994 | AJ100: 2077 | AK100: 2147 | AL100: 2184 | AM100: 2212 | AN100: 2219 | AO100: 2302 | AP100: 2270 | AQ100: 2273 | AR100: 2231 | AS100: 2148 | AT100: 2005 | AU100: 1894 | AV100: 1822
A101: 159 | B101: 98 | C101: 314.23 | D101: 506 | E101: 475 | F101: 642 | G101: 648 | H101: 640 | I101: 718 | J101: 757 | K101: 722 | L101: 770 | M101: 753 | N101: 775 | O101: 854 | P101: 881 | Q101: 931 | R101: 923 | S101: 906 | T101: 884 | U101: 894 | V101: 912 | W101: 920 | X101: 908 | Y101: 897 | Z101: 890 | AA101: 884 | AB101: 848 | AC101: 792 | AD101: 805 | AE101: 821 | AF101: 828 | AG101: 1143 | AH101: 1254 | AI101: 1341 | AJ101: 1367 | AK101: 1424 | AL101: 1473 | AM101: 1498 | AN101: 1517 | AO101: 1522 | AP101: 1579 | AQ101: 1557 | AR101: 1559 | AS101: 1530 | AT101: 1473 | AU101: 1375 | AV101: 1299
A102: 118 | B102: 99 | C102: 330.53 | D102: 357 | E102: 339 | F102: 318 | G102: 430 | H102: 434 | I102: 428 | J102: 481 | K102: 507 | L102: 483 | M102: 516 | N102: 504 | O102: 519 | P102: 572 | Q102: 589 | R102: 623 | S102: 618 | T102: 607 | U102: 592 | V102: 598 | W102: 610 | X102: 616 | Y102: 608 | Z102: 601 | AA102: 596 | AB102: 592 | AC102: 568 | AD102: 530 | AE102: 539 | AF102: 550 | AG102: 555 | AH102: 765 | AI102: 839 | AJ102: 898 | AK102: 915 | AL102: 954 | AM102: 986 | AN102: 1003 | AO102: 1016 | AP102: 1019 | AQ102: 1057 | AR102: 1042 | AS102: 1044 | AT102: 1024 | AU102: 986 | AV102: 920
A103: 267 | B103: 100+ | C103: 256.48 | D103: 1,041 | E103: =(D102+D103)*(1-$C103/1000) -> 1039 | F103: =(E102+E103)*(1-$C103/1000) -> 1025 | G103: =(F102+F103)*(1-$C103/1000) -> 998 | H103: 1062 | I103: 1112 | J103: 1145 | K103: 1209 | L103: 1276 | M103: 1308 | N103: 1356 | O103: 1383 | P103: 1414 | Q103: 1476 | R103: 1536 | S103: 1606 | T103: 1653 | U103: 1680 | V103: 1689 | W103: 1701 | X103: 1718 | Y103: 1735 | Z103: 1742 | AA103: 1742 | AB103: 1738 | AC103: 1733 | AD103: 1710 | AE103: 1666 | AF103: 1639 | AG103: 1628 | AH103: 1623 | AI103: 1775 | AJ103: 1944 | AK103: 2113 | AL103: 2252 | AM103: 2383 | AN103: 2505 | AO103: 2608 | AP103: 2694 | AQ103: 2761 | AR103: 2838 | AS103: 2885 | AT103: 2921 | AU103: 2934 | AV103: 2915

Sheet piramida wieku
I3: 2016 rok
I27: 2060 rok

Sheet Wyniki
A1: Wyniki:
A2: Grupa: | B2: 2016 | C2: 2017 | D2: 2018 | E2: 2019 | F2: 2020 | G2: 2021 | H2: 2022 | I2: 2023 | J2: 2024 | K2: 2025 | L2: 2026 | M2: 2027 | N2: 2028 | O2: 2029 | P2: 2030 | Q2: 2031 | R2: 2032 | S2: 2033 | T2: 2034 | U2: 2035 | V2: 2036 | W2: 2037 | X2: 2038 | Y2: 2039 | Z2: 2040 | AA2: 2041 | AB2: 2042 | AC2: 2043 | AD2: 2044 | AE2: 2045 | AF2: 2046 | AG2: 2047 | AH2: 2048 | AI2: 2049 | AJ2: 2050 | AK2: 2051 | AL2: 2052 | AM2: 2053 | AN2: 2054 | AO2: 2055 | AP2: 2056 | AQ2: 2057 | AR2: 2058 | AS2: 2059 | AT2: 2060
A3: 1. Ludność Polski w mln | B3: =SUM(Kobiety!F3:F103,Mężczyźni!D3:D103)/1000000 -> 37.97 | C3: =SUM(Kobiety!G3:G103,Mężczyźni!E3:E103)/1000000 -> 37.92 | D3: =SUM(Kobiety!H3:H103,Mężczyźni!F3:F103)/1000000 -> 37.86 | E3: =SUM(Kobiety!I3:I103,Mężczyźni!G3:G103)/1000000 -> 37.78 | F3: =SUM(Kobiety!J3:J103,Mężczyźni!H3:H103)/1000000 -> 37.69 | G3: =SUM(Kobiety!K3:K103,Mężczyźni!I3:I103)/1000000 -> 37.59 | H3: =SUM(Kobiety!L3:L103,Mężczyźni!J3:J103)/1000000 -> 37.47 | I3: =SUM(Kobiety!M3:M103,Mężczyźni!K3:K103)/1000000 -> 37.34 | J3: =SUM(Kobiety!N3:N103,Mężczyźni!L3:L103)/1000000 -> 37.19 | K3: =SUM(Kobiety!O3:O103,Mężczyźni!M3:M103)/1000000 -> 37.03 | L3: =SUM(Kobiety!P3:P103,Mężczyźni!N3:N103)/1000000 -> 36.85 | M3: =SUM(Kobiety!Q3:Q103,Mężczyźni!O3:O103)/1000000 -> 36.66 | N3: =SUM(Kobiety!R3:R103,Mężczyźni!P3:P103)/1000000 -> 36.47 | O3: =SUM(Kobiety!S3:S103,Mężczyźni!Q3:Q103)/1000000 -> 36.25 | P3: =SUM(Kobiety!T3:T103,Mężczyźni!R3:R103)/1000000 -> 36.03 | Q3: =SUM(Kobiety!U3:U103,Mężczyźni!S3:S103)/1000000 -> 35.80 | R3: =SUM(Kobiety!V3:V103,Mężczyźni!T3:T103)/1000000 -> 35.56 | S3: =SUM(Kobiety!W3:W103,Mężczyźni!U3:U103)/1000000 -> 35.31 | T3: =SUM(Kobiety!X3:X103,Mężczyźni!V3:V103)/1000000 -> 35.05 | U3: =SUM(Kobiety!Y3:Y103,Mężczyźni!W3:W103)/1000000 -> 34.78 | V3: =SUM(Kobiety!Z3:Z103,Mężczyźni!X3:X103)/1000000 -> 34.50 | W3: =SUM(Kobiety!AA3:AA103,Mężczyźni!Y3:Y103)/1000000 -> 34.22 | X3: =SUM(Kobiety!AB3:AB103,Mężczyźni!Z3:Z103)/1000000 -> 33.93 | Y3: =SUM(Kobiety!AC3:AC103,Mężczyźni!AA3:AA103)/1000000 -> 33.64 | Z3: =SUM(Kobiety!AD3:AD103,Mężczyźni!AB3:AB103)/1000000 -> 33.34 | AA3: =SUM(Kobiety!AE3:AE103,Mężczyźni!AC3:AC103)/1000000 -> 33.03 | AB3: =SUM(Kobiety!AF3:AF103,Mężczyźni!AD3:AD103)/1000000 -> 32.73 | AC3: =SUM(Kobiety!AG3:AG103,Mężczyźni!AE3:AE103)/1000000 -> 32.41 | AD3: =SUM(Kobiety!AH3:AH103,Mężczyźni!AF3:AF103)/1000000 -> 32.10 | AE3: =SUM(Kobiety!AI3:AI103,Mężczyźni!AG3:AG103)/1000000 -> 31.78 | AF3: =SUM(Kobiety!AJ3:AJ103,Mężczyźni!AH3:AH103)/1000000 -> 31.46 | AG3: =SUM(Kobiety!AK3:AK103,Mężczyźni!AI3:AI103)/1000000 -> 31.14 | AH3: =SUM(Kobiety!AL3:AL103,Mężczyźni!AJ3:AJ103)/1000000 -> 30.81 | AI3: =SUM(Kobiety!AM3:AM103,Mężczyźni!AK3:AK103)/1000000 -> 30.49 | AJ3: =SUM(Kobiety!AN3:AN103,Mężczyźni!AL3:AL103)/1000000 -> 30.17 | AK3: =SUM(Kobiety!AO3:AO103,Mężczyźni!AM3:AM103)/1000000 -> 29.85 | AL3: =SUM(Kobiety!AP3:AP103,Mężczyźni!AN3:AN103)/1000000 -> 29.52 | AM3: =SUM(Kobiety!AQ3:AQ103,Mężczyźni!AO3:AO103)/1000000 -> 29.19 | AN3: =SUM(Kobiety!AR3:AR103,Mężczyźni!AP3:AP103)/1000000 -> 28.87 | AO3: =SUM(Kobiety!AS3:AS103,Mężczyźni!AQ3:AQ103)/1000000 -> 28.54 | AP3: =SUM(Kobiety!AT3:AT103,Mężczyźni!AR3:AR103)/1000000 -> 28.21 | AQ3: =SUM(Kobiety!AU3:AU103,Mężczyźni!AS3:AS103)/1000000 -> 27.87 | AR3: =SUM(Kobiety!AV3:AV103,Mężczyźni!AT3:AT103)/1000000 -> 27.53 | AS3: =SUM(Kobiety!AW3:AW103,Mężczyźni!AU3:AU103)/1000000 -> 27.20 | AT3: =SUM(Kobiety!AX3:AX103,Mężczyźni!AV3:AV103)/1000000 -> 26.85
A4: 2. Liczba urodzeń w tys. | B4: =SUM(Kobiety!F3,Mężczyźni!D3)/1000 -> 362.27 | C4: =SUM(Kobiety!G3,Mężczyźni!E3)/1000 -> 378.83 | D4: =SUM(Kobiety!H3,Mężczyźni!F3)/1000 -> 371.42 | E4: =SUM(Kobiety!I3,Mężczyźni!G3)/1000 -> 363.19 | F4: =SUM(Kobiety!J3,Mężczyźni!H3)/1000 -> 354.31 | G4: =SUM(Kobiety!K3,Mężczyźni!I3)/1000 -> 344.92 | H4: =SUM(Kobiety!L3,Mężczyźni!J3)/1000 -> 335.19 | I4: =SUM(Kobiety!M3,Mężczyźni!K3)/1000 -> 325.34 | J4: =SUM(Kobiety!N3,Mężczyźni!L3)/1000 -> 315.59 | K4: =SUM(Kobiety!O3,Mężczyźni!M3)/1000 -> 306.22 | L4: =SUM(Kobiety!P3,Mężczyźni!N3)/1000 -> 297.41 | M4: =SUM(Kobiety!Q3,Mężczyźni!O3)/1000 -> 289.34 | N4: =SUM(Kobiety!R3,Mężczyźni!P3)/1000 -> 282.11 | O4: =SUM(Kobiety!S3,Mężczyźni!Q3)/1000 -> 275.73 | P4: =SUM(Kobiety!T3,Mężczyźni!R3)/1000 -> 270.22 | Q4: =SUM(Kobiety!U3,Mężczyźni!S3)/1000 -> 265.61 | R4: =SUM(Kobiety!V3,Mężczyźni!T3)/1000 -> 261.95 | S4: =SUM(Kobiety!W3,Mężczyźni!U3)/1000 -> 259.26 | T4: =SUM(Kobiety!X3,Mężczyźni!V3)/1000 -> 257.49 | U4: =SUM(Kobiety!Y3,Mężczyźni!W3)/1000 -> 256.51 | V4: =SUM(Kobiety!Z3,Mężczyźni!X3)/1000 -> 256.06 | W4: =SUM(Kobiety!AA3,Mężczyźni!Y3)/1000 -> 255.83 | X4: =SUM(Kobiety!AB3,Mężczyźni!Z3)/1000 -> 255.58 | Y4: =SUM(Kobiety!AC3,Mężczyźni!AA3)/1000 -> 255.11 | Z4: =SUM(Kobiety!AD3,Mężczyźni!AB3)/1000 -> 254.26 | AA4: =SUM(Kobiety!AE3,Mężczyźni!AC3)/1000 -> 252.99 | AB4: =SUM(Kobiety!AF3,Mężczyźni!AD3)/1000 -> 251.30 | AC4: =SUM(Kobiety!AG3,Mężczyźni!AE3)/1000 -> 249.19 | AD4: =SUM(Kobiety!AH3,Mężczyźni!AF3)/1000 -> 246.65 | AE4: =SUM(Kobiety!AI3,Mężczyźni!AG3)/1000 -> 243.69 | AF4: =SUM(Kobiety!AJ3,Mężczyźni!AH3)/1000 -> 240.36 | AG4: =SUM(Kobiety!AK3,Mężczyźni!AI3)/1000 -> 236.65 | AH4: =SUM(Kobiety!AL3,Mężczyźni!AJ3)/1000 -> 232.62 | AI4: =SUM(Kobiety!AM3,Mężczyźni!AK3)/1000 -> 228.31 | AJ4: =SUM(Kobiety!AN3,Mężczyźni!AL3)/1000 -> 223.79 | AK4: =SUM(Kobiety!AO3,Mężczyźni!AM3)/1000 -> 219.14 | AL4: =SUM(Kobiety!AP3,Mężczyźni!AN3)/1000 -> 214.43 | AM4: =SUM(Kobiety!AQ3,Mężczyźni!AO3)/1000 -> 209.74 | AN4: =SUM(Kobiety!AR3,Mężczyźni!AP3)/1000 -> 205.16 | AO4: =SUM(Kobiety!AS3,Mężczyźni!AQ3)/1000 -> 200.74 | AP4: =SUM(Kobiety!AT3,Mężczyźni!AR3)/1000 -> 196.53 | AQ4: =SUM(Kobiety!AU3,Mężczyźni!AS3)/1000 -> 192.58 | AR4: =SUM(Kobiety!AV3,Mężczyźni!AT3)/1000 -> 188.93 | AS4: =SUM(Kobiety!AW3,Mężczyźni!AU3)/1000 -> 185.58 | AT4: =SUM(Kobiety!AX3,Mężczyźni!AV3)/1000 -> 182.56
A5: 3. Liczba kandydatów na studia (19) w tys. | B5: =SUM(Kobiety!F22,Mężczyźni!D22)/1000 -> 420.48 | C5: =SUM(Kobiety!G22,Mężczyźni!E22)/1000 -> 404.30 | D5: =SUM(Kobiety!H22,Mężczyźni!F22)/1000 -> 387.64 | E5: =SUM(Kobiety!I22,Mężczyźni!G22)/1000 -> 376.31 | F5: =SUM(Kobiety!J22,Mężczyźni!H22)/1000 -> 372.92 | G5: =SUM(Kobiety!K22,Mężczyźni!I22)/1000 -> 362.94 | H5: =SUM(Kobiety!L22,Mężczyźni!J22)/1000 -> 350.15 | I5: =SUM(Kobiety!M22,Mężczyźni!K22)/1000 -> 346.64 | J5: =SUM(Kobiety!N22,Mężczyźni!L22)/1000 -> 352.70 | K5: =SUM(Kobiety!O22,Mężczyźni!M22)/1000 -> 364.20 | L5: =SUM(Kobiety!P22,Mężczyźni!N22)/1000 -> 378.13 | M5: =SUM(Kobiety!Q22,Mężczyźni!O22)/1000 -> 397.89 | N5: =SUM(Kobiety!R22,Mężczyźni!P22)/1000 -> 425.07 | O5: =SUM(Kobiety!S22,Mężczyźni!Q22)/1000 -> 427.27 | P5: =SUM(Kobiety!T22,Mężczyźni!R22)/1000 -> 411.50 | Q5: =SUM(Kobiety!U22,Mężczyźni!S22)/1000 -> 387.60 | R5: =SUM(Kobiety!V22,Mężczyźni!T22)/1000 -> 387.63 | S5: =SUM(Kobiety!W22,Mężczyźni!U22)/1000 -> 368.40 | T5: =SUM(Kobiety!X22,Mężczyźni!V22)/1000 -> 373.54 | U5: =SUM(Kobiety!Y22,Mężczyźni!W22)/1000 -> 361.06 | V5: =SUM(Kobiety!Z22,Mężczyźni!X22)/1000 -> 377.56 | W5: =SUM(Kobiety!AA22,Mężczyźni!Y22)/1000 -> 370.17 | X5: =SUM(Kobiety!AB22,Mężczyźni!Z22)/1000 -> 361.96 | Y5: =SUM(Kobiety!AC22,Mężczyźni!AA22)/1000 -> 353.11 | Z5: =SUM(Kobiety!AD22,Mężczyźni!AB22)/1000 -> 343.76 | AA5: =SUM(Kobiety!AE22,Mężczyźni!AC22)/1000 -> 334.06 | AB5: =SUM(Kobiety!AF22,Mężczyźni!AD22)/1000 -> 324.24 | AC5: =SUM(Kobiety!AG22,Mężczyźni!AE22)/1000 -> 314.53 | AD5: =SUM(Kobiety!AH22,Mężczyźni!AF22)/1000 -> 305.18 | AE5: =SUM(Kobiety!AI22,Mężczyźni!AG22)/1000 -> 296.41 | AF5: =SUM(Kobiety!AJ22,Mężczyźni!AH22)/1000 -> 288.36 | AG5: =SUM(Kobiety!AK22,Mężczyźni!AI22)/1000 -> 281.16 | AH5: =SUM(Kobiety!AL22,Mężczyźni!AJ22)/1000 -> 274.80 | AI5: =SUM(Kobiety!AM22,Mężczyźni!AK22)/1000 -> 269.31 | AJ5: =SUM(Kobiety!AN22,Mężczyźni!AL22)/1000 -> 264.72 | AK5: =SUM(Kobiety!AO22,Mężczyźni!AM22)/1000 -> 261.07 | AL5: =SUM(Kobiety!AP22,Mężczyźni!AN22)/1000 -> 258.38 | AM5: =SUM(Kobiety!AQ22,Mężczyźni!AO22)/1000 -> 256.63 | AN5: =SUM(Kobiety!AR22,Mężczyźni!AP22)/1000 -> 255.65 | AO5: =SUM(Kobiety!AS22,Mężczyźni!AQ22)/1000 -> 255.20 | AP5: =SUM(Kobiety!AT22,Mężczyźni!AR22)/1000 -> 254.97 | AQ5: =SUM(Kobiety!AU22,Mężczyźni!AS22)/1000 -> 254.73 | AR5: =SUM(Kobiety!AV22,Mężczyźni!AT22)/1000 -> 254.25 | AS5: =SUM(Kobiety!AW22,Mężczyźni!AU22)/1000 -> 253.40 | AT5: =SUM(Kobiety!AX22,Mężczyźni!AV22)/1000 -> 252.14
A6: 4. Liczba uczniów szkół podstawowych (7-12) w mln | B6: =SUM(Kobiety!F10:F15,Mężczyźni!D10:D15)/1000000 -> 2.27 | C6: =SUM(Kobiety!G10:G15,Mężczyźni!E10:E15)/1000000 -> 2.35 | D6: =SUM(Kobiety!H10:H15,Mężczyźni!F10:F15)/1000000 -> 2.41 | E6: =SUM(Kobiety!I10:I15,Mężczyźni!G10:G15)/1000000 -> 2.43 | F6: =SUM(Kobiety!J10:J15,Mężczyźni!H10:H15)/1000000 -> 2.44 | G6: =SUM(Kobiety!K10:K15,Mężczyźni!I10:I15)/1000000 -> 2.41 | H6: =SUM(Kobiety!L10:L15,Mężczyźni!J10:J15)/1000000 -> 2.36 | I6: =SUM(Kobiety!M10:M15,Mężczyźni!K10:K15)/1000000 -> 2.29 | J6: =SUM(Kobiety!N10:N15,Mężczyźni!L10:L15)/1000000 -> 2.26 | K6: =SUM(Kobiety!O10:O15,Mężczyźni!M10:M15)/1000000 -> 2.24 | L6: =SUM(Kobiety!P10:P15,Mężczyźni!N10:N15)/1000000 -> 2.22 | M6: =SUM(Kobiety!Q10:Q15,Mężczyźni!O10:O15)/1000000 -> 2.20 | N6: =SUM(Kobiety!R10:R15,Mężczyźni!P10:P15)/1000000 -> 2.17 | O6: =SUM(Kobiety!S10:S15,Mężczyźni!Q10:Q15)/1000000 -> 2.15 | P6: =SUM(Kobiety!T10:T15,Mężczyźni!R10:R15)/1000000 -> 2.09 | Q6: =SUM(Kobiety!U10:U15,Mężczyźni!S10:S15)/1000000 -> 2.04 | R6: =SUM(Kobiety!V10:V15,Mężczyźni!T10:T15)/1000000 -> 1.98 | S6: =SUM(Kobiety!W10:W15,Mężczyźni!U10:U15)/1000000 -> 1.92 | T6: =SUM(Kobiety!X10:X15,Mężczyźni!V10:V15)/1000000 -> 1.87 | U6: =SUM(Kobiety!Y10:Y15,Mężczyźni!W10:W15)/1000000 -> 1.81 | V6: =SUM(Kobiety!Z10:Z15,Mężczyźni!X10:X15)/1000000 -> 1.76 | W6: =SUM(Kobiety!AA10:AA15,Mężczyźni!Y10:Y15)/1000000 -> 1.72 | X6: =SUM(Kobiety!AB10:AB15,Mężczyźni!Z10:Z15)/1000000 -> 1.68 | Y6: =SUM(Kobiety!AC10:AC15,Mężczyźni!AA10:AA15)/1000000 -> 1.64 | Z6: =SUM(Kobiety!AD10:AD15,Mężczyźni!AB10:AB15)/1000000 -> 1.61 | AA6: =SUM(Kobiety!AE10:AE15,Mężczyźni!AC10:AC15)/1000000 -> 1.59 | AB6: =SUM(Kobiety!AF10:AF15,Mężczyźni!AD10:AD15)/1000000 -> 1.57 | AC6: =SUM(Kobiety!AG10:AG15,Mężczyźni!AE10:AE15)/1000000 -> 1.56 | AD6: =SUM(Kobiety!AH10:AH15,Mężczyźni!AF10:AF15)/1000000 -> 1.55 | AE6: =SUM(Kobiety!AI10:AI15,Mężczyźni!AG10:AG15)/1000000 -> 1.54 | AF6: =SUM(Kobiety!AJ10:AJ15,Mężczyźni!AH10:AH15)/1000000 -> 1.53 | AG6: =SUM(Kobiety!AK10:AK15,Mężczyźni!AI10:AI15)/1000000 -> 1.53 | AH6: =SUM(Kobiety!AL10:AL15,Mężczyźni!AJ10:AJ15)/1000000 -> 1.53 | AI6: =SUM(Kobiety!AM10:AM15,Mężczyźni!AK10:AK15)/1000000 -> 1.52 | AJ6: =SUM(Kobiety!AN10:AN15,Mężczyźni!AL10:AL15)/1000000 -> 1.52 | AK6: =SUM(Kobiety!AO10:AO15,Mężczyźni!AM10:AM15)/1000000 -> 1.51 | AL6: =SUM(Kobiety!AP10:AP15,Mężczyźni!AN10:AN15)/1000000 -> 1.50 | AM6: =SUM(Kobiety!AQ10:AQ15,Mężczyźni!AO10:AO15)/1000000 -> 1.48 | AN6: =SUM(Kobiety!AR10:AR15,Mężczyźni!AP10:AP15)/1000000 -> 1.47 | AO6: =SUM(Kobiety!AS10:AS15,Mężczyźni!AQ10:AQ15)/1000000 -> 1.45 | AP6: =SUM(Kobiety!AT10:AT15,Mężczyźni!AR10:AR15)/1000000 -> 1.43 | AQ6: =SUM(Kobiety!AU10:AU15,Mężczyźni!AS10:AS15)/1000000 -> 1.40 | AR6: =SUM(Kobiety!AV10:AV15,Mężczyźni!AT10:AT15)/1000000 -> 1.38 | AS6: =SUM(Kobiety!AW10:AW15,Mężczyźni!AU10:AU15)/1000000 -> 1.35 | AT6: =SUM(Kobiety!AX10:AX15,Mężczyźni!AV10:AV15)/1000000 -> 1.33
A7: 5. Liczba osób w wieku produkcyjnym* w mln | B7: =SUM(Mężczyźni!D21:D67,Kobiety!F21:F62)/1000000 -> 23.61 | C7: =SUM(Mężczyźni!E21:E67,Kobiety!G21:G62)/1000000 -> 23.38 | D7: =SUM(Mężczyźni!F21:F67,Kobiety!H21:H62)/1000000 -> 23.13 | E7: =SUM(Mężczyźni!G21:G67,Kobiety!I21:I62)/1000000 -> 22.88 | F7: =SUM(Mężczyźni!H21:H67,Kobiety!J21:J62)/1000000 -> 22.63 | G7: =SUM(Mężczyźni!I21:I67,Kobiety!K21:K62)/1000000 -> 22.39 | H7: =SUM(Mężczyźni!J21:J67,Kobiety!L21:L62)/1000000 -> 22.16 | I7: =SUM(Mężczyźni!K21:K67,Kobiety!M21:M62)/1000000 -> 21.94 | J7: =SUM(Mężczyźni!L21:L67,Kobiety!N21:N62)/1000000 -> 21.75 | K7: =SUM(Mężczyźni!M21:M67,Kobiety!O21:O62)/1000000 -> 21.59 | L7: =SUM(Mężczyźni!N21:N67,Kobiety!P21:P62)/1000000 -> 21.47 | M7: =SUM(Mężczyźni!O21:O67,Kobiety!Q21:Q62)/1000000 -> 21.39 | N7: =SUM(Mężczyźni!P21:P67,Kobiety!R21:R62)/1000000 -> 21.32 | O7: =SUM(Mężczyźni!Q21:Q67,Kobiety!S21:S62)/1000000 -> 21.24 | P7: =SUM(Mężczyźni!R21:R67,Kobiety!T21:T62)/1000000 -> 21.14 | Q7: =SUM(Mężczyźni!S21:S67,Kobiety!U21:U62)/1000000 -> 21.03 | R7: =SUM(Mężczyźni!T21:T67,Kobiety!V21:V62)/1000000 -> 20.90 | S7: =SUM(Mężczyźni!U21:U67,Kobiety!W21:W62)/1000000 -> 20.76 | T7: =SUM(Mężczyźni!V21:V67,Kobiety!X21:X62)/1000000 -> 20.61 | U7: =SUM(Mężczyźni!W21:W67,Kobiety!Y21:Y62)/1000000 -> 20.45 | V7: =SUM(Mężczyźni!X21:X67,Kobiety!Z21:Z62)/1000000 -> 20.27 | W7: =SUM(Mężczyźni!Y21:Y67,Kobiety!AA21:AA62)/1000000 -> 20.07 | X7: =SUM(Mężczyźni!Z21:Z67,Kobiety!AB21:AB62)/1000000 -> 19.86 | Y7: =SUM(Mężczyźni!AA21:AA67,Kobiety!AC21:AC62)/1000000 -> 19.63 | Z7: =SUM(Mężczyźni!AB21:AB67,Kobiety!AD21:AD62)/1000000 -> 19.37 | AA7: =SUM(Mężczyźni!AC21:AC67,Kobiety!AE21:AE62)/1000000 -> 19.09 | AB7: =SUM(Mężczyźni!AD21:AD67,Kobiety!AF21:AF62)/1000000 -> 18.81 | AC7: =SUM(Mężczyźni!AE21:AE67,Kobiety!AG21:AG62)/1000000 -> 18.50 | AD7: =SUM(Mężczyźni!AF21:AF67,Kobiety!AH21:AH62)/1000000 -> 18.18 | AE7: =SUM(Mężczyźni!AG21:AG67,Kobiety!AI21:AI62)/1000000 -> 17.85 | AF7: =SUM(Mężczyźni!AH21:AH67,Kobiety!AJ21:AJ62)/1000000 -> 17.53 | AG7: =SUM(Mężczyźni!AI21:AI67,Kobiety!AK21:AK62)/1000000 -> 17.21 | AH7: =SUM(Mężczyźni!AJ21:AJ67,Kobiety!AL21:AL62)/1000000 -> 16.90 | AI7: =SUM(Mężczyźni!AK21:AK67,Kobiety!AM21:AM62)/1000000 -> 16.58 | AJ7: =SUM(Mężczyźni!AL21:AL67,Kobiety!AN21:AN62)/1000000 -> 16.27 | AK7: =SUM(Mężczyźni!AM21:AM67,Kobiety!AO21:AO62)/1000000 -> 15.96 | AL7: =SUM(Mężczyźni!AN21:AN67,Kobiety!AP21:AP62)/1000000 -> 15.68 | AM7: =SUM(Mężczyźni!AO21:AO67,Kobiety!AQ21:AQ62)/1000000 -> 15.42 | AN7: =SUM(Mężczyźni!AP21:AP67,Kobiety!AR21:AR62)/1000000 -> 15.17 | AO7: =SUM(Mężczyźni!AQ21:AQ67,Kobiety!AS21:AS62)/1000000 -> 14.94 | AP7: =SUM(Mężczyźni!AR21:AR67,Kobiety!AT21:AT62)/1000000 -> 14.72 | AQ7: =SUM(Mężczyźni!AS21:AS67,Kobiety!AU21:AU62)/1000000 -> 14.52 | AR7: =SUM(Mężczyźni!AT21:AT67,Kobiety!AV21:AV62)/1000000 -> 14.34 | AS7: =SUM(Mężczyźni!AU21:AU67,Kobiety!AW21:AW62)/1000000 -> 14.17 | AT7: =SUM(Mężczyźni!AV21:AV67,Kobiety!AX21:AX62)/1000000 -> 14.01
A8: 6. Liczba osób w wieku poprodukcyjnym** w mln | B8: =SUM(Mężczyźni!D69:D103,Kobiety!F64:F103)/1000000 -> 6.98 | C8: =SUM(Mężczyźni!E69:E103,Kobiety!G64:G103)/1000000 -> 7.18 | D8: =SUM(Mężczyźni!F69:F103,Kobiety!H64:H103)/1000000 -> 7.37 | E8: =SUM(Mężczyźni!G69:G103,Kobiety!I64:I103)/1000000 -> 7.55 | F8: =SUM(Mężczyźni!H69:H103,Kobiety!J64:J103)/1000000 -> 7.73 | G8: =SUM(Mężczyźni!I69:I103,Kobiety!K64:K103)/1000000 -> 7.89 | H8: =SUM(Mężczyźni!J69:J103,Kobiety!L64:L103)/1000000 -> 8.04 | I8: =SUM(Mężczyźni!K69:K103,Kobiety!M64:M103)/1000000 -> 8.15 | J8: =SUM(Mężczyźni!L69:L103,Kobiety!N64:N103)/1000000 -> 8.26 | K8: =SUM(Mężczyźni!M69:M103,Kobiety!O64:O103)/1000000 -> 8.35 | L8: =SUM(Mężczyźni!N69:N103,Kobiety!P64:P103)/1000000 -> 8.42 | M8: =SUM(Mężczyźni!O69:O103,Kobiety!Q64:Q103)/1000000 -> 8.46 | N8: =SUM(Mężczyźni!P69:P103,Kobiety!R64:R103)/1000000 -> 8.48 | O8: =SUM(Mężczyźni!Q69:Q103,Kobiety!S64:S103)/1000000 -> 8.49 | P8: =SUM(Mężczyźni!R69:R103,Kobiety!T64:T103)/1000000 -> 8.49 | Q8: =SUM(Mężczyźni!S69:S103,Kobiety!U64:U103)/1000000 -> 8.49 | R8: =SUM(Mężczyźni!T69:T103,Kobiety!V64:V103)/1000000 -> 8.48 | S8: =SUM(Mężczyźni!U69:U103,Kobiety!W64:W103)/1000000 -> 8.47 | T8: =SUM(Mężczyźni!V69:V103,Kobiety!X64:X103)/1000000 -> 8.47 | U8: =SUM(Mężczyźni!W69:W103,Kobiety!Y64:Y103)/1000000 -> 8.46 | V8: =SUM(Mężczyźni!X69:X103,Kobiety!Z64:Z103)/1000000 -> 8.46 | W8: =SUM(Mężczyźni!Y69:Y103,Kobiety!AA64:AA103)/1000000 -> 8.48 | X8: =SUM(Mężczyźni!Z69:Z103,Kobiety!AB64:AB103)/1000000 -> 8.49 | Y8: =SUM(Mężczyźni!AA69:AA103,Kobiety!AC64:AC103)/1000000 -> 8.51 | Z8: =SUM(Mężczyźni!AB69:AB103,Kobiety!AD64:AD103)/1000000 -> 8.54 | AA8: =SUM(Mężczyźni!AC69:AC103,Kobiety!AE64:AE103)/1000000 -> 8.57 | AB8: =SUM(Mężczyźni!AD69:AD103,Kobiety!AF64:AF103)/1000000 -> 8.61 | AC8: =SUM(Mężczyźni!AE69:AE103,Kobiety!AG64:AG103)/1000000 -> 8.65 | AD8: =SUM(Mężczyźni!AF69:AF103,Kobiety!AH64:AH103)/1000000 -> 8.70 | AE8: =SUM(Mężczyźni!AG69:AG103,Kobiety!AI64:AI103)/1000000 -> 8.75 | AF8: =SUM(Mężczyźni!AH69:AH103,Kobiety!AJ64:AJ103)/1000000 -> 8.81 | AG8: =SUM(Mężczyźni!AI69:AI103,Kobiety!AK64:AK103)/1000000 -> 8.86 | AH8: =SUM(Mężczyźni!AJ69:AJ103,Kobiety!AL64:AL103)/1000000 -> 8.89 | AI8: =SUM(Mężczyźni!AK69:AK103,Kobiety!AM64:AM103)/1000000 -> 8.92 | AJ8: =SUM(Mężczyźni!AL69:AL103,Kobiety!AN64:AN103)/1000000 -> 8.96 | AK8: =SUM(Mężczyźni!AM69:AM103,Kobiety!AO64:AO103)/1000000 -> 8.99 | AL8: =SUM(Mężczyźni!AN69:AN103,Kobiety!AP64:AP103)/1000000 -> 9.01 | AM8: =SUM(Mężczyźni!AO69:AO103,Kobiety!AQ64:AQ103)/1000000 -> 9.01 | AN8: =SUM(Mężczyźni!AP69:AP103,Kobiety!AR64:AR103)/1000000 -> 8.99 | AO8: =SUM(Mężczyźni!AQ69:AQ103,Kobiety!AS64:AS103)/1000000 -> 8.96 | AP8: =SUM(Mężczyźni!AR69:AR103,Kobiety!AT64:AT103)/1000000 -> 8.92 | AQ8: =SUM(Mężczyźni!AS69:AS103,Kobiety!AU64:AU103)/1000000 -> 8.87 | AR8: =SUM(Mężczyźni!AT69:AT103,Kobiety!AV64:AV103)/1000000 -> 8.80 | AS8: =SUM(Mężczyźni!AU69:AU103,Kobiety!AW64:AW103)/1000000 -> 8.71 | AT8: =SUM(Mężczyźni!AV69:AV103,Kobiety!AX64:AX103)/1000000 -> 8.61
A9: 7. Wskaźnik obciążenia*** | B9: =B7/B8 -> 3.38 | C9: =C7/C8 -> 3.26 | D9: 3.14 | E9: 3.03 | F9: 2.93 | G9: 2.84 | H9: 2.76 | I9: 2.69 | J9: 2.63 | K9: 2.59 | L9: 2.55 | M9: 2.53 | N9: 2.51 | O9: 2.50 | P9: 2.49 | Q9: 2.48 | R9: 2.46 | S9: 2.45 | T9: 2.43 | U9: 2.42 | V9: 2.40 | W9: 2.37 | X9: 2.34 | Y9: 2.31 | Z9: 2.27 | AA9: 2.23 | AB9: 2.18 | AC9: 2.14 | AD9: 2.09 | AE9: 2.04 | AF9: 1.99 | AG9: 1.94 | AH9: 1.90 | AI9: 1.86 | AJ9: 1.82 | AK9: 1.78 | AL9: 1.74 | AM9: 1.71 | AN9: 1.69 | AO9: 1.67 | AP9: 1.65 | AQ9: 1.64 | AR9: 1.63 | AS9: 1.63 | AT9: =AT7/AT8 -> 1.63
